Workbook

Sheet Table1A List of required stocks
A1: Table1A: List of required stocks
L2: WP years | M2: 2017-2019
L3: AR year | M3: 2017
A4: MS | B4: Reference years | C4: Species | D4: Region | E4: RFMO/RFO/IO | F4: Area / Stock | G4: Selected for sampling (Y/N) | H4: Average landings in the reference years (tons) | I4: EU TAC (if any) (%) | J4: Share (%) in EU landings | K4: Threshold (Y/N) | L4: Comments | M4: Changes in species landings
A5: DNK | B5: 2013-2015 | C5: Aequipecten opercularis | D5: North Atlantic | E5: ICES | F5: VII | G5: N | H5: - | I5: - | J5: - | K5: -
A6: DNK | B6: 2013-2015 | C6: Alepocephalus bairdii | D6: North Atlantic | E6: ICES | F6: VI, XII | G6: N | H6: - | I6: - | J6: - | K6: -
A7: DNK | B7: 2013-2015 | C7: Ammodytes spp | D7: North Sea and Eastern Arctic | E7: ICES | F7: IV | G7: Y | H7: 167991 | I7: - | J7: 0.82 | K7: N | L7: ( Tobis )
A8: DNK | B8: 2013-2015 | C8: Ammodytes spp | D8: North Sea and Eastern Arctic | E8: ICES | F8: IIIa | G8: Y | H8: 9251 | I8: - | J8: 1 | K8: N | L8: ( Tobis )
A9: DNK | B9: 2013-2015 | C9: Ammodytes spp | D9: North Atlantic | E9: ICES | F9: VIa | G9: N | H9: - | I9: - | J9: - | K9: - | L9: ( Tobis )
A10: DNK | B10: 2013-2015 | C10: Anarhichas spp | D10: North Sea and Eastern Arctic | E10: ICES | F10: IV | G10: Y | H10: 229 | I10: - | J10: 0.37 | K10: N | L10: ( Havkattearter )
A11: DNK | B11: 2013-2015 | C11: Anguilla anguilla | D11: North Sea and Eastern Arctic | E11: ICES | F11: IV, VIId | G11: N | H11: 11 | I11: - | J11: 0.59 | K11: Y | L11: ( Blanke Ål )
A12: DNK | B12: 2013-2015 | C12: Anguilla anguilla | D12: North Sea and Eastern Arctic | E12: ICES | F12: I, II | G12: N | H12: - | I12: - | J12: - | K12: - | L12: ( Blanke Ål )
A13: DNK | B13: 2013-2015 | C13: Anguilla anguilla | D13: North Atlantic | E13: ICES | F13: all areas | G13: N | H13: - | I13: - | J13: - | K13: - | L13: ( Blanke Ål )
A14: DNK | B14: 2013-2015 | C14: Anguilla anguilla | D14: Baltic Sea | E14: ICES | F14: 22-32 | G14: Y | H14: 259 | I14: - | J14: 0.46 | K14: N | L14: ( Blanke Ål )
A15: DNK | B15: 2013-2015 | C15: Anguilla anguilla | D15: North Sea and Eastern Arctic | E15: ICES | F15: IIIa | G15: N | H15: 24 | I15: - | J15: 0.95 | K15: Y | L15: ( Blanke Ål )
A16: DNK | B16: 2013-2015 | C16: Aphanopus spp | D16: North Atlantic | E16: ICES | F16: all areas | G16: N | H16: - | I16: - | J16: - | K16: -
A17: DNK | B17: 2013-2015 | C17: Argentina spp | D17: North Atlantic | E17: ICES | F17: all areas | G17: N | H17: 279 | I17: 0 | J17: 0.08 | K17: Y | L17: ( Strømsildarter )
A18: DNK | B18: 2013-2015 | C18: Argentina spp | D18: North Sea and Eastern Arctic | E18: ICES | F18: IV | G18: N | H18: 123 | I18: 0.89 | J18: 0.35 | K18: Y | L18: ( Strømsildarter )
A19: DNK | B19: 2013-2015 | C19: Argyrosomus regius | D19: North Atlantic | E19: ICES | F19: all areas | G19: N | H19: - | I19: - | J19: - | K19: -
A20: DNK | B20: 2013-2015 | C20: Aspitrigla cuculus | D20: North Sea and Eastern Arctic | E20: ICES | F20: IIIa | G20: N | H20: - | I20: - | J20: - | K20: -
A21: DNK | B21: 2013-2015 | C21: Aspitrigla cuculus | D21: North Atlantic | E21: ICES | F21: all areas | G21: N | H21: - | I21: - | J21: - | K21: -
A22: DNK | B22: 2013-2015 | C22: Beryx spp | D22: North Atlantic | E22: ICES | F22: all areas, excluding X and IXa | G22: N | H22: - | I22: - | J22: - | K22: -
A23: DNK | B23: 2013-2015 | C23: Beryx spp | D23: North Atlantic | E23: ICES | F23: IXa and X | G23: N | H23: - | I23: - | J23: - | K23: -
A24: DNK | B24: 2013-2015 | C24: Brosme brosme | D24: North Sea and Eastern Arctic | E24: ICES | F24: I, II | G24: N | H24: - | I24: - | J24: - | K24: - | L24: ( Brosme )
A25: DNK | B25: 2013-2015 | C25: Brosme brosme | D25: North Sea and Eastern Arctic | E25: ICES | F25: IV | G25: N | H25: 32 | I25: 0.57 | J25: 0.3 | K25: Y | L25: ( Brosme )
A26: DNK | B26: 2013-2015 | C26: Cancer pagurus | D26: North Atlantic | E26: ICES | F26: all areas | G26: N | H26: - | I26: - | J26: - | K26: - | L26: ( Taskekrabbe )
A27: DNK | B27: 2013-2015 | C27: Capros aper | D27: North Atlantic | E27: ICES | F27: V, VI,VII | G27: Y | H27: 6870 | I27: 0.25 | J27: 0.16 | K27: N | M27: Landings has decreased by more than 90% since the reference years
A28: DNK | B28: 2013-2015 | C28: Chelidonichthys lucerna | D28: North Sea and Eastern Arctic | E28: ICES | F28: IV | G28: N | H28: - | I28: - | J28: - | K28: - | L28: ( Rød Knurhane )
A29: DNK | B29: 2013-2015 | C29: Clupea harengus | D29: North Atlantic | E29: ICES | F29: VIIa | G29: N | H29: - | I29: - | J29: - | K29: - | L29: ( Sild )
A30: DNK | B30: 2013-2015 | C30: Clupea harengus | D30: North Sea and Eastern Arctic | E30: ICES | F30: IV, VIId | G30: Y | H30: 112159 | I30: 0.24 | J30: 0.32 | K30: N | L30: ( Sild )
A31: DNK | B31: 2013-2015 | C31: Clupea harengus | D31: Baltic Sea | E31: ICES | F31: 25-29, 32 | G31: N | H31: 1338 | I31: 0.02 | J31: 0.01 | K31: Y | L31: ( Sild )
A32: DNK | B32: 2013-2015 | C32: Clupea harengus | D32: North Sea and Eastern Arctic | E32: ICES | F32: I, II | G32: Y | H32: 12926 | I32: 0.34 | J32: 0.45 | K32: N | L32: ( Sild )
A33: DNK | B33: 2013-2015 | C33: Clupea harengus | D33: North Atlantic | E33: ICES | F33: VIa S, VIIbc | G33: N | H33: 80 | I33: - | J33: 0 | K33: Y | L33: ( Sild )
A34: DNK | B34: 2013-2015 | C34: Clupea harengus | D34: Baltic Sea | E34: ICES | F34: 30 | G34: N | H34: - | I34: - | J34: - | K34: - | L34: ( Sild )
A35: DNK | B35: 2013-2015 | C35: Clupea harengus | D35: North Atlantic | E35: ICES | F35: VIa | G35: N | H35: 80 | I35: 0 | J35: 0 | K35: Y | L35: ( Sild )
A36: DNK | B36: 2013-2015 | C36: Clupea harengus | D36: Baltic Sea | E36: ICES | F36: 31 | G36: N | H36: - | I36: - | J36: - | K36: - | L36: ( Sild )
A37: DNK | B37: 2013-2015 | C37: Clupea harengus | D37: North Atlantic | E37: ICES | F37: VIIj | G37: N | H37: - | I37: 0 | J37: 0 | K37: Y | L37: ( Sild )
A38: DNK | B38: 2013-2015 | C38: Clupea harengus | D38: Baltic Sea | E38: ICES | F38: 22-24 | G38: Y | H38: 4003 | I38: 0.14 | J38: 0.19 | K38: N | L38: ( Sild ) | M38: Landings has increased by 275% since the reference year
A39: DNK | B39: 2013-2015 | C39: Clupea harengus | D39: Baltic Sea | E39: ICES | F39: Gulf of Riga | G39: N | H39: - | I39: - | J39: - | K39: - | L39: ( Sild )
A40: DNK | B40: 2013-2015 | C40: Clupea harengus | D40: North Sea and Eastern Arctic | E40: ICES | F40: IIIa | G40: Y | H40: 6549 | I40: 0.48 | J40: 0.28 | K40: N | L40: ( Sild ) | M40: landings has decreased by more than 50% since the reference years
A41: DNK | B41: 2013-2015 | C41: Conger conger | D41: North Atlantic | E41: ICES | F41: X | G41: N | H41: - | I41: - | J41: - | K41: - | L41: ( Almindelig havål )
A42: DNK | B42: 2013-2015 | C42: Conger conger | D42: North Atlantic | E42: ICES | F42: all areas, excluding X | G42: N | H42: - | I42: - | J42: - | K42: - | L42: ( Almindelig havål )
A43: DNK | B43: 2013-2015 | C43: Coregonus albula | D43: Baltic Sea | E43: ICES | F43: 22-32 | G43: N | H43: - | I43: - | J43: - | K43: -
A44: DNK | B44: 2013-2015 | C44: Coregonus lavaretus | D44: Baltic Sea | E44: ICES | F44: IIId | G44: N | H44: - | I44: - | J44: - | K44: - | L44: ( Helt )
A45: DNK | B45: 2013-2015 | C45: Coryphaenoides rupestris | D45: North Sea and Eastern Arctic | E45: ICES | F45: IIIa | G45: N | H45: 1 | I45: - | J45: 0.73 | K45: Y | L45: ( Skolæst )
A46: DNK | B46: 2013-2015 | C46: Coryphaenoides rupestris | D46: North Atlantic | E46: ICES | F46: all areas | G46: N | H46: - | I46: - | J46: - | K46: - | L46: ( Skolæst )
A47: DNK | B47: 2013-2015 | C47: Crangon crangon | D47: North Sea and Eastern Arctic | E47: ICES | F47: IV, VIId | G47: Y | H47: 2679 | I47: - | J47: 0.07 | K47: Y | L47: Selected due to the very high discard pattern in this fishery
A48: DNK | B48: 2013-2015 | C48: Dalatias licha | D48: North Atlantic | E48: ICES | F48: All areas | G48: N | H48: - | I48: - | J48: - | K48: -
A49: DNK | B49: 2013-2015 | C49: Dasyatis pastinaca | D49: North Atlantic | E49: ICES | F49: VII, VIII | G49: N | H49: - | I49: - | J49: - | K49: -
A50: DNK | B50: 2013-2015 | C50: Deania calcea | D50: North Atlantic | E50: ICES | F50: V, VI, VII, IX, X, XII | G50: N | H50: - | I50: - | J50: - | K50: -
A51: DNK | B51: 2013-2015 | C51: Dicentrarchus labrax | D51: North Sea and Eastern Arctic | E51: ICES | F51: IV, VIId | G51: N | H51: 2 | I51: - | J51: 0 | K51: Y | L51: ( Bars )
A52: DNK | B52: 2013-2015 | C52: Dicentrarchus labrax | D52: North Atlantic | E52: ICES | F52: all areas, excluding IX | G52: N | H52: - | I52: - | J52: - | K52: - | L52: ( Bars )
A53: DNK | B53: 2013-2015 | C53: Dicentrarchus labrax | D53: North Atlantic | E53: ICES | F53: IX | G53: N | H53: - | I53: - | J53: - | K53: - | L53: ( Bars )
A54: DNK | B54: 2013-2015 | C54: Dicologlossa cuneata | D54: North Atlantic | E54: ICES | F54: VIIIc, IX | G54: N | H54: - | I54: - | J54: - | K54: -
A55: DNK | B55: 2013-2015 | C55: Engraulis encrasicolus | D55: North Atlantic | E55: ICES | F55: VIII | G55: N | H55: - | I55: - | J55: - | K55: - | L55: ( Ansjos )
A56: DNK | B56: 2013-2015 | C56: Engraulis encrasicolus | D56: North Atlantic | E56: ICES | F56: IXa (only Cádiz) | G56: N | H56: - | I56: - | J56: - | K56: - | L56: ( Ansjos )
A57: DNK | B57: 2013-2015 | C57: Etmopterus spinax | D57: North Atlantic | E57: ICES | F57: VI, VII, VIII | G57: N | H57: - | I57: - | J57: - | K57: - | L57: ( Sorthaj )
A58: DNK | B58: 2013-2015 | C58: Eutrigla gurnardus | D58: North Sea and Eastern Arctic | E58: ICES | F58: IV | G58: Y | H58: 410 | I58: - | J58: 0.46 | K58: N | L58: ( Grå knurhane ) | M58: Landings has decreased by 98% since the reference year
A59: DNK | B59: 2013-2015 | C59: Eutrigla gurnardus | D59: North Atlantic | E59: ICES | F59: VIId,e | G59: N | H59: - | I59: - | J59: - | K59: - | L59: ( Grå knurhane )
A60: DNK | B60: 2013-2015 | C60: Eutrigla gurnardus | D60: North Sea and Eastern Arctic | E60: ICES | F60: IIIa | G60: N | H60: 6 | I60: - | J60: 0.79 | K60: Y | L60: ( Grå knurhane )
A61: DNK | B61: 2013-2015 | C61: Gadus morhua | D61: North Sea and Eastern Arctic | E61: ICES | F61: IIIaS | G61: Y | H61: 67 | I61: 0.62 | J61: 0.67 | K61: Y | L61: Selected due to the very low status of the stock and that the stock is under rebuilding and needs to be monitered
A62: DNK | B62: 2013-2015 | C62: Gadus morhua | D62: North Atlantic | E62: ICES | F62: VIIa | G62: N | H62: - | I62: - | J62: - | K62: - | L62: ( Torsk )
A63: DNK | B63: 2013-2015 | C63: Gadus morhua | D63: Baltic Sea | E63: ICES | F63: 25-32 | G63: Y | H63: 7056 | I63: 0.23 | J63: 0.24 | K63: N | L63: ( Torsk )
A64: DNK | B64: 2013-2015 | C64: Gadus morhua | D64: North Atlantic | E64: ICES | F64: Vb | G64: N | H64: - | I64: - | J64: - | K64: - | L64: ( Torsk )
A65: DNK | B65: 2013-2015 | C65: Gadus morhua | D65: North Atlantic | E65: ICES | F65: VIb | G65: N | H65: - | I65: - | J65: - | K65: - | L65: ( Torsk )
A66: DNK | B66: 2013-2015 | C66: Gadus morhua | D66: North Sea and Eastern Arctic | E66: ICES | F66: I, II | G66: N | H66: 79 | I66: - | J66: 0 | K66: Y | L66: ( Torsk )
A67: DNK | B67: 2013-2015 | C67: Gadus morhua | D67: North Atlantic | E67: ICES | F67: VIa | G67: N | H67: - | I67: - | J67: - | K67: - | L67: ( Torsk )
A68: DNK | B68: 2013-2015 | C68: Gadus morhua | D68: North Atlantic | E68: ICES | F68: VIIe-k | G68: N | H68: - | I68: - | J68: - | K68: - | L68: ( Torsk )
A69: DNK | B69: 2013-2015 | C69: Gadus morhua | D69: Baltic Sea | E69: ICES | F69: 22-24 | G69: Y | H69: 7161 | I69: 0.44 | J69: 0.53 | K69: N | L69: ( Torsk )
A70: DNK | B70: 2013-2015 | C70: Gadus morhua | D70: North Atlantic | E70: ICES | F70: Va | G70: N | H70: - | I70: - | J70: - | K70: - | L70: ( Torsk )
A71: DNK | B71: 2013-2015 | C71: Gadus morhua | D71: North Sea and Eastern Arctic | E71: ICES | F71: IV, VIId | G71: Y | H71: 5340 | I71: 0.19 | J71: 0.21 | K71: N | L71: ( Torsk )
A72: DNK | B72: 2013-2015 | C72: Gadus morhua | D72: North Sea and Eastern Arctic | E72: ICES | F72: IIIaN | G72: Y | H72: 3266 | I72: 0.83 | J72: 0.83 | K72: N | L72: ( Torsk ) | Landing figures from ICES, since it is not possible to distingush between IIIaS and IIIaN in EUROSTAT.
A73: DNK | B73: 2013-2015 | C73: Glyptocephalus cynoglossus | D73: North Atlantic | E73: ICES | F73: VI, VII | G73: N | H73: - | I73: - | J73: - | K73: - | L73: ( Skærising )
A74: DNK | B74: 2013-2015 | C74: Glyptocephalus cynoglossus | D74: North Sea and Eastern Arctic | E74: ICES | F74: IV | G74: Y | H74: 260 | I74: 0.15 | J74: 0.29 | K74: N | L74: ( Skærising ) | Combined with area IIIa for sampling, since stock covers both areas
A75: DNK | B75: 2013-2015 | C75: Glyptocephalus cynoglossus | D75: North Sea and Eastern Arctic | E75: ICES | F75: IIIa | G75: Y | H75: 1007 | I75: - | J75: 0.81 | K75: N | L75: ( Skærising ) | Combined with area IV for sampling, since stock covers both areas
A76: DNK | B76: 2013-2015 | C76: Helicolenus dactylopterus | D76: North Atlantic | E76: ICES | F76: all areas | G76: N | H76: - | I76: - | J76: - | K76: -
A77: DNK | B77: 2013-2015 | C77: Helicolenus dactylopterus | D77: North Sea and Eastern Arctic | E77: ICES | F77: IV | G77: N | H77: - | I77: - | J77: - | K77: -
A78: DNK | B78: 2013-2015 | C78: Hippoglossus hippoglossus | D78: North Atlantic | E78: ICES | F78: V, XIV | G78: N | H78: - | I78: - | J78: - | K78: - | L78: ( Helleflynder )
A79: DNK | B79: 2013-2015 | C79: Homarus gammarus | D79: North Atlantic | E79: ICES | F79: all areas | G79: N | H79: - | I79: - | J79: - | K79: - | L79: ( Alm. Hummer )
A80: DNK | B80: 2013-2015 | C80: Hoplostethus atlanticus | D80: North Atlantic | E80: ICES | F80: all areas | G80: N | H80: - | I80: - | J80: - | K80: - | L80: ( Orange Savbug )
A81: DNK | B81: 2013-2015 | C81: Lepidopus caudatus | D81: North Atlantic | E81: ICES | F81: IXa | G81: N | H81: - | I81: - | J81: - | K81: - | L81: ( Strømpebåndsfisk )
A82: DNK | B82: 2013-2015 | C82: Lepidorhombus boscii | D82: North Sea and Eastern Arctic | E82: ICES | F82: IV, VIId | G82: N | H82: - | I82: 0 | J82: 0 | K82: Y
A83: DNK | B83: 2013-2015 | C83: Lepidorhombus boscii | D83: North Atlantic | E83: ICES | F83: VIIIc, IXa | G83: N | H83: - | I83: - | J83: - | K83: -
A84: DNK | B84: 2013-2015 | C84: Lepidorhombus whiffiagonis | D84: North Atlantic | E84: ICES | F84: VI | G84: N | H84: - | I84: - | J84: - | K84: - | L84: ( Glashvarre )
A85: DNK | B85: 2013-2015 | C85: Lepidorhombus whiffiagonis | D85: North Atlantic | E85: ICES | F85: VIIIc, IXa | G85: N | H85: - | I85: - | J85: - | K85: - | L85: ( Glashvarre )
A86: DNK | B86: 2013-2015 | C86: Lepidorhombus whiffiagonis | D86: North Sea and Eastern Arctic | E86: ICES | F86: IV, VIId | G86: N | H86: 37 | I86: 0 | J86: 0.75 | K86: Y | L86: ( Glashvarre )
A87: DNK | B87: 2013-2015 | C87: Lepidorhombus whiffiagonis | D87: North Atlantic | E87: ICES | F87: VII, VIIIabd | G87: N | H87: - | I87: - | J87: - | K87: - | L87: ( Glashvarre )
A88: DNK | B88: 2013-2015 | C88: Limanda limanda | D88: North Atlantic | E88: ICES | F88: VIIa,f-h | G88: N | H88: - | I88: - | J88: - | K88: - | L88: ( Ising )
A89: DNK | B89: 2013-2015 | C89: Limanda limanda | D89: Baltic Sea | E89: ICES | F89: 22-32 | G89: Y | H89: 399 | I89: - | J89: 0.31 | K89: N | L89: ( Ising )
A90: DNK | B90: 2013-2015 | C90: Limanda limanda | D90: North Atlantic | E90: ICES | F90: VIIe | G90: N | H90: - | I90: - | J90: - | K90: - | L90: ( Ising )
A91: DNK | B91: 2013-2015 | C91: Limanda limanda | D91: North Sea and Eastern Arctic | E91: ICES | F91: IV, VIId | G91: Y | H91: 468 | I91: 0.1 | J91: 0.08 | K91: N | L91: ( Ising ) | Combined with area IIIa for sampling, since stock covers both areas
A92: DNK | B92: 2013-2015 | C92: Limanda limanda | D92: North Sea and Eastern Arctic | E92: ICES | F92: IIIa | G92: Y | H92: 636 | I92: - | J92: 0.78 | K92: N | L92: ( Ising ) | Combined with area IV for sampling, since stock covers both areas
A93: DNK | B93: 2013-2015 | C93: Loligo vulgaris | D93: North Atlantic | E93: ICES | F93: VIIIc, IXa | G93: N | H93: - | I93: - | J93: - | K93: - | L93: ( Europæisk loligoblæksprutte )
A94: DNK | B94: 2013-2015 | C94: Loligo vulgaris | D94: North Atlantic | E94: ICES | F94: all areas, excluding VIIIc, IXa | G94: N | H94: - | I94: - | J94: - | K94: - | L94: ( Europæisk loligoblæksprutte )
A95: DNK | B95: 2013-2015 | C95: Lophius budegassa | D95: North Atlantic | E95: ICES | F95: VIIb-k, VIIIabd | G95: N | H95: - | I95: - | J95: - | K95: -
A96: DNK | B96: 2013-2015 | C96: Lophius budegassa | D96: North Atlantic | E96: ICES | F96: VIIIc, IXa | G96: N | H96: - | I96: - | J96: - | K96: -
A97: DNK | B97: 2013-2015 | C97: Lophius budegassa | D97: North Sea and Eastern Arctic | E97: ICES | F97: IV, VIId | G97: N | H97: - | I97: 0.17 | J97: 0 | K97: Y
A98: DNK | B98: 2013-2015 | C98: Lophius budegassa | D98: North Atlantic | E98: ICES | F98: IV, VI | G98: N | H98: - | I98: 0.12 | J98: 0 | K98: Y
A99: DNK | B99: 2013-2015 | C99: Lophius piscatorius | D99: North Sea and Eastern Arctic | E99: ICES | F99: IV | G99: Y | H99: 1171 | I99: 0.17 | J99: 0.93 | K99: N | L99: ( Havtaske )
A100: DNK | B100: 2013-2015 | C100: Lophius piscatorius | D100: North Atlantic | E100: ICES | F100: VIIb-k, VIIIabd | G100: N | H100: - | I100: - | J100: - | K100: - | L100: ( Havtaske )
A101: DNK | B101: 2013-2015 | C101: Lophius piscatorius | D101: North Atlantic | E101: ICES | F101: VIIIc, IXa | G101: N | H101: - | I101: - | J101: - | K101: - | L101: ( Havtaske )
A102: DNK | B102: 2013-2015 | C102: Lophius piscatorius | D102: North Atlantic | E102: ICES | F102: IV, VI | G102: N | H102: 1171 | I102: 0.05 | J102: 0.71 | K102: Y | L102: ( Havtaske )
A103: DNK | B103: 2013-2015 | C103: Macrourus berglax | D103: North Sea and Eastern Arctic | E103: ICES | F103: IV | G103: N | H103: - | I103: - | J103: - | K103: -
A104: DNK | B104: 2013-2015 | C104: Maja squinado | D104: North Atlantic | E104: ICES | F104: V, VI,VII | G104: N | H104: - | I104: - | J104: - | K104: -
A105: DNK | B105: 2013-2015 | C105: Mallotus villosus | D105: North Sea and Eastern Arctic | E105: ICES | F105: I, II | G105: N | H105: - | I105: - | J105: - | K105: - | L105: ( Lodde )
A106: DNK | B106: 2013-2015 | C106: Mallotus villosus | D106: North Atlantic | E106: ICES | F106: XIV | G106: Y | H106: 3218 | I106: - | J106: 1 | K106: N | L106: ( Lodde ) | M106: last Danish landings for this stock was in 2014
A107: DNK | B107: 2013-2015 | C107: Melanogrammus aeglefinus | D107: North Atlantic | E107: ICES | F107: VIIa | G107: N | H107: - | I107: - | J107: - | K107: - | L107: ( Kuller )
A108: DNK | B108: 2013-2015 | C108: Melanogrammus aeglefinus | D108: North Atlantic | E108: ICES | F108: VIIb-k | G108: N | H108: - | I108: - | J108: - | K108: - | L108: ( Kuller )
A109: DNK | B109: 2013-2015 | C109: Melanogrammus aeglefinus | D109: North Sea and Eastern Arctic | E109: ICES | F109: I, II | G109: N | H109: 7 | I109: - | J109: 0 | K109: Y | L109: ( Kuller )
A110: DNK | B110: 2013-2015 | C110: Melanogrammus aeglefinus | D110: North Atlantic | E110: ICES | F110: VIa | G110: N | H110: - | I110: - | J110: - | K110: - | L110: ( Kuller )
A111: DNK | B111: 2013-2015 | C111: Melanogrammus aeglefinus | D111: North Atlantic | E111: ICES | F111: Vib | G111: N | H111: - | I111: - | J111: - | K111: - | L111: ( Kuller )
A112: DNK | B112: 2013-2015 | C112: Melanogrammus aeglefinus | D112: North Atlantic | E112: ICES | F112: Vb | G112: N | H112: - | I112: - | J112: - | K112: - | L112: ( Kuller )
A113: DNK | B113: 2013-2015 | C113: Melanogrammus aeglefinus | D113: North Atlantic | E113: ICES | F113: Va | G113: N | H113: - | I113: - | J113: - | K113: - | L113: ( Kuller )
A114: DNK | B114: 2013-2015 | C114: Melanogrammus aeglefinus | D114: North Sea and Eastern Arctic | E114: ICES | F114: IIIa | G114: Y | H114: 1426 | I114: 0.84 | J114: 0.82 | K114: N | L114: ( Kuller ) | Combined with area IV for sampling, since stock covers both areas
A115: DNK | B115: 2013-2015 | C115: Melanogrammus aeglefinus | D115: North Sea and Eastern Arctic | E115: ICES | F115: IV | G115: Y | H115: 1268 | I115: 0.05 | J115: 0.04 | K115: Y | L115: ( Kuller ) | Selected and combined with IIIa for sampling, since stock covers both areas
A116: DNK | B116: 2013-2015 | C116: Merlangius merlangus | D116: North Atlantic | E116: ICES | F116: VIII | G116: N | H116: - | I116: - | J116: - | K116: - | L116: ( Hvilling )
A117: DNK | B117: 2013-2015 | C117: Merlangius merlangus | D117: North Atlantic | E117: ICES | F117: Vb | G117: N | H117: - | I117: - | J117: - | K117: - | L117: ( Hvilling )
A118: DNK | B118: 2013-2015 | C118: Merlangius merlangus | D118: North Atlantic | E118: ICES | F118: IX, X | G118: N | H118: - | I118: - | J118: - | K118: - | L118: ( Hvilling )
A119: DNK | B119: 2013-2015 | C119: Merlangius merlangus | D119: North Atlantic | E119: ICES | F119: VIIe-k | G119: N | H119: - | I119: - | J119: - | K119: - | L119: ( Hvilling )
A120: DNK | B120: 2013-2015 | C120: Merlangius merlangus | D120: North Atlantic | E120: ICES | F120: VIa | G120: N | H120: - | I120: - | J120: - | K120: - | L120: ( Hvilling )
A121: DNK | B121: 2013-2015 | C121: Merlangius merlangus | D121: North Atlantic | E121: ICES | F121: VIIa | G121: N | H121: - | I121: - | J121: - | K121: - | L121: ( Hvilling )
A122: DNK | B122: 2013-2015 | C122: Merlangius merlangus | D122: North Sea and Eastern Arctic | E122: ICES | F122: IV, VIId | G122: N | H122: 886 | I122: 0.09 | J122: 0.05 | K122: Y | L122: ( Hvilling )
A123: DNK | B123: 2013-2015 | C123: Merlangius merlangus | D123: North Sea and Eastern Arctic | E123: ICES | F123: IIIa | G123: Y | H123: 242 | I123: 0.9 | J123: 0.79 | K123: N | L123: ( Hvilling )
A124: DNK | B124: 2013-2015 | C124: Merlangius merlangus | D124: North Atlantic | E124: ICES | F124: VIb | G124: N | H124: - | I124: - | J124: - | K124: - | L124: ( Hvilling )
A125: DNK | B125: 2013-2015 | C125: Merluccius merluccius | D125: North Atlantic | E125: ICES | F125: VIIIc, IXa | G125: N | H125: - | I125: - | J125: - | K125: - | L125: ( Kulmule )
A126: DNK | B126: 2013-2015 | C126: Merluccius merluccius | D126: North Atlantic | E126: ICES | F126: IIIa, IV, VI, VII, VIIIab | G126: Y | H126: 3376 | I126: - | J126: 0.04 | K126: Y | L126: ( Kulmule ) | Selected, since these areas corresponds with the stock
A127: DNK | B127: 2013-2015 | C127: Merluccius merluccius | D127: North Sea and Eastern Arctic | E127: ICES | F127: IIIa | G127: N | H127: 268 | I127: 0.92 | J127: 0.88 | K127: N | L127: ( Kulmule ) | Unselected, since areas are covered in the North Atlantic
A128: DNK | B128: 2013-2015 | C128: Merluccius merluccius | D128: North Sea and Eastern Arctic | E128: ICES | F128: IV VII | G128: N | H128: 3104 | I128: 0.58 | J128: 0.07 | K128: N | L128: ( Kulmule ) | Unselected, since areas are covered in the North Atlantic
A129: DNK | B129: 2013-2015 | C129: Microchirus variegatus | D129: North Atlantic | E129: ICES | F129: all areas | G129: N | H129: - | I129: - | J129: - | K129: -
A130: DNK | B130: 2013-2015 | C130: Micromesistius poutassou | D130: North Atlantic | E130: ICES | F130: I-IX, XII, XIV | G130: Y | H130: 27379 | I130: 0.15 | J130: 0.15 | K130: N | L130: ( Blåhvilling )
A131: DNK | B131: 2013-2015 | C131: Micromesistius poutassou | D131: North Sea and Eastern Arctic | E131: ICES | F131: IIIa | G131: N | H131: 16 | I131: 0.15 | J131: 0.69 | K131: Y | L131: ( Blåhvilling )
A132: DNK | B132: 2013-2015 | C132: Micromesistius poutassou | D132: North Sea and Eastern Arctic | E132: ICES | F132: I, II | G132: N | H132: 160 | I132: 0.15 | J132: 0.25 | K132: Y | L132: ( Blåhvilling )
A133: DNK | B133: 2013-2015 | C133: Micromesistius poutassou | D133: North Sea and Eastern Arctic | E133: ICES | F133: IV, VIId | G133: N | H133: 407 | I133: 0.15 | J133: 0.16 | K133: N | L133: ( Blåhvilling ) | Unselected, since areas are covered in the North Atlantic
A134: DNK | B134: 2013-2015 | C134: Microstomus kitt | D134: North Atlantic | E134: ICES | F134: all areas | G134: N | H134: - | I134: - | J134: - | K134: - | L134: ( Rødtunge )
A135: DNK | B135: 2013-2015 | C135: Microstomus kitt | D135: North Sea and Eastern Arctic | E135: ICES | F135: IV, VIId | G135: Y | H135: 690 | I135: 0.15 | J135: 0.21 | K135: N | L135: ( Rødtunge ) | Area IIIa included for sampling, since stock covers this area as well
A136: DNK | B136: 2013-2015 | C136: Molva dypterygia | D136: North Atlantic | E136: ICES | F136: all areas, excluding X | G136: N | H136: - | I136: - | J136: - | K136: - | L136: ( Byrkelange (Blålange) )
A137: DNK | B137: 2013-2015 | C137: Molva dypterygia | D137: North Sea and Eastern Arctic | E137: ICES | F137: IV | G137: N | H137: - | I137: 0.08 | J137: 0.02 | K137: Y | L137: ( Byrkelange (Blålange) )
A138: DNK | B138: 2013-2015 | C138: Molva macrophthalma | D138: North Atlantic | E138: ICES | F138: X | G138: N | H138: - | I138: - | J138: - | K138: -
A139: DNK | B139: 2013-2015 | C139: Molva molva | D139: North Atlantic | E139: ICES | F139: all areas | G139: N | H139: - | I139: 0 | J139: 0 | K139: Y | L139: ( Lange )
A140: DNK | B140: 2013-2015 | C140: Molva molva | D140: North Sea and Eastern Arctic | E140: ICES | F140: IV | G140: Y | H140: 495 | I140: 0.32 | J140: 0.17 | K140: N | L140: ( Lange ) | Area IIIa included for sampling, since stock covers this area as well
A141: DNK | B141: 2013-2015 | C141: Mullus barbatus | D141: North Sea and Eastern Arctic | E141: ICES | F141: IV, VIId | G141: N | H141: - | I141: - | J141: - | K141: -
A142: DNK | B142: 2013-2015 | C142: Mullus surmuletus | D142: North Sea and Eastern Arctic | E142: ICES | F142: IV, VIId | G142: N | H142: - | I142: - | J142: - | K142: - | L142: ( Mulle )
A143: DNK | B143: 2013-2015 | C143: Mullus surmuletus | D143: North Atlantic | E143: ICES | F143: all areas | G143: N | H143: - | I143: - | J143: - | K143: - | L143: ( Mulle )
A144: DNK | B144: 2013-2015 | C144: Mustelus asterias | D144: North Atlantic | E144: ICES | F144: VI, VII, VIII, IX | G144: N | H144: - | I144: - | J144: - | K144: -
A145: DNK | B145: 2013-2015 | C145: Mustelus mustelus | D145: North Atlantic | E145: ICES | F145: VI, VII, VIII, IX | G145: N | H145: - | I145: - | J145: - | K145: -
A146: DNK | B146: 2013-2015 | C146: Mustelus punctulatus | D146: North Atlantic | E146: ICES | F146: VI, VII, VIII, IX | G146: N | H146: - | I146: - | J146: - | K146: -
A147: DNK | B147: 2013-2015 | C147: Nephrops norvegicus | D147: North Atlantic | E147: ICES | F147: functional unit 16 (TAC FU16) | G147: N | H147: - | I147: - | J147: - | K147: - | L147: ( Jomfruhummer )
A148: DNK | B148: 2015 | C148: Nephrops norvegicus | D148: North Sea and Eastern Arctic | E148: ICES | F148: functional unit 3-4 | G148: Y | H148: 2584 | I148: - | J148: 0.69 | K148: N | L148: ( Jomfruhummer )
A149: DNK | B149: 2015 | C149: Nephrops norvegicus | D149: North Atlantic | E149: ICES | F149: functional unit 14 | G149: N | H149: - | I149: - | J149: - | K149: - | L149: ( Jomfruhummer )
A150: DNK | B150: 2015 | C150: Nephrops norvegicus | D150: North Sea and Eastern Arctic | E150: ICES | F150: functional units 8 | G150: N | H150: - | I150: - | J150: 0 | K150: Y | L150: ( Jomfruhummer )
A151: DNK | B151: 2015 | C151: Nephrops norvegicus | D151: North Atlantic | E151: ICES | F151: functional unit 17 | G151: N | H151: - | I151: - | J151: - | K151: - | L151: ( Jomfruhummer )
A152: DNK | B152: 2015 | C152: Nephrops norvegicus | D152: North Atlantic | E152: ICES | F152: functional unit 15 | G152: N | H152: - | I152: - | J152: - | K152: - | L152: ( Jomfruhummer )
A153: DNK | B153: 2015 | C153: Nephrops norvegicus | D153: North Sea and Eastern Arctic | E153: ICES | F153: functional units 7 | G153: N | H153: 3 | I153: - | J153: 0 | K153: Y | L153: ( Jomfruhummer )
A154: DNK | B154: 2015 | C154: Nephrops norvegicus | D154: North Atlantic | E154: ICES | F154: fuctional unit 11 | G154: N | H154: - | I154: - | J154: - | K154: - | L154: ( Jomfruhummer )
A155: DNK | B155: 2015 | C155: Nephrops norvegicus | D155: North Atlantic | E155: ICES | F155: fuctional unit 13 | G155: N | H155: - | I155: - | J155: - | K155: - | L155: ( Jomfruhummer )
A156: DNK | B156: 2013-2015 | C156: Nephrops norvegicus | D156: North Atlantic | E156: ICES | F156: functional unit 18 (TAC VII) | G156: N | H156: - | I156: - | J156: - | K156: - | L156: ( Jomfruhummer )
A157: DNK | B157: 2015 | C157: Nephrops norvegicus | D157: North Sea and Eastern Arctic | E157: ICES | F157: functional units 9 | G157: N | H157: - | I157: - | J157: 0 | K157: Y | L157: ( Jomfruhummer )
A158: DNK | B158: 2015 | C158: Nephrops norvegicus | D158: North Sea and Eastern Arctic | E158: ICES | F158: functional units 34 | G158: N | H158: - | I158: - | J158: 0 | K158: Y | L158: ( Jomfruhummer )
A159: DNK | B159: 2015 | C159: Nephrops norvegicus | D159: North Atlantic | E159: ICES | F159: functional unit 26-27, 28-29, 30 | G159: N | H159: - | I159: - | J159: - | K159: - | L159: ( Jomfruhummer )
A160: DNK | B160: 2015 | C160: Nephrops norvegicus | D160: North Atlantic | E160: ICES | F160: fuctional unit 12 | G160: N | H160: - | I160: - | J160: - | K160: - | L160: ( Jomfruhummer )
A161: DNK | B161: 2013-2015 | C161: Nephrops norvegicus | D161: North Atlantic | E161: ICES | F161: functional unit 20-21 (TAC VII) | G161: N | H161: - | I161: - | J161: - | K161: - | L161: ( Jomfruhummer )
A162: DNK | B162: 2015 | C162: Nephrops norvegicus | D162: North Sea and Eastern Arctic | E162: ICES | F162: functional units 10 | G162: N | H162: - | I162: - | J162: 0 | K162: Y | L162: ( Jomfruhummer )
A163: DNK | B163: 2015 | C163: Nephrops norvegicus | D163: North Atlantic | E163: ICES | F163: functional unit 25, 31 | G163: N | H163: - | I163: - | J163: - | K163: - | L163: ( Jomfruhummer )
A164: DNK | B164: 2013-2015 | C164: Nephrops norvegicus | D164: North Atlantic | E164: ICES | F164: functional unit 19 (TAC VII) | G164: N | H164: - | I164: - | J164: - | K164: - | L164: ( Jomfruhummer )
A165: DNK | B165: 2015 | C165: Nephrops norvegicus | D165: North Atlantic | E165: ICES | F165: functional unit 23, 24 | G165: N | H165: - | I165: - | J165: - | K165: - | L165: ( Jomfruhummer )
A166: DNK | B166: 2015 | C166: Nephrops norvegicus | D166: North Sea and Eastern Arctic | E166: ICES | F166: functional units 6 | G166: N | H166: - | I166: - | J166: 0 | K166: Y | L166: ( Jomfruhummer )
A167: DNK | B167: 2015 | C167: Nephrops norvegicus | D167: North Atlantic | E167: ICES | F167: functional unit 22 | G167: N | H167: - | I167: - | J167: - | K167: - | L167: ( Jomfruhummer )
A168: DNK | B168: 2015 | C168: Nephrops norvegicus | D168: North Sea and Eastern Arctic | E168: ICES | F168: functional units 33 (TAC IIa, VI) | G168: Y | H168: 124 | I168: 0.05 | J168: 0.37 | K168: Y | L168: ( Jomfruhummer ) | TAC covers all of VI. Selected for sampling due to high pct. of landings. Landing figures from ICES/WGNSSK report.
A169: DNK | B169: 2015 | C169: Nephrops norvegicus | D169: North Sea and Eastern Arctic | E169: ICES | F169: functional units 32 (TAC IIa, IV) | G169: Y | H169: 37 | I169: 0.05 | J169: 1 | K169: Y | L169: ( Jomfruhummer ) | TAC covers all of VI. Selected for sampling due to high pct. of landings. Landing figures from ICES/WGNSSK report.
A170: DNK | B170: 2013-2015 | C170: Octopus vulgaris | D170: North Atlantic | E170: ICES | F170: all areas, excluding VIIIc, IXa | G170: N | H170: - | I170: - | J170: - | K170: -
A171: DNK | B171: 2013-2015 | C171: Octopus vulgaris | D171: North Atlantic | E171: ICES | F171: VIIIc, IXa | G171: N | H171: - | I171: - | J171: - | K171: -
A172: DNK | B172: 2013-2015 | C172: Pagellus bogaraveo | D172: North Atlantic | E172: ICES | F172: IXa, X | G172: N | H172: - | I172: - | J172: - | K172: - | L172: ( Spidstandet Blankesten )
A173: DNK | B173: 2013-2015 | C173: Pandalus borealis | D173: North Sea and Eastern Arctic | E173: ICES | F173: IVa | G173: N | H173: 89 | I173: 0.74 | J173: 0.45 | K173: Y | L173: ( Dybvandsrejer )
A174: DNK | B174: 2013-2015 | C174: Pandalus borealis | D174: North Sea and Eastern Arctic | E174: ICES | F174: I, II | G174: Y | H174: 495 | I174: 0.74 | J174: 0.08 | K174: N | L174: ( Dybvandsrejer )
A175: DNK | B175: 2013-2015 | C175: Pandalus borealis | D175: North Sea and Eastern Arctic | E175: ICES | F175: IIIa | G175: Y | H175: 2238 | I175: 0.65 | J175: 0.65 | K175: N | L175: ( Dybvandsrejer ) | Combined with area IVa for sampling, since stock and sampling covers the fishery the Norway Depp
A176: DNK | B176: 2013-2015 | C176: Pandalus borealis | D176: North Sea and Eastern Arctic | E176: ICES | F176: IV | G176: Y | H176: 89 | I176: 0.74 | J176: 0.44 | K176: Y | L176: ( Dybvandsrejer ) | Selected and combined with IIIa for sampling, since stock and sampling covers the fishery the Norway Depp
A177: DNK | B177: 2013-2015 | C177: Pandalus spp | D177: North Atlantic | E177: ICES | F177: all areas | G177: N | H177: 122 | I177: - | J177: 0.17 | K177: Y
A178: DNK | B178: 2013-2015 | C178: Parapenaeus longirostris | D178: North Atlantic | E178: ICES | F178: IXa | G178: N | H178: - | I178: - | J178: - | K178: -
A179: DNK | B179: 2013-2015 | C179: Pecten maximus | D179: North Atlantic | E179: ICES | F179: IV, VI, VII | G179: N | H179: - | I179: - | J179: - | K179: - | L179: ( Kammusling )
A180: DNK | B180: 2013-2015 | C180: Pecten maximus | D180: North Sea and Eastern Arctic | E180: ICES | F180: VIId | G180: N | H180: - | I180: - | J180: - | K180: - | L180: ( Kammusling )
A181: DNK | B181: 2013-2015 | C181: Perca fluviatilis | D181: Baltic Sea | E181: ICES | F181: IIId | G181: N | H181: 20 | I181: - | J181: 0 | K181: Y | L181: ( Aborre )
A182: DNK | B182: 2013-2015 | C182: Phycis blennoides | D182: North Atlantic | E182: ICES | F182: all areas | G182: N | H182: - | I182: - | J182: - | K182: - | L182: ( Skælbrosme )
A183: DNK | B183: 2013-2015 | C183: Phycis blennoides | D183: North Sea and Eastern Arctic | E183: ICES | F183: IV | G183: N | H183: 8 | I183: - | J183: 0.73 | K183: Y | L183: ( Skælbrosme )
A184: DNK | B184: 2013-2015 | C184: Phycis phycis | D184: North Atlantic | E184: ICES | F184: all areas | G184: N | H184: - | I184: - | J184: - | K184: -
A185: DNK | B185: 2013-2015 | C185: Phycis phycis | D185: North Sea and Eastern Arctic | E185: ICES | F185: IV | G185: N | H185: - | I185: - | J185: - | K185: -
A186: DNK | B186: 2013-2015 | C186: Platichthys flesus | D186: North Sea and Eastern Arctic | E186: ICES | F186: IV | G186: N | H186: 99 | I186: 0.1 | J186: 0.05 | K186: Y | L186: ( Skrubbe )
A187: DNK | B187: 2013-2015 | C187: Platichthys flesus | D187: Baltic Sea | E187: ICES | F187: 22-32 | G187: Y | H187: 2559 | I187: - | J187: 0.15 | K187: N | L187: ( Skrubbe ) | M187: Landings has decreased by 70% since the reference year
A188: DNK | B188: 2013-2015 | C188: Pleuronectes platessa | D188: North Atlantic | E188: ICES | F188: VIIh-k | G188: N | H188: - | I188: - | J188: - | K188: - | L188: ( Rødspætte )
A189: DNK | B189: 2013-2015 | C189: Pleuronectes platessa | D189: North Atlantic | E189: ICES | F189: VIIfg | G189: N | H189: - | I189: - | J189: - | K189: - | L189: ( Rødspætte )
A190: DNK | B190: 2013-2015 | C190: Pleuronectes platessa | D190: North Atlantic | E190: ICES | F190: VIIbc | G190: N | H190: - | I190: - | J190: - | K190: - | L190: ( Rødspætte )
A191: DNK | B191: 2013-2015 | C191: Pleuronectes platessa | D191: North Sea and Eastern Arctic | E191: ICES | F191: VIId | G191: N | H191: - | I191: - | J191: - | K191: - | L191: ( Rødspætte )
A192: DNK | B192: 2013-2015 | C192: Pleuronectes platessa | D192: North Atlantic | E192: ICES | F192: VIII, IX, X | G192: N | H192: - | I192: - | J192: - | K192: - | L192: ( Rødspætte )
A193: DNK | B193: 2013-2015 | C193: Pleuronectes platessa | D193: Baltic Sea | E193: ICES | F193: 22-32 | G193: Y | H193: 1576 | I193: 0.72 | J193: 0.72 | K193: N | L193: ( Rødspætte )
A194: DNK | B194: 2013-2015 | C194: Pleuronectes platessa | D194: North Atlantic | E194: ICES | F194: VIIe | G194: N | H194: - | I194: - | J194: - | K194: - | L194: ( Rødspætte )
A195: DNK | B195: 2013-2015 | C195: Pleuronectes platessa | D195: North Sea and Eastern Arctic | E195: ICES | F195: IV | G195: Y | H195: 13271 | I195: 0.2 | J195: 0.18 | K195: N | L195: ( Rødspætte )
A196: DNK | B196: 2013-2015 | C196: Pleuronectes platessa | D196: North Sea and Eastern Arctic | E196: ICES | F196: IIIa | G196: Y | H196: 7485 | I196: 0.81 | J196: 0.87 | K196: N | L196: ( Rødspætte )
A197: DNK | B197: 2013-2015 | C197: Pleuronectes platessa | D197: North Atlantic | E197: ICES | F197: VIIa | G197: N | H197: - | I197: - | J197: - | K197: - | L197: ( Rødspætte )
A198: DNK | B198: 2013-2015 | C198: Pollachius pollachius | D198: North Atlantic | E198: ICES | F198: IX, X | G198: N | H198: - | I198: - | J198: - | K198: - | L198: ( Lyssej )
A199: DNK | B199: 2013-2015 | C199: Pollachius pollachius | D199: North Atlantic | E199: ICES | F199: all areas except IX, X | G199: N | H199: - | I199: - | J199: - | K199: - | L199: ( Lyssej )
A200: DNK | B200: 2013-2015 | C200: Pollachius virens | D200: North Atlantic | E200: ICES | F200: Vb | G200: N | H200: - | I200: - | J200: - | K200: - | L200: ( Mørksej )
... 73 more rows

Sheet Table1B Planning of sampling
A1: Table 1B: Planning of sampling for biological variables
R2: WP years | Y2: 2017-2019
R3: AR year | Y3: 2017
A4: MS | B4: Species | C4: Region | D4: RFMO/RFO/IO | E4: Area / Stock | F4: Frequency | G4: Length | J4: Age | M4: Weight | P4: Sex ratio | S4: Sexual maturity | V4: Fecundity | Y4: Comments
G5: 2017 | H5: 2018 | I5: 2019 | J5: 2017 | K5: 2018 | L5: 2019 | M5: 2017 | N5: 2018 | O5: 2019 | P5: 2017 | Q5: 2018 | R5: 2019 | S5: 2017 | T5: 2018 | U5: 2019 | V5: 2017 | W5: 2018 | X5: 2019
A6: DK | B6: Ammodytes spp | C6: North Sea and Eastern Arctic | D6: ICES | E6: IIIa | F6: Sex ratio and maturity 'A' length, age and weight 'Q' | G6: X | H6: X | I6: X | J6: X | K6: X | L6: X | M6: X | N6: X | O6: X | P6: X | Q6: X | R6: X | S6: X | T6: X | U6: X | V6: Not applicable
A7: DK | B7: Ammodytes spp | C7: North Sea and Eastern Arctic | D7: ICES | E7: IV | F7: Sex ratio and maturity 'A' length, age and weight 'Q' | G7: X | H7: X | I7: X | J7: X | K7: X | L7: X | M7: X | N7: X | O7: X | P7: X | Q7: X | R7: X | S7: X | T7: X | U7: X
A8: DK | B8: Anarhichas spp | C8: North Sea and Eastern Arctic | D8: ICES | E8: IV | F8: Lenght and weight 'Q' | G8: X | H8: X | I8: X | J8: ? | K8: ? | L8: ? | M8: X | N8: X | O8: X | P8: NA | Q8: NA | R8: NA | S8: NA | T8: NA | U8: NA | Y8: new speices - we do not know presently if it can age them, the species is not caught in any Danish survey and therfore it will not be sexed or matured
A9: DK | B9: Anguilla anguilla | C9: Baltic Sea | D9: ICES | E9: 22-32 | F9: Lenght and weight 'Q' | G9: NA | H9: X | I9: X | J9: NA | K9: X | L9: X | M9: NA | N9: X | O9: X | P9: NA | Q9: X | R9: X | S9: NA | T9: NA | U9: NA | Y9: can not be aged
A10: DK | B10: Capros aper | C10: North Atlantic | D10: ICES | E10: V, VI,VII | F10: Sex ratio 'A'; length, age and weight 'Q' | G10: X | H10: X | I10: X | J10: X | K10: X | L10: X | M10: X | N10: X | O10: X | P10: X | Q10: X | R10: X | S10: NA | T10: NA | U10: NA
A11: DK | B11: Clupea harengus | C11: North Sea and Eastern Arctic | D11: ICES | E11: IIIa | F11: Sex ratio and maturity 'A' length, age and weight 'Q' | G11: X | H11: X | I11: X | J11: X | K11: X | L11: X | M11: X | N11: X | O11: X | P11: X | Q11: X | R11: X | S11: X | T11: X | U11: X
A12: DK | B12: Clupea harengus | C12: North Sea and Eastern Arctic | D12: ICES | E12: I, II | F12: Sex ratio and maturity 'A' length, age and weight 'Q' | G12: X | H12: X | I12: X | J12: X | K12: X | L12: X | M12: X | N12: X | O12: X | P12: X | Q12: X | R12: X | S12: X | T12: X | U12: X
A13: DK | B13: Clupea harengus | C13: North Sea and Eastern Arctic | D13: ICES | E13: IV, VIId | F13: Sex ratio and maturity 'A' length, age and weight 'Q' | G13: X | H13: X | I13: X | J13: X | K13: X | L13: X | M13: X | N13: X | O13: X | P13: X | Q13: X | R13: X | S13: X | T13: X | U13: X
A14: DK | B14: Clupea harengus | C14: Baltic Sea | D14: ICES | E14: 22-24 | F14: Sex ratio and maturity 'A' length, age and weight 'Q' | G14: X | H14: X | I14: X | J14: X | K14: X | L14: X | M14: X | N14: X | O14: X | P14: X | Q14: X | R14: X | S14: X | T14: X | U14: X
A15: DK | B15: Crangon crangon | C15: North Sea and Eastern Arctic | D15: ICES | E15: IV, VIId | F15: Sex ratio and maturity 'A' length and weight 'M' | G15: X | H15: X | I15: X | J15: NA | K15: NA | L15: NA | M15: X | N15: X | O15: X | P15: X | Q15: X | R15: X | S15: X | T15: X | U15: X
A16: DK | B16: Eutrigla gurnardus | C16: North Sea and Eastern Arctic | D16: ICES | E16: IV | F16: Sex ratio and maturity 'A' length, age and weight 'Q' | G16: X | H16: X | I16: X | J16: X | K16: X | L16: X | M16: X | N16: X | O16: X | P16: X | Q16: X | R16: X | S16: X | T16: X | U16: X | Y16: new speices - we do not know presently if it can age them
A17: DK | B17: Gadus morhua | C17: North Sea and Eastern Arctic | D17: ICES | E17: IIIaN | F17: Sex ratio and maturity 'A' length, age and weight 'Q' | G17: X | H17: X | I17: X | J17: X | K17: X | L17: X | M17: X | N17: X | O17: X | P17: X | Q17: X | R17: X | S17: X | T17: X | U17: X
A18: DK | B18: Gadus morhua | C18: North Sea and Eastern Arctic | D18: ICES | E18: IIIaS | F18: Sex ratio and maturity 'A' length, age and weight 'Q' | G18: X | H18: X | I18: X | J18: X | K18: X | L18: X | M18: X | N18: X | O18: X | P18: X | Q18: X | R18: X | S18: X | T18: X | U18: X
A19: DK | B19: Gadus morhua | C19: North Sea and Eastern Arctic | D19: ICES | E19: IV, VIId | F19: Sex ratio and maturity 'A' length, age and weight 'Q' | G19: X | H19: X | I19: X | J19: X | K19: X | L19: X | M19: X | N19: X | O19: X | P19: X | Q19: X | R19: X | S19: X | T19: X | U19: X
A20: DK | B20: Gadus morhua | C20: Baltic Sea | D20: ICES | E20: 22-24 | F20: Sex ratio and maturity 'A' length, age and weight 'Q' | G20: X | H20: X | I20: X | J20: X | K20: X | L20: X | M20: X | N20: X | O20: X | P20: X | Q20: X | R20: X | S20: X | T20: X | U20: X
A21: DK | B21: Gadus morhua | C21: Baltic Sea | D21: ICES | E21: 25-32 | F21: Sex ratio and maturity 'A' length, age and weight 'Q' | G21: X | H21: X | I21: X | J21: X | K21: X | L21: X | M21: X | N21: X | O21: X | P21: X | Q21: X | R21: X | S21: X | T21: X | U21: X
A22: DK | B22: Glyptocephalus cynoglossus | C22: North Sea and Eastern Arctic | D22: ICES | E22: IIIa, IV | F22: Sex ratio and maturity 'A' length, age and weight 'Q' | G22: X | H22: X | I22: X | J22: X | K22: X | L22: X | M22: X | N22: X | O22: X | P22: X | Q22: X | R22: X | S22: X | T22: X | U22: X
A23: DK | B23: Limanda limanda | C23: North Sea and Eastern Arctic | D23: ICES | E23: IIIa, IV, VIId | F23: Sex ratio and maturity 'A' length, age and weight 'Q' | G23: X | H23: X | I23: X | J23: X | K23: X | L23: X | M23: X | N23: X | O23: X | P23: X | Q23: X | R23: X | S23: X | T23: X | U23: X
A24: DK | B24: Limanda limanda | C24: Baltic Sea | D24: ICES | E24: 22-32 | F24: Sex ratio and maturity 'A' length, age and weight 'Q' | G24: X | H24: X | I24: X | J24: X | K24: X | L24: X | M24: X | N24: X | O24: X | P24: X | Q24: X | R24: X | S24: X | T24: X | U24: X
A25: DK | B25: Lophius piscatorius | C25: North Sea and Eastern Arctic | D25: ICES | E25: IV | F25: Lenght and weight 'Q', sex ration 'A' | G25: X | H25: X | I25: X | J25: NA | K25: NA | L25: NA | M25: X | N25: X | O25: X | P25: X | Q25: X | R25: X | S25: NA | T25: NA | U25: NA | Y25: can not be aged
A26: dk | B26: Mallotus villosus | C26: North Atlantic | D26: ICES | E26: XIV | F26: Lenght and weight 'Q', sex ration 'A' | G26: X | H26: X | I26: X | J26: X | K26: X | L26: X | M26: X | N26: X | O26: X | P26: X | Q26: X | R26: X | S26: NA | T26: NA | U26: NA | Y26: has not been landed since 2014
A27: DK | B27: Melanogrammus aeglefinus | C27: North Sea and Eastern Arctic | D27: ICES | E27: IIIa, IV | F27: Sex ratio and maturity 'A' length, age and weight 'Q' | G27: X | H27: X | I27: X | J27: X | K27: X | L27: X | M27: X | N27: X | O27: X | P27: X | Q27: X | R27: X | S27: X | T27: X | U27: X
A28: DK | B28: Merlangius merlangus | C28: North Sea and Eastern Arctic | D28: ICES | E28: IIIa | F28: Sex ratio and maturity 'A' length, age and weight 'Q' | G28: X | H28: X | I28: X | J28: X | K28: X | L28: X | M28: X | N28: X | O28: X | P28: X | Q28: X | R28: X | S28: X | T28: X | U28: X
A29: DK | B29: Merluccius merluccius | C29: North Atlantic | D29: ICES | E29: IIIa, IV, VI, VII, VIIIab | F29: Sex ratio and maturity 'A' length, age and weight 'Q' | G29: X | H29: X | I29: X | J29: X | K29: X | L29: X | M29: X | N29: X | O29: X | P29: X | Q29: X | R29: X | S29: X | T29: X | U29: X
A30: DK | B30: Micromesistius poutassou | C30: North Atlantic | D30: ICES | E30: I-IX, XII, XIV | F30: Sex ratio and maturity 'A' length, age and weight 'Q' | G30: X | H30: X | I30: X | J30: X | K30: X | L30: X | M30: X | N30: X | O30: X | P30: X | Q30: X | R30: X | S30: X | T30: X | U30: X
A31: DK | B31: Microstomus kitt | C31: North Sea and Eastern Arctic | D31: ICES | E31: IIIa, IV, VIId | F31: Sex ratio and maturity 'A' length, age and weight 'Q' | G31: X | H31: X | I31: X | J31: X | K31: X | L31: X | M31: X | N31: X | O31: X | P31: X | Q31: X | R31: X | S31: X | T31: X | U31: X
A32: DK | B32: Molva molva | C32: North Sea and Eastern Arctic | D32: ICES | E32: IIIa, IV | F32: Lenght and weight 'Q' | G32: X | H32: X | I32: X | J32: X | K32: X | L32: X | M32: X | N32: X | O32: X | P32: NA | Q32: NA | R32: NA | S32: NA | T32: NA | U32: NA | Y32: are not presently caught in the survey and can therefore not be sexed or maturity staged
A33: DK | B33: Nephrops norvegicus | C33: North Sea and Eastern Arctic | D33: ICES | E33: functional units 32 (TAC IIa, IV) | F33: Sex ratio and maturity 'A' length 'Q' | G33: X | H33: X | I33: X | J33: NA | K33: NA | L33: NA | M33: ? | N33: ? | O33: ? | P33: X | Q33: X | R33: X | S33: X | T33: X | U33: X | Y33: presently no individual weights are avalible
A34: DK | B34: Nephrops norvegicus | C34: North Sea and Eastern Arctic | D34: ICES | E34: functional units 33 (TAC IIa, VI) | F34: Sex ratio and maturity 'A' length 'Q' | G34: X | H34: X | I34: X | J34: NA | K34: NA | L34: NA | M34: ? | N34: ? | O34: ? | P34: X | Q34: X | R34: X | S34: X | T34: X | U34: X | Y34: presently no individual weights are avalible
A35: DK | B35: Pandalus borealis | C35: North Sea and Eastern Arctic | D35: ICES | E35: IIIa, IVa | F35: Sex ratio and maturity 'A' length and weight 'Q' | G35: X | H35: X | I35: X | J35: NA | K35: NA | L35: NA | M35: X | N35: X | O35: X | P35: X | Q35: X | R35: X | S35: X | T35: X | U35: X
A36: DK | B36: Platichthys flesus | C36: Baltic Sea | D36: ICES | E36: 22-32 | F36: Sex ratio and maturity 'A' length, age and weight 'Q' | G36: X | H36: X | I36: X | J36: X | K36: X | L36: X | M36: X | N36: X | O36: X | P36: X | Q36: X | R36: X | S36: X | T36: X | U36: X
A37: DK | B37: Pleuronectes platessa | C37: North Sea and Eastern Arctic | D37: ICES | E37: IIIa | F37: Sex ratio and maturity 'A' length, age and weight 'Q' | G37: X | H37: X | I37: X | J37: X | K37: X | L37: X | M37: X | N37: X | O37: X | P37: X | Q37: X | R37: X | S37: X | T37: X | U37: X
A38: DK | B38: Pleuronectes platessa | C38: North Sea and Eastern Arctic | D38: ICES | E38: IV | F38: Sex ratio and maturity 'A' length, age and weight 'Q' | G38: X | H38: X | I38: X | J38: X | K38: X | L38: X | M38: X | N38: X | O38: X | P38: X | Q38: X | R38: X | S38: X | T38: X | U38: X
A39: DK | B39: Pleuronectes platessa | C39: Baltic Sea | D39: ICES | E39: 22-32 | F39: Sex ratio and maturity 'A' length, age and weight 'Q' | G39: X | H39: X | I39: X | J39: X | K39: X | L39: X | M39: X | N39: X | O39: X | P39: X | Q39: X | R39: X | S39: X | T39: X | U39: X
A40: DK | B40: Pollachius virens | C40: North Sea and Eastern Arctic | D40: ICES | E40: IIIa, IV | F40: Sex ratio and maturity 'A' length, age and weight 'Q' | G40: X | H40: X | I40: X | J40: X | K40: X | L40: X | M40: X | N40: X | O40: X | P40: X | Q40: X | R40: X | S40: X | T40: X | U40: X
A41: DK | B41: Psetta maxima | C41: North Sea and Eastern Arctic | D41: ICES | E41: IV, VIId | F41: Sex ratio and maturity 'A' length, age and weight 'Q' | G41: X | H41: X | I41: X | J41: X | K41: X | L41: X | M41: X | N41: X | O41: X | P41: X | Q41: X | R41: X | S41: X | T41: X | U41: X
A42: DK | B42: Salmo salar | C42: Baltic Sea | D42: ICES | E42: 22-31 | F42: length, age and weight 'Q' | G42: X | H42: X | I42: X | J42: X | K42: X | L42: X | M42: X | N42: X | O42: X | P42: NA | Q42: NA | R42: NA | S42: NA | T42: NA | U42: NA | Y42: are not presently caught in the survey and can therefore not be sexed or maturity staged
A43: DK | B43: Scomber scombrus | C43: North Atlantic | D43: ICES | E43: II, IIIa, IV, V, VI, VII, VIII, IX | F43: Sex ratio and maturity 'A' length, age and weight 'Q' | G43: X | H43: X | I43: X | J43: X | K43: X | L43: X | M43: X | N43: X | O43: X | P43: X | Q43: X | R43: X | S43: X | T43: X | U43: X
A44: DK | B44: Solea solea | C44: North Sea and Eastern Arctic | D44: ICES | E44: IIIa, 22 | F44: Sex ratio and maturity 'A' length, age and weight 'Q' | G44: X | H44: X | I44: X | J44: X | K44: X | L44: X | M44: X | N44: X | O44: X | P44: X | Q44: X | R44: X | S44: X | T44: X | U44: X
A45: DK | B45: Sprattus sprattus | C45: North Sea and Eastern Arctic | D45: ICES | E45: IIIa | F45: Sex ratio and maturity 'A' length, age and weight 'Q' | G45: X | H45: X | I45: X | J45: X | K45: X | L45: X | M45: X | N45: X | O45: X | P45: X | Q45: X | R45: X | S45: X | T45: X | U45: X
A46: DK | B46: Sprattus sprattus | C46: North Sea and Eastern Arctic | D46: ICES | E46: IV | F46: Sex ratio and maturity 'A' length, age and weight 'Q' | G46: X | H46: X | I46: X | J46: X | K46: X | L46: X | M46: X | N46: X | O46: X | P46: X | Q46: X | R46: X | S46: X | T46: X | U46: X
A47: DK | B47: Sprattus sprattus | C47: Baltic Sea | D47: ICES | E47: 22-32 | F47: Sex ratio and maturity 'A' length, age and weight 'Q' | G47: X | H47: X | I47: X | J47: X | K47: X | L47: X | M47: X | N47: X | O47: X | P47: X | Q47: X | R47: X | S47: X | T47: X | U47: X
A48: DK | B48: Trachurus trachurus | C48: North Sea and Eastern Arctic | D48: ICES | E48: IVbc, VIId | G48: X | H48: X | I48: X | J48: X | K48: X | L48: X | M48: X | N48: X | O48: X | P48: NA | Q48: NA | R48: NA | S48: NA | T48: NA | U48: NA | Y48: are not presently caught in the survey and can therefore not be sexed or maturity staged
A49: DK | B49: Trachurus trachurus | C49: North Atlantic | D49: ICES | E49: IIa, IVa, Vb, VIa, VIIa-c, e-k, VIIIabde | G49: X | H49: X | I49: X | J49: X | K49: X | L49: X | M49: X | N49: X | O49: X | P49: NA | Q49: NA | R49: NA | S49: NA | T49: NA | U49: NA | Y49: are not presently caught in the survey and can therefore not be sexed or maturity staged
A50: DK | B50: Trisopterus esmarkii | C50: North Sea and Eastern Arctic | D50: ICES | E50: IV, IIIa | F50: Sex ratio and maturity 'A' length, age and weight 'Q' | G50: X | H50: X | I50: X | J50: X | K50: X | L50: X | M50: X | N50: X | O50: X | P50: X | Q50: X | R50: X | S50: X | T50: X | U50: X

Sheet Table1C Sampling intensity
A1: Table 1C: Sampling intensity for biological variables
P2: WP years | Q2: 2017-2019
P3: AR year | Q3: 2017
A4: MS | B4: MS partcipating in sampling | C4: Sampling year | D4: Species | E4: Region | F4: RFMO/RFO/IO | G4: Area / Stock | H4: Variables | I4: Data sources | J4: Planned minimum no of individuals to be measured at the national level | K4: Planned minimum no of individuals to be measured at the regional level | L4: Comments | M4: Achieved number of individuals measured at the national level | N4: % of achievement (100*M/J) | O4: Achieved number of samples | P4: Sampling protocol | Q4: AR Comments
A5: DNK | B5: DNK | C5: 2017 | D5: Ammodytes spp | E5: North Sea and Eastern Arctic | F5: ICES | G5: IIIa | H5: length | I5: Harbour sampling | J5: 1000 | K5: NA | L5: estimate based on samples from 2015 | M5: 4896 | N5: 489.6 | O5: 25 | P5: random 100 fish from each sample (samples are 1-5 kg)
A6: DNK | B6: DNK | C6: 2017 | D6: Ammodytes spp | E6: North Sea and Eastern Arctic | F6: ICES | G6: IIIa | H6: length | I6: Self-sampling | J6: 9000 | K6: NA | L6: estimate based on an average of data from 2013-2015 | M6: 8888 | N6: 98.76 | O6: 53 | P6: random 100 fish from each sample (samples are 1-5 kg)
A7: DNK | B7: DNK | C7: 2017 | D7: Ammodytes spp | E7: North Sea and Eastern Arctic | F7: ICES | G7: IIIa | H7: length | I7: Surveys | J7: 700 | K7: NA | L7: estimate based on an average of data from 2013-2015 | M7: 1134 | N7: 162 | O7: 27 | P7: On every position, 3 stations are conducted. For 1. station biology is measured for the 2 other stations only length. Close to 150 length are measured per sample | Q7: The survey is conducted according to the protocol and the numbers are therefore just reflecting the average from the reference year.
A8: DNK | B8: DNK | C8: 2017 | D8: Ammodytes spp | E8: North Sea and Eastern Arctic | F8: ICES | G8: IIIa | H8: sex | I8: Surveys | J8: 100 | K8: NA | L8: estimate based on an average of data from 2013-2015 | M8: 369 | N8: 369 | O8: 27 | P8: On every position 3 stations are conducted. For 1 station biology is messured for the 2 other stations only length. | Q8: length stratified with around 50 ages per sample | R8: sampling for sex not described in the protocols
A9: DNK | B9: DNK | C9: 2017 | D9: Ammodytes spp | E9: North Sea and Eastern Arctic | F9: ICES | G9: IIIa | H9: weight | I9: Harbour sampling | J9: 1000 | K9: NA | L9: estimate based on samples from 2015 | M9: 4896 | N9: 489.6 | O9: 25 | P9: every second fish length measured (stratified by length) is aged and weighted | Q9: In scrutinizing the data a coding mistake was discovered. This indicates that for the industrial sampling programs (including brown shrimps and Pandalus) the correct measured numbers on weight have increased compared to the former version.
A10: DNK | B10: DNK | C10: 2017 | D10: Ammodytes spp | E10: North Sea and Eastern Arctic | F10: ICES | G10: IIIa | H10: weight | I10: Self-sampling | J10: 9000 | K10: NA | L10: estimate based on an average of data from 2013-2015 | M10: 8888 | N10: =(M10/J10)*100 -> 98.75555556 | O10: 53 | P10: All vessels participating in this fishery are obliged to deliver a sample for every 3. haul. In sand eel area III 1/ sampled/haul needs to be delivered. Samples for analysis are then stratified to 1/ sample/ ICES square/ week. Every second fish length measured (stratified by length) is aged and weighted | Q10: In scrutinizing the data a coding mistake was discovered. This indicates that for the industrial sampling programs (including brown shrimps and Pandalus) the correct measured numbers on weight have increased compared to the former version.
A11: DNK | B11: DNK | C11: 2017 | D11: Ammodytes spp | E11: North Sea and Eastern Arctic | F11: ICES | G11: IIIa | H11: weight | I11: Surveys | J11: 600 | K11: NA | L11: estimate based on an average of data from 2013-2015 | M11: 1134 | N11: =(M11/J11)*100 -> 189 | O11: 27 | P11: On every position 3 stations are conducted. For 1 station biology is messured for the 2 other stations only length. | Q11: In scrutinizing the data a coding mistake was discovered. This indicates that for the industrial sampling programs (including brown shrimps and Pandalus) the correct measured numbers on weight have increased compared to the former version.
A12: DNK | B12: DNK | C12: 2017 | D12: Ammodytes spp | E12: North Sea and Eastern Arctic | F12: ICES | G12: IIIa | H12: age | I12: Harbour sampling | J12: 200 | K12: NA | L12: estimate based on samples from 2015 | M12: 698 | N12: =(M12/J12)*100 -> 349 | O12: 25 | P12: every second fish length measured (stratified by length) is aged and weighted
A13: DNK | B13: DNK | C13: 2017 | D13: Ammodytes spp | E13: North Sea and Eastern Arctic | F13: ICES | G13: IIIa | H13: age | I13: Self-sampling | J13: 1000 | K13: NA | L13: estimate based on an average of data from 2013-2015 | M13: 1325 | N13: =(M13/J13)*100 -> 132.5 | O13: 53 | P13: All vessels participating in this fishery are obliged to deliver a sample for every 3. haul. In sand eel area III 1/ sampled/haul needs to be delivered. Samples for analysis are then stratified to 1/ sample/ ICES square/ week. Every second fish length measured (stratified by length) is aged and weighted | Q13: Denmark is no longer conducing quota sampling on numbers of fish, but aims to sample a certain level of PSU. The PSU for this stock was in combination with bot self -sampling and harbor sampling 78 samples which are considered sufficient for sampling a stock with a 3 month catch period
A14: DNK | B14: DNK | C14: 2017 | D14: Ammodytes spp | E14: North Sea and Eastern Arctic | F14: ICES | G14: IIIa | H14: age | I14: Surveys | J14: 100 | K14: NA | L14: estimate based on an average of data from 2013-2015 | M14: 326 | N14: 326 | O14: 27 | P14: On every position 3 stations are conducted. For 1 station biology is messured for the 2 other stations only length. | Q14: length stratified with around 50 ages per sample
A15: DNK | B15: DNK | C15: 2017 | D15: Ammodytes spp | E15: North Sea and Eastern Arctic | F15: ICES | G15: IIIa | H15: maturity | I15: Surveys | J15: 100 | K15: NA | L15: estimate based on an average of data from 2013-2015 | M15: 369 | N15: 369 | O15: 27 | P15: On every position 3 stations are conducted. For 1 station biology is messured for the 2 other stations only length. | Q15: length stratified with around 50 ages per sample | R15: sampling for sex not described in the protocols
A16: DNK | B16: DNK | C16: 2017 | D16: Ammodytes spp | E16: North Sea and Eastern Arctic | F16: ICES | G16: IV | H16: length | I16: Harbour sampling | J16: 2500 | K16: NA | L16: estimate based on samples from 2015 | M16: 5532 | N16: 221.28 | O16: 30 | P16: random 100 fish from each sample (samples are 1-5 kg)
A17: DNK | B17: DNK | C17: 2017 | D17: Ammodytes spp | E17: North Sea and Eastern Arctic | F17: ICES | G17: IV | H17: length | I17: Oberserver at sea | J17: 0 | K17: NA | L17: estimate based on an average of data from 2013-2015 | M17: 1 | N17: Inf | O17: 1 | P17: all species caught are registered by total weight and number and a subsample or the total catch is length measured | Q17: A very rarely caught species in the observer program
A18: DNK | B18: DNK | C18: 2017 | D18: Ammodytes spp | E18: North Sea and Eastern Arctic | F18: ICES | G18: IV | H18: length | I18: Self-sampling | J18: 44000 | K18: NA | L18: estimate based on an average of data from 2013-2015 | M18: 59659 | N18: 135.59 | O18: 188 | P18: random 100 fish from each sample (samples are 1-5 kg)
A19: DNK | B19: DNK | C19: 2017 | D19: Ammodytes spp | E19: North Sea and Eastern Arctic | F19: ICES | G19: IV | H19: length | I19: Surveys | J19: 16000 | K19: NA | L19: estimate based on an average of data from 2013-2015 | M19: 22247 | N19: 139.04 | O19: 270 | P19: On every position, 3 stations are conducted. For 1. station biology is measured for the 2 other stations only length. Close to 150 length are measured per sample | Q19: The survey is conducted according to the protocol and the numbers are therefore just reflecting the average from the reference year.
A20: DNK | B20: DNK | C20: 2017 | D20: Ammodytes spp | E20: North Sea and Eastern Arctic | F20: ICES | G20: IV | H20: sex | I20: Surveys | J20: 2500 | K20: NA | L20: estimate based on an average of data from 2013-2015 | M20: 4148 | N20: 165.92 | O20: 270 | P20: On every position 3 stations are conducted. For 1 station biology is messured for the 2 other stations only length. | Q20: length stratified with around 50 ages per sample | R20: sampling for sex not described in the protocols
A21: DNK | B21: DNK | C21: 2017 | D21: Ammodytes spp | E21: North Sea and Eastern Arctic | F21: ICES | G21: IV | H21: weight | I21: Harbour sampling | J21: 2500 | K21: NA | L21: estimate based on samples from 2015 | M21: 5532 | N21: 221.28 | O21: 30 | P21: every second fish length measured (stratified by length) is aged and weighted | Q21: In scrutinizing the data a coding mistake was discovered. This indicates that for the industrial sampling programs (including brown shrimps and Pandalus) the correct measured numbers on weight have increased compared to the former version.
A22: DNK | B22: DNK | C22: 2017 | D22: Ammodytes spp | E22: North Sea and Eastern Arctic | F22: ICES | G22: IV | H22: weight | I22: Self-sampling | J22: 44000 | K22: NA | L22: estimate based on an average of data from 2013-2015 | M22: 59659 | N22: 135.59 | O22: 188 | P22: All vessels participating in this fishery are obliged to deliver a sample for every 3. haul. In sand eel area IV 1/ sampled/haul needs to be delivered. Samples for analysis are then stratified to 1/ sample/ ICES square/ week, for sand eel area 4 all samples are analyzed. In a sample every second fish length measured (stratified by length) is aged and weighted | Q22: In scrutinizing the data a coding mistake was discovered. This indicates that for the industrial sampling programs (including brown shrimps and Pandalus) the correct measured numbers on weight have increased compared to the former version.
A23: DNK | B23: DNK | C23: 2017 | D23: Ammodytes spp | E23: North Sea and Eastern Arctic | F23: ICES | G23: IV | H23: weight | I23: Surveys | J23: 16000 | K23: NA | L23: estimate based on an average of data from 2013-2015 | M23: 20202 | N23: =(M23/J23)*100 -> 126.2625 | O23: 270 | P23: On every position 3 stations are conducted. For 1 station biology is messured for the 2 other stations only length. | Q23: length stratified with around 50 ages per sample
A24: DNK | B24: DNK | C24: 2017 | D24: Ammodytes spp | E24: North Sea and Eastern Arctic | F24: ICES | G24: IV | H24: age | I24: Harbour sampling | J24: 500 | K24: NA | L24: estimate based on samples from 2015 | M24: 1165 | N24: =(M24/J24)*100 -> 233 | O24: 30 | P24: every second fish length measured (stratified by length) is aged and weighted
A25: DNK | B25: DNK | C25: 2017 | D25: Ammodytes spp | E25: North Sea and Eastern Arctic | F25: ICES | G25: IV | H25: age | I25: Self-sampling | J25: 9000 | K25: NA | L25: estimate based on an average of data from 2013-2015 | M25: 13327 | N25: =(M25/J25)*100 -> 148.0777778 | O25: 188 | P25: every second fish length measured (stratified by length) is aged and weighted
A26: DNK | B26: DNK | C26: 2017 | D26: Ammodytes spp | E26: North Sea and Eastern Arctic | F26: ICES | G26: IV | H26: age | I26: Surveys | J26: 2500 | K26: NA | L26: estimate based on an average of data from 2013-2015 | M26: 4096 | N26: 163.84 | O26: 270 | P26: On every position 3 stations are conducted. For 1 station biology is messured for the 2 other stations only length. | Q26: length stratified with around 50 ages per sample
A27: DNK | B27: DNK | C27: 2017 | D27: Ammodytes spp | E27: North Sea and Eastern Arctic | F27: ICES | G27: IV | H27: maturity | I27: Surveys | J27: 2500 | K27: NA | L27: estimate based on an average of data from 2013-2015 | M27: 4148 | N27: 165.92 | O27: 270 | P27: On every position 3 stations are conducted. For 1 station biology is messured for the 2 other stations only length. | Q27: length stratified with around 50 ages per sample | R27: sampling for sex not described in the protocols
A28: DNK | B28: DNK | C28: 2017 | D28: Anarhichas spp | E28: North Sea and Eastern Arctic | F28: ICES | G28: IV | H28: length | I28: Oberserver at sea | J28: 50 | K28: NA | L28: estimate based on an average of data from 2013-2015 | M28: 1 | N28: 2 | O28: 1 | P28: all species caught are registered by total weight and number and a subsample or the total catch is length measured | Q28: only 1 specimen caught on observer trip
A29: DNK | B29: DNK | C29: 2017 | D29: Anarhichas spp | E29: North Sea and Eastern Arctic | F29: ICES | G29: IV | H29: length | I29: Surveys | J29: 0 | K29: NA | L29: estimate based on an average of data from 2013-2015 | M29: 9 | N29: Inf | O29: 4 | P29: all fish | Q29: all fish caught in the survey are measured even if the species is not on the list
A30: DNK | B30: DNK | C30: 2017 | D30: Anarhichas spp | E30: North Sea and Eastern Arctic | F30: ICES | G30: IV | H30: weight | I30: Oberserver at sea | J30: 50 | K30: NA | L30: estimate based on an average of data from 2013-2015 | M30: 0 | N30: 0 | O30: 0 | P30: all species caught are registered by total weight and number | Q30: only 1 specimen caught on observer trip
A31: DNK | B31: DNK | C31: 2017 | D31: Anarhichas spp | E31: North Sea and Eastern Arctic | F31: ICES | G31: IV | H31: age | I31: Harbour sampling | J31: 200 | K31: NA | L31: New sampling | M31: 0 | N31: 0 | O31: 0 | Q31: New speices - not possible to age at present time
A32: DNK | B32: DNK | C32: 2017 | D32: Anarhichas spp | E32: North Sea and Eastern Arctic | F32: ICES | G32: IV | H32: weight | I32: Harbour sampling | J32: 200 | K32: NA | L32: New sampling | M32: 143 | N32: 71.5 | O32: 6
A33: DNK | B33: DNK | C33: 2017 | D33: Anarhichas spp | E33: North Sea and Eastern Arctic | F33: ICES | G33: IV | H33: length | I33: Harbour sampling | J33: 200 | K33: NA | L33: New sampling | M33: 143 | N33: 71.5 | O33: 6
A34: DNK | B34: DNK | C34: 2017 | D34: Anarhichas spp | E34: North Sea and Eastern Arctic | F34: ICES | G34: IV | H34: age | I34: Oberserver at sea | J34: 50 | K34: NA | L34: estimate based on an average of data from 2013-2015 | M34: 0 | N34: 0 | O34: 0 | P34: all species caught are registered by total weight and number | Q34: New speices - not possible to age at present time
A35: DNK | B35: DNK | C35: 2017 | D35: Capros aper | E35: North Atlantic | F35: ICES | G35: V, VI,VII | H35: length | I35: Self-sampling | J35: 1000 | K35: NA | L35: estimate based on an average of data from 2013-2015 | M35: 172 | N35: 0 | O35: 1 | P35: self-sampling conducted on voluntary basis and is not a random selection | Q35: landings for this stock has decreased a lot since the reference year and is in 2017 just above 400 t in 2017
A36: DNK | B36: DNK | C36: 2017 | D36: Capros aper | E36: North Atlantic | F36: ICES | G36: V, VI,VII | H36: sex | I36: Self-sampling | J36: 200 | K36: NA | L36: estimate based on an average of data from 2013-2015 | M36: 0 | N36: 0 | O36: 0 | Q36: sample was in a to bad shape to be sexed
A37: DNK | B37: DNK | C37: 2017 | D37: Capros aper | E37: North Atlantic | F37: ICES | G37: V, VI,VII | H37: weight | I37: Self-sampling | J37: 200 | K37: NA | L37: estimate based on an average of data from 2013-2015 | M37: 172 | N37: 0 | O37: 1 | P37: self-sampling conducted on voluntary basis and is not a random selection | Q37: landings for this stock has decreased a lot since the reference year and is in 2017 just above 400 t
A38: DNK | B38: DNK | C38: 2017 | D38: Capros aper | E38: North Atlantic | F38: ICES | G38: V, VI,VII | H38: age | I38: Self-sampling | J38: 200 | K38: NA | L38: estimate based on an average of data from 2013-2015 | M38: 0 | N38: 0 | O38: 0 | P38: self-sampling conducted on voluntary basis and is not a random selection | Q38: landings for this stock has decreased a lot since the reference year and is in 2017 just above 400 t
A39: DNK | B39: DNK | C39: 2017 | D39: Clupea harengus | E39: Baltic Sea | F39: ICES | G39: 22-24 | H39: length | I39: Harbour sampling | J39: 900 | K39: NA | L39: estimate based on samples from 2015 | M39: 2304 | N39: 256 | O39: 9 | P39: harbors selected according to preselected scheme. On each harbor day visit 1 box per size sorting group is selected for measurements of length
A40: DNK | B40: DNK | C40: 2017 | D40: Clupea harengus | E40: Baltic Sea | F40: ICES | G40: 22-24 | H40: length | I40: Oberserver at sea | J40: 200 | K40: NA | L40: estimate based on an average of data from 2013-2015 | M40: 14 | N40: 7 | O40: 4 | P40: all species caught are registered by total weight and number and a subsample or the total catch is length measured | Q40: herring is only seldom caught in observer program as Denmark is not conducting observer program in the pelagic fleet
A41: DNK | B41: DNK | C41: 2017 | D41: Clupea harengus | E41: Baltic Sea | F41: ICES | G41: 22-24 | H41: length | I41: Surveys | J41: 2500 | K41: NA | L41: estimate based on an average of data from 2013-2015 | M41: 7057 | N41: 282.28 | O41: 73 | P41: a subsample or the toal catch of the speices by station | Q41: landings has increased by 275% compared to the reference years
A42: DNK | B42: DNK | C42: 2017 | D42: Clupea harengus | E42: Baltic Sea | F42: ICES | G42: 22-24 | H42: sex | I42: Harbour sampling | J42: 50 | K42: NA | L42: estimate based on samples from 2015 | M42: 469 | N42: 938 | O42: 9 | P42: Age, weight, sex and maturity is selected length stratified from the length sample | Q42: landings has increased by 275% compared to the reference years
A43: DNK | B43: DNK | C43: 2017 | D43: Clupea harengus | E43: Baltic Sea | F43: ICES | G43: 22-24 | H43: sex | I43: Surveys | J43: 100 | K43: NA | L43: estimate based on an average of data from 2013-2015 | M43: 150 | N43: 150 | O43: 73 | P43: 1 fish per scm/ station | Q43: landings has increased by 275% compared to the reference years
A44: DNK | B44: DNK | C44: 2017 | D44: Clupea harengus | E44: Baltic Sea | F44: ICES | G44: 22-24 | H44: weight | I44: Harbour sampling | J44: 300 | K44: NA | L44: estimate based on samples from 2015 | M44: 696 | N44: 232 | O44: 9 | P44: Age, weight, sex and maturity is selected length stratified from the length sample | Q44: landings has increased by 275% compared to the reference years
A45: DNK | B45: DNK | C45: 2017 | D45: Clupea harengus | E45: Baltic Sea | F45: ICES | G45: 22-24 | H45: weight | I45: Surveys | J45: 100 | K45: NA | L45: estimate based on an average of data from 2013-2015 | M45: 731 | N45: =(M45/J45)*100 -> 731 | O45: 73 | P45: 1 fish per scm/ station | Q45: landings has increased by 275% compared to the reference years
A46: DNK | B46: DNK | C46: 2017 | D46: Clupea harengus | E46: Baltic Sea | F46: ICES | G46: 22-24 | H46: age | I46: Harbour sampling | J46: 300 | K46: NA | L46: estimate based on samples from 2015 | M46: 468 | N46: 156 | O46: 9 | P46: Age, weight, sex and maturity is selected length stratified from the length sample | Q46: landings has increased by 275% compared to the reference years
A47: DNK | B47: DNK | C47: 2017 | D47: Clupea harengus | E47: Baltic Sea | F47: ICES | G47: 22-24 | H47: age | I47: Surveys | J47: 100 | K47: NA | L47: estimate based on an average of data from 2013-2015 | M47: 150 | N47: 150 | O47: 73 | P47: 1 fish per scm/ station | Q47: landings has increased by 275% compared to the reference years
A48: DNK | B48: DNK | C48: 2017 | D48: Clupea harengus | E48: Baltic Sea | F48: ICES | G48: 22-24 | H48: maturity | I48: Harbour sampling | J48: 50 | K48: NA | L48: estimate based on samples from 2015 | M48: 469 | N48: 938 | O48: 9 | P48: Age, weight, sex and maturity is selected length stratified from the length sample | Q48: landings has increased by 275% compared to the reference years
A49: DNK | B49: DNK | C49: 2017 | D49: Clupea harengus | E49: Baltic Sea | F49: ICES | G49: 22-24 | H49: maturity | I49: Surveys | J49: 100 | K49: NA | L49: estimate based on an average of data from 2013-2015 | M49: 150 | N49: 150 | O49: 73 | P49: 1 fish per scm/ station
A50: DNK | B50: DNK | C50: 2017 | D50: Clupea harengus | E50: North Sea and Eastern Arctic | F50: ICES | G50: I, II | H50: length | I50: Surveys | J50: 1000 | K50: NA | L50: estimate based on an average of data from 2013-2015 | M50: 2508 | N50: 250.8 | O50: 19 | P50: 1 fish per scm/ station
A51: DNK | B51: DNK | C51: 2017 | D51: Clupea harengus | E51: North Sea and Eastern Arctic | F51: ICES | G51: I, II | H51: sex | I51: Surveys | J51: 300 | K51: NA | L51: estimate based on an average of data from 2013-2015 | M51: 560 | N51: 186.67 | O51: 19 | P51: 1 fish per scm/ station
A52: DNK | B52: DNK | C52: 2017 | D52: Clupea harengus | E52: North Sea and Eastern Arctic | F52: ICES | G52: I, II | H52: weight | I52: Surveys | J52: 300 | K52: NA | L52: estimate based on an average of data from 2013-2015 | M52: 560 | N52: 186.67 | O52: 19 | P52: 1 fish per scm/ station
A53: DNK | B53: DNK | C53: 2017 | D53: Clupea harengus | E53: North Sea and Eastern Arctic | F53: ICES | G53: I, II | H53: age | I53: Surveys | J53: 300 | K53: NA | L53: estimate based on an average of data from 2013-2015 | M53: 540 | N53: 180 | O53: 19 | P53: 1 fish per scm/ station
A54: DNK | B54: DNK | C54: 2017 | D54: Clupea harengus | E54: North Sea and Eastern Arctic | F54: ICES | G54: I, II | H54: maturity | I54: Surveys | J54: 300 | K54: NA | L54: estimate based on an average of data from 2013-2015 | M54: 559 | N54: 186.33 | O54: 19 | P54: 1 fish per scm/ station
A55: DNK | B55: DNK | C55: 2017 | D55: Clupea harengus | E55: North Sea and Eastern Arctic | F55: ICES | G55: IV, VIId | H55: length | I55: Harbour sampling | J55: 10000 | K55: NA | L55: estimate based on samples from 2015 | M55: 8732 | N55: 87.32 | O55: 59 | P55: close to census sampling from the Danish harbors. Most landings goes into 2 major Danish harbors were all trips are sampled
A56: DNK | B56: DNK | C56: 2017 | D56: Clupea harengus | E56: North Sea and Eastern Arctic | F56: ICES | G56: IV, VIId | H56: length | I56: Oberserver at sea | J56: 400 | K56: NA | L56: estimate based on an average of data from 2013-2015 | M56: 470 | N56: 117.5 | O56: 29 | P56: all species caught are registered by total weight and number and a subsample or the total catch is length measured | Q56: A species not common caught in the observer program
A57: DNK | B57: DNK | C57: 2017 | D57: Clupea harengus | E57: North Sea and Eastern Arctic | F57: ICES | G57: IV, VIId | H57: length | I57: Self-sampling | J57: 1500 | K57: NA | L57: estimate based on an average of data from 2013-2015 | M57: 166 | N57: 11.07 | O57: 8 | P57: Fishermen are asked to deliver 1 sample per trip. However this is on a voluntary basis and the samples are therefore not sampled randomly. Most samples are dirived from sprat sampling as with herring ad by catch. | Q57: self-sampling on herring is from sprat sampling as by catch, every herring in the sample is measured
A58: DNK | B58: DNK | C58: 2017 | D58: Clupea harengus | E58: North Sea and Eastern Arctic | F58: ICES | G58: IV, VIId | H58: length | I58: Surveys | J58: 22000 | K58: NA | L58: estimate based on an average of data from 2013-2015 | M58: 21034 | N58: 95.61 | O58: 78 | P58: a subsample or the toal catch of the speices by station
A59: DNK | B59: DNK | C59: 2017 | D59: Clupea harengus | E59: North Sea and Eastern Arctic | F59: ICES | G59: IV, VIId | H59: sex | I59: Harbour sampling | J59: 1500 | K59: NA | L59: estimate based on samples from 2015 | M59: 1687 | N59: 112.47 | O59: 59 | P59: close to census sampling from the Danish harbors. Most landings goes into 2 major Danish harbors were all trips are sampled
A60: DNK | B60: DNK | C60: 2017 | D60: Clupea harengus | E60: North Sea and Eastern Arctic | F60: ICES | G60: IV, VIId | H60: sex | I60: Surveys | J60: 2500 | K60: NA | L60: estimate based on an average of data from 2013-2015 | M60: 2164 | N60: 86.56 | O60: 78 | P60: 1 fish per scm/ station
A61: DNK | B61: DNK | C61: 2017 | D61: Clupea harengus | E61: North Sea and Eastern Arctic | F61: ICES | G61: IV, VIId | H61: weight | I61: Harbour sampling | J61: 1500 | K61: NA | L61: estimate based on samples from 2015 | M61: 8732 | N61: =(M61/J61)*100 -> 582.1333333 | O61: 59 | P61: close to census sampling from the Danish harbors. Most landings goes into 2 major Danish harbors were all trips are sampled | Q61: In scrutinizing the data a coding mistake was discovered. This indicates that for the industrial sampling programs (including brown shrimps and Pandalus) the correct measured numbers on weight have increased compared to the former version.
A62: DNK | B62: DNK | C62: 2017 | D62: Clupea harengus | E62: North Sea and Eastern Arctic | F62: ICES | G62: IV, VIId | H62: weight | I62: Oberserver at sea | J62: 0 | K62: NA | L62: estimate based on an average of data from 2013-2015 | M62: 245 | N62: Inf | O62: 29 | P62: all species caught are registered by total weight and number | Q62: This species is not a focus species in the observer program as we have a targeted program for herring. Therefore, sampling of this species in the observer program is considered sporadic
A63: DNK | B63: DNK | C63: 2017 | D63: Clupea harengus | E63: North Sea and Eastern Arctic | F63: ICES | G63: IV, VIId | H63: weight | I63: Self-sampling | J63: 800 | K63: NA | L63: estimate based on an average of data from 2013-2015 | M63: 165 | N63: 20.62 | O63: 8 | P63: Fishermen are asked to deliver 1 sample per trip. However this is on a voluntary basis and the samples are therefore not sampled randomly. Most samples are dirived from sprat sampling as with herring ad by catch. | Q63: self-sampling on herring is from sprat sampling as by catch, every herring in the sample is measured
A64: DNK | B64: DNK | C64: 2017 | D64: Clupea harengus | E64: North Sea and Eastern Arctic | F64: ICES | G64: IV, VIId | H64: weight | I64: Surveys | J64: 2500 | K64: NA | L64: estimate based on an average of data from 2013-2015 | M64: 2380 | N64: 95.2 | O64: 78 | P64: 1 fish per scm/ station
A65: DNK | B65: DNK | C65: 2017 | D65: Clupea harengus | E65: North Sea and Eastern Arctic | F65: ICES | G65: IV, VIId | H65: age | I65: Harbour sampling | J65: 1500 | K65: NA | L65: estimate based on samples from 2015 | M65: 1692 | N65: 112.8 | O65: 59 | P65: close to census sampling from the Danish harbors. Most landings goes into 2 major Danish harbors were all trips are sampled
A66: DNK | B66: DNK | C66: 2017 | D66: Clupea harengus | E66: North Sea and Eastern Arctic | F66: ICES | G66: IV, VIId | H66: age | I66: Oberserver at sea | J66: 0 | K66: NA | L66: estimate based on an average of data from 2013-2015 | M66: 174 | N66: Inf | O66: 29 | P66: all species caught are registered by total weight and number | Q66: This species is not a focus species in the observer program as we have a targeted program for herring. Therefore, sampling of this species in the observer program is considered sporadic
A67: DNK | B67: DNK | C67: 2017 | D67: Clupea harengus | E67: North Sea and Eastern Arctic | F67: ICES | G67: IV, VIId | H67: age | I67: Self-sampling | J67: 700 | K67: NA | L67: estimate based on an average of data from 2013-2015 | M67: 163 | N67: 23.29 | O67: 8 | P67: Fishermen are asked to deliver 1 sample per trip. However this is on a voluntary basis and the samples are therefore not sampled randomly. Most samples are dirived from sprat sampling as with herring ad by catch. | Q67: self-sampling on herring is from sprat sampling as by catch, every herring in the sample is measured
A68: DNK | B68: DNK | C68: 2017 | D68: Clupea harengus | E68: North Sea and Eastern Arctic | F68: ICES | G68: IV, VIId | H68: age | I68: Surveys | J68: 2500 | K68: NA | L68: estimate based on an average of data from 2013-2015 | M68: 2163 | N68: 86.52 | O68: 78 | P68: 1 fish per scm/ station
A69: DNK | B69: DNK | C69: 2017 | D69: Clupea harengus | E69: North Sea and Eastern Arctic | F69: ICES | G69: IV, VIId | H69: maturity | I69: Harbour sampling | J69: 1500 | K69: NA | L69: estimate based on samples from 2015 | M69: 1687 | N69: 112.47 | O69: 59 | P69: close to census sampling from the Danish harbors. Most landings goes into 2 major Danish harbors were all trips are sampled
A70: DNK | B70: DNK | C70: 2017 | D70: Clupea harengus | E70: North Sea and Eastern Arctic | F70: ICES | G70: IV, VIId | H70: maturity | I70: Surveys | J70: 2500 | K70: NA | L70: estimate based on an average of data from 2013-2015 | M70: 2164 | N70: 86.56 | O70: 78 | P70: 1 fish per scm/ station
A71: DNK | B71: DNK | C71: 2017 | D71: Clupea harengus | E71: North Sea and Eastern Arctic | F71: ICES | G71: IIIa | H71: length | I71: Harbour sampling | J71: 3000 | K71: NA | L71: estimate based on samples from 2015 | M71: 1619 | N71: =(M71/J71)*100 -> 53.96666667 | O71: 8 | P71: close to census sampling from the Danish harbors. Most landings goes into 2 major Danish harbors were all trips are sampled | Q71: landings has decreased by 51% in 2017
A72: DNK | B72: DNK | C72: 2017 | D72: Clupea harengus | E72: North Sea and Eastern Arctic | F72: ICES | G72: IIIa | H72: length | I72: Oberserver at sea | J72: 500 | K72: NA | L72: estimate based on an average of data from 2013-2015 | M72: 795 | N72: 159 | O72: 46 | P72: all species caught are registered by total weight and number and a subsample or the total catch is length measured
A73: DNK | B73: DNK | C73: 2017 | D73: Clupea harengus | E73: North Sea and Eastern Arctic | F73: ICES | G73: IIIa | H73: length | I73: Self-sampling | J73: 0 | K73: NA | L73: estimate based on an average of data from 2013-2015 | M73: 16 | N73: Inf | O73: 2 | Q73: self-sampling on herring is from sprat sampling as by catch, every herring in the sample is measured
A74: DNK | B74: DNK | C74: 2017 | D74: Clupea harengus | E74: North Sea and Eastern Arctic | F74: ICES | G74: IIIa | H74: length | I74: Surveys | J74: 18000 | K74: NA | L74: estimate based on an average of data from 2013-2015 | M74: 14738 | N74: 81.88 | O74: 179 | P74: a subsample or the toal catch of the speices by station
A75: DNK | B75: DNK | C75: 2017 | D75: Clupea harengus | E75: North Sea and Eastern Arctic | F75: ICES | G75: IIIa | H75: sex | I75: Harbour sampling | J75: 200 | K75: NA | L75: estimate based on samples from 2015 | M75: 324 | N75: 162 | O75: 8 | P75: close to census sampling from the Danish harbors. Most landings goes into 2 major Danish harbors were all trips are sampled | Q75: landings has decreased by 51% in 2017
A76: DNK | B76: DNK | C76: 2017 | D76: Clupea harengus | E76: North Sea and Eastern Arctic | F76: ICES | G76: IIIa | H76: sex | I76: Surveys | J76: 2000 | K76: NA | L76: estimate based on an average of data from 2013-2015 | M76: 1681 | N76: 84.05 | O76: 179 | P76: 1 fish per scm/ station
A77: DNK | B77: DNK | C77: 2017 | D77: Clupea harengus | E77: North Sea and Eastern Arctic | F77: ICES | G77: IIIa | H77: weight | I77: Harbour sampling | J77: 1000 | K77: NA | L77: estimate based on samples from 2015 | M77: 1619 | N77: =(M77/J77)*100 -> 161.9 | O77: 8 | P77: close to census sampling from the Danish harbors. Most landings goes into 2 major Danish harbors were all trips are sampled | Q77: In scrutinizing the data a coding mistake was discovered. This indicates that for the industrial sampling programs (including brown shrimps and Pandalus) the correct measured numbers on weight have increased compared to the former version.
A78: DNK | B78: DNK | C78: 2017 | D78: Clupea harengus | E78: North Sea and Eastern Arctic | F78: ICES | G78: IIIa | H78: weight | I78: Self-sampling | J78: 0 | K78: NA | L78: estimate based on an average of data from 2013-2015 | M78: 16 | N78: Inf | O78: 2 | Q78: self-sampling on herring is from sprat sampling as by catch, every herring in the sample is measured
A79: DNK | B79: DNK | C79: 2017 | D79: Clupea harengus | E79: North Sea and Eastern Arctic | F79: ICES | G79: IIIa | H79: weight | I79: Surveys | J79: 2000 | K79: NA | L79: estimate based on an average of data from 2013-2015 | M79: 2033 | N79: 101.65 | O79: 179 | P79: 1 fish per scm/ station
A80: DNK | B80: DNK | C80: 2017 | D80: Clupea harengus | E80: North Sea and Eastern Arctic | F80: ICES | G80: IIIa | H80: age | I80: Harbour sampling | J80: 1000 | K80: NA | L80: estimate based on samples from 2015 | M80: 444 | N80: 44.4 | O80: 8 | P80: close to census sampling from the Danish harbors. Most landings goes into 2 major Danish harbors were all trips are sampled | Q80: landings has decreased by 51% in 2017
A81: DNK | B81: DNK | C81: 2017 | D81: Clupea harengus | E81: North Sea and Eastern Arctic | F81: ICES | G81: IIIa | H81: age | I81: Surveys | J81: 2000 | K81: NA | L81: estimate based on an average of data from 2013-2015 | M81: 1678 | N81: 83.9 | O81: 179 | P81: 1 fish per scm/ station
A82: DNK | B82: DNK | C82: 2017 | D82: Clupea harengus | E82: North Sea and Eastern Arctic | F82: ICES | G82: IIIa | H82: maturity | I82: Harbour sampling | J82: 200 | K82: NA | L82: estimate based on samples from 2015 | M82: 324 | N82: 162 | O82: 8 | P82: close to census sampling from the Danish harbors. Most landings goes into 2 major Danish harbors were all trips are sampled | Q82: landings has decreased by 51% in 2017
A83: DNK | B83: DNK | C83: 2017 | D83: Clupea harengus | E83: North Sea and Eastern Arctic | F83: ICES | G83: IIIa | H83: maturity | I83: Surveys | J83: 2000 | K83: NA | L83: estimate based on an average of data from 2013-2015 | M83: 1681 | N83: 84.05 | O83: 179 | P83: 1 fish per scm/ station
A84: DNK | B84: DNK | C84: 2017 | D84: Crangon crangon | E84: North Sea and Eastern Arctic | F84: ICES | G84: IV, VIId | H84: length | I84: Oberserver at sea | J84: 8000 | K84: NA | L84: estimate based on an average of data from 2013-2015 | M84: 6010 | N84: 75.12 | O84: 18 | P84: all species caught are registered by total weight and number and a subsample or the total catch is length measured | Q84: More samples from 2017 has been located and will be procesed before the next assessment in august.
A85: DNK | B85: DNK | C85: 2017 | D85: Crangon crangon | E85: North Sea and Eastern Arctic | F85: ICES | G85: IV, VIId | H85: sex | I85: Oberserver at sea | J85: 1500 | K85: NA | L85: estimate based on an average of data from 2013-2015 | M85: 643 | N85: =(M85/J85)*100 -> 42.86666667 | O85: 18 | Q85: A mistake in the script summing method caused to few individuals to be accounted for - the number has been corrected. Further more samples from 2017 has been located and will be procesed before the next assessment in august.
A86: DNK | B86: DNK | C86: 2017 | D86: Crangon crangon | E86: North Sea and Eastern Arctic | F86: ICES | G86: IV, VIId | H86: weight | I86: Oberserver at sea | J86: 8000 | K86: NA | L86: estimate based on an average of data from 2013-2015 | M86: 6010 | N86: 75.12 | O86: 18 | P86: all species caught are registered by total weight and number | Q86: A mistake in the script summing method caused to few individuals to be accounted for - the number has been corrected. Further more samples from 2017 has been located and will be procesed before the next assessment in august.
A87: DNK | B87: DNK | C87: 2017 | D87: Crangon crangon | E87: North Sea and Eastern Arctic | F87: ICES | G87: IV, VIId | H87: maturity | I87: Oberserver at sea | J87: 1000 | K87: NA | L87: estimate based on an average of data from 2013-2015 | M87: 0 | N87: 0 | O87: 0 | P87: maturity is not conducted on brown shrimps
A88: DNK | B88: DNK | C88: 2017 | D88: Eutrigla gurnardus | E88: North Sea and Eastern Arctic | F88: ICES | G88: IV | H88: length | I88: Harbour sampling | J88: 200 | K88: NA | L88: new sampling | M88: 1 | N88: 0.5 | O88: 1 | Q88: landings has decreased by 98% - to 10 t in 2017
A89: DNK | B89: DNK | C89: 2017 | D89: Eutrigla gurnardus | E89: North Sea and Eastern Arctic | F89: ICES | G89: IV | H89: length | I89: Oberserver at sea | J89: 2500 | K89: NA | L89: estimate based on an average of data from 2013-2015 | M89: 2520 | N89: 100.8 | O89: 22 | P89: all species caught are registered by total weight and number and a subsample or the total catch is length measured
A90: DNK | B90: DNK | C90: 2017 | D90: Eutrigla gurnardus | E90: North Sea and Eastern Arctic | F90: ICES | G90: IV | H90: length | I90: Surveys | J90: 5000 | K90: NA | L90: estimate based on an average of data from 2013-2015 | M90: 7320 | N90: 146.4 | O90: 89 | P90: a subsample or the toal catch of the speices by station
A91: DNK | B91: DNK | C91: 2017 | D91: Eutrigla gurnardus | E91: North Sea and Eastern Arctic | F91: ICES | G91: IV | H91: sex | I91: Surveys | J91: 200 | K91: NA | L91: estimate based on an average of data from 2013-2015 | M91: 200 | N91: 100 | O91: 89 | P91: 1 fish per cm/ station
A92: DNK | B92: DNK | C92: 2017 | D92: Eutrigla gurnardus | E92: North Sea and Eastern Arctic | F92: ICES | G92: IV | H92: weight | I92: Harbour sampling | J92: 200 | K92: NA | L92: new sampling | M92: 0 | N92: 0 | O92: 0 | Q92: landings has decreased by 98% - to 10 t in 2017
A93: DNK | B93: DNK | C93: 2017 | D93: Eutrigla gurnardus | E93: North Sea and Eastern Arctic | F93: ICES | G93: IV | H93: weight | I93: Surveys | J93: 200 | K93: NA | L93: estimate based on an average of data from 2013-2015 | M93: 200 | N93: 100 | O93: 89 | P93: 1 fish per cm/ station
A94: DNK | B94: DNK | C94: 2017 | D94: Eutrigla gurnardus | E94: North Sea and Eastern Arctic | F94: ICES | G94: IV | H94: age | I94: Harbour sampling | J94: 200 | K94: NA | L94: new sampling | M94: 0 | N94: 0 | O94: 0 | Q94: landings has decreased by 98% - to 10 t in 2017
A95: DNK | B95: DNK | C95: 2017 | D95: Eutrigla gurnardus | E95: North Sea and Eastern Arctic | F95: ICES | G95: IV | H95: age | I95: Surveys | J95: 200 | K95: NA | L95: estimate based on an average of data from 2013-2015 | M95: 0 | N95: 0 | O95: 0 | Q95: is prenently not aged
A96: DNK | B96: DNK | C96: 2017 | D96: Eutrigla gurnardus | E96: North Sea and Eastern Arctic | F96: ICES | G96: IV | H96: maturity | I96: Surveys | J96: 200 | K96: NA | L96: estimate based on an average of data from 2013-2015 | M96: 200 | N96: 100 | O96: 89 | P96: 1 fish per cm/ station
A97: DNK | B97: DNK | C97: 2017 | D97: Gadus morhua | E97: Baltic Sea | F97: ICES | G97: 25-32 | H97: length | I97: Harbour sampling | J97: 1500 | K97: NA | L97: estimate based on samples from 2015 | M97: 2158 | N97: 143.87 | O97: 13 | P97: harbors selected according to preselected scheme. On each harbor day visit 1 box per size sorting group is selected for measurements of length, weight and age
A98: DNK | B98: DNK | C98: 2017 | D98: Gadus morhua | E98: Baltic Sea | F98: ICES | G98: 25-32 | H98: length | I98: Oberserver at sea | J98: 11000 | K98: NA | L98: estimate based on an average of data from 2013-2015 | M98: 7803 | N98: 70.94 | O98: 21 | P98: all species caught are registered by total weight and number and a subsample or the total catch is length measured
A99: DNK | B99: DNK | C99: 2017 | D99: Gadus morhua | E99: Baltic Sea | F99: ICES | G99: 25-32 | H99: length | I99: Surveys | J99: 59000 | K99: NA | L99: estimate based on an average of data from 2013-2015 | M99: 40078 | N99: 67.93 | O99: 80 | P99: a subsample or the toal catch of the speices by station
A100: DNK | B100: DNK | C100: 2017 | D100: Gadus morhua | E100: Baltic Sea | F100: ICES | G100: 25-32 | H100: sex | I100: Harbour sampling | J100: 0 | K100: NA | L100: estimate based on samples from 2015 | M100: 873 | N100: Inf | O100: 13
A101: DNK | B101: DNK | C101: 2017 | D101: Gadus morhua | E101: Baltic Sea | F101: ICES | G101: 25-32 | H101: sex | I101: Oberserver at sea | J101: 0 | K101: NA | L101: estimate based on an average of data from 2013-2015 | M101: 707 | N101: Inf | O101: 21
A102: DNK | B102: DNK | C102: 2017 | D102: Gadus morhua | E102: Baltic Sea | F102: ICES | G102: 25-32 | H102: sex | I102: Surveys | J102: 1000 | K102: NA | L102: estimate based on an average of data from 2013-2015 | M102: 2134 | N102: 213.4 | O102: 80 | P102: 1 fish per cm/ station
A103: DNK | B103: DNK | C103: 2017 | D103: Gadus morhua | E103: Baltic Sea | F103: ICES | G103: 25-32 | H103: weight | I103: Harbour sampling | J103: 1500 | K103: NA | L103: estimate based on samples from 2015 | M103: 2158 | N103: 143.87 | O103: 13 | P103: harbors selected according to preselected scheme. On each harbor day visit 1 box per size sorting group is selected for measurements of length, weight and age
A104: DNK | B104: DNK | C104: 2017 | D104: Gadus morhua | E104: Baltic Sea | F104: ICES | G104: 25-32 | H104: weight | I104: Oberserver at sea | J104: 300 | K104: NA | L104: estimate based on an average of data from 2013-2015 | M104: 715 | N104: 238.33 | O104: 21 | P104: 1 fish per cm/ haul. Max 3 fish / cm / trip
A105: DNK | B105: DNK | C105: 2017 | D105: Gadus morhua | E105: Baltic Sea | F105: ICES | G105: 25-32 | H105: weight | I105: Surveys | J105: 1000 | K105: NA | L105: estimate based on an average of data from 2013-2015 | M105: 2275 | N105: 227.5 | O105: 80 | P105: 1 fish per cm/ station
A106: DNK | B106: DNK | C106: 2017 | D106: Gadus morhua | E106: Baltic Sea | F106: ICES | G106: 25-32 | H106: maturity | I106: Surveys | J106: 1000 | K106: NA | L106: estimate based on an average of data from 2013-2015 | M106: 1236 | N106: 123.6 | O106: 80 | P106: 1 fish per cm/ station
A107: DNK | B107: DNK | C107: 2017 | D107: Gadus morhua | E107: North Sea and Eastern Arctic | F107: ICES | G107: IIIaN | H107: age | I107: Harbour sampling | J107: NA | K107: NA | L107: Due to a coding mistake in the area, this stock was not included in the applied work plan. However, the stock has been part of the actual work plan and has been sampled accordingly | M107: 1441 | N107: NA | O107: 38
A108: DNK | B108: DNK | C108: 2017 | D108: Gadus morhua | E108: North Sea and Eastern Arctic | F108: ICES | G108: IIIaN | H108: age | I108: Oberserver at sea | J108: NA | K108: NA | L108: Due to a coding mistake in the area, this stock was not included in the applied work plan. However, the stock has been part of the actual work plan and has been sampled accordingly | M108: 1709 | N108: NA | O108: 134 | Q108: Due to a coding mistake in area IIIa, this stock was not included in the applied work plan. However, the stock has been part of the actual work plan and has been sampled accordingly.
A109: DNK | B109: DNK | C109: 2017 | D109: Gadus morhua | E109: North Sea and Eastern Arctic | F109: ICES | G109: IIIaN | H109: age | I109: Surveys | J109: NA | K109: NA | L109: Due to a coding mistake in the area, this stock was not included in the applied work plan. However, the stock has been part of the actual work plan and has been sampled accordingly | M109: 1614 | N109: NA | O109: 220 | Q109: Due to a coding mistake in area IIIa, this stock was not included in the applied work plan. However, the stock has been part of the actual work plan and has been sampled accordingly.
A110: DNK | B110: DNK | C110: 2017 | D110: Gadus morhua | E110: North Sea and Eastern Arctic | F110: ICES | G110: IIIaN | H110: length | I110: Harbour sampling | J110: NA | K110: NA | L110: Due to a coding mistake in the area, this stock was not included in the applied work plan. However, the stock has been part of the actual work plan and has been sampled accordingly | M110: 1665 | N110: NA | O110: 38
A111: DNK | B111: DNK | C111: 2017 | D111: Gadus morhua | E111: North Sea and Eastern Arctic | F111: ICES | G111: IIIaN | H111: length | I111: Oberserver at sea | J111: NA | K111: NA | L111: Due to a coding mistake in the area, this stock was not included in the applied work plan. However, the stock has been part of the actual work plan and has been sampled accordingly | M111: 9102 | N111: NA | O111: 134 | Q111: Due to a coding mistake in area IIIa, this stock was not included in the applied work plan. However, the stock has been part of the actual work plan and has been sampled accordingly.
A112: DNK | B112: DNK | C112: 2017 | D112: Gadus morhua | E112: North Sea and Eastern Arctic | F112: ICES | G112: IIIaN | H112: length | I112: Surveys | J112: NA | K112: NA | L112: Due to a coding mistake in the area, this stock was not included in the applied work plan. However, the stock has been part of the actual work plan and has been sampled accordingly | M112: 9534 | N112: NA | O112: 220 | Q112: Due to a coding mistake in area IIIa, this stock was not included in the applied work plan. However, the stock has been part of the actual work plan and has been sampled accordingly.
A113: DNK | B113: DNK | C113: 2017 | D113: Gadus morhua | E113: North Sea and Eastern Arctic | F113: ICES | G113: IIIaN | H113: maturity | I113: Surveys | J113: NA | K113: NA | L113: Due to a coding mistake in the area, this stock was not included in the applied work plan. However, the stock has been part of the actual work plan and has been sampled accordingly | M113: 1606 | N113: NA | O113: 220 | Q113: Due to a coding mistake in area IIIa, this stock was not included in the applied work plan. However, the stock has been part of the actual work plan and has been sampled accordingly.
A114: DNK | B114: DNK | C114: 2017 | D114: Gadus morhua | E114: North Sea and Eastern Arctic | F114: ICES | G114: IIIaN | H114: sex | I114: Oberserver at sea | J114: NA | K114: NA | L114: Due to a coding mistake in the area, this stock was not included in the applied work plan. However, the stock has been part of the actual work plan and has been sampled accordingly | M114: 299 | N114: NA | O114: 134 | Q114: Due to a coding mistake in area IIIa, this stock was not included in the applied work plan. However, the stock has been part of the actual work plan and has been sampled accordingly.
A115: DNK | B115: DNK | C115: 2017 | D115: Gadus morhua | E115: North Sea and Eastern Arctic | F115: ICES | G115: IIIaN | H115: sex | I115: Surveys | J115: NA | K115: NA | L115: Due to a coding mistake in the area, this stock was not included in the applied work plan. However, the stock has been part of the actual work plan and has been sampled accordingly | M115: 1612 | N115: NA | O115: 220 | Q115: Due to a coding mistake in area IIIa, this stock was not included in the applied work plan. However, the stock has been part of the actual work plan and has been sampled accordingly.
A116: DNK | B116: DNK | C116: 2017 | D116: Gadus morhua | E116: North Sea and Eastern Arctic | F116: ICES | G116: IIIaN | H116: weight | I116: Harbour sampling | J116: NA | K116: NA | L116: Due to a coding mistake in the area, this stock was not included in the applied work plan. However, the stock has been part of the actual work plan and has been sampled accordingly | M116: 1462 | N116: NA | O116: 38
A117: DNK | B117: DNK | C117: 2017 | D117: Gadus morhua | E117: North Sea and Eastern Arctic | F117: ICES | G117: IIIaN | H117: weight | I117: Oberserver at sea | J117: NA | K117: NA | L117: Due to a coding mistake in the area, this stock was not included in the applied work plan. However, the stock has been part of the actual work plan and has been sampled accordingly | M117: 1743 | N117: NA | O117: 134 | Q117: Due to a coding mistake in area IIIa, this stock was not included in the applied work plan. However, the stock has been part of the actual work plan and has been sampled accordingly.
A118: DNK | B118: DNK | C118: 2017 | D118: Gadus morhua | E118: North Sea and Eastern Arctic | F118: ICES | G118: IIIaN | H118: weight | I118: Surveys | J118: NA | K118: NA | L118: Due to a coding mistake in the area, this stock was not included in the applied work plan. However, the stock has been part of the actual work plan and has been sampled accordingly | M118: 1617 | N118: NA | O118: 220 | Q118: Due to a coding mistake in area IIIa, this stock was not included in the applied work plan. However, the stock has been part of the actual work plan and has been sampled accordingly.
A119: DNK | B119: DNK | C119: 2017 | D119: Gadus morhua | E119: North Sea and Eastern Arctic | F119: ICES | G119: IIIaS | H119: age | I119: Harbour sampling | J119: NA | K119: NA | L119: Due to a coding mistake in the area, this stock was not included in the applied work plan. However, the stock has been part of the actual work plan and has been sampled accordingly | M119: 1441 | N119: NA | O119: 38
A120: DNK | B120: DNK | C120: 2017 | D120: Gadus morhua | E120: North Sea and Eastern Arctic | F120: ICES | G120: IIIaS | H120: age | I120: Oberserver at sea | J120: NA | K120: NA | L120: Due to a coding mistake in the area, this stock was not included in the applied work plan. However, the stock has been part of the actual work plan and has been sampled accordingly | M120: 1709 | N120: NA | O120: 134 | Q120: Due to a coding mistake in area IIIa, this stock was not included in the applied work plan. However, the stock has been part of the actual work plan and has been sampled accordingly.
A121: DNK | B121: DNK | C121: 2017 | D121: Gadus morhua | E121: North Sea and Eastern Arctic | F121: ICES | G121: IIIaS | H121: age | I121: Surveys | J121: NA | K121: NA | L121: Due to a coding mistake in the area, this stock was not included in the applied work plan. However, the stock has been part of the actual work plan and has been sampled accordingly | M121: 1614 | N121: NA | O121: 220 | Q121: Due to a coding mistake in area IIIa, this stock was not included in the applied work plan. However, the stock has been part of the actual work plan and has been sampled accordingly.
A122: DNK | B122: DNK | C122: 2017 | D122: Gadus morhua | E122: North Sea and Eastern Arctic | F122: ICES | G122: IIIaS | H122: length | I122: Harbour sampling | J122: NA | K122: NA | L122: Due to a coding mistake in the area, this stock was not included in the applied work plan. However, the stock has been part of the actual work plan and has been sampled accordingly | M122: 1665 | N122: NA | O122: 38
A123: DNK | B123: DNK | C123: 2017 | D123: Gadus morhua | E123: North Sea and Eastern Arctic | F123: ICES | G123: IIIaS | H123: length | I123: Oberserver at sea | J123: NA | K123: NA | L123: Due to a coding mistake in the area, this stock was not included in the applied work plan. However, the stock has been part of the actual work plan and has been sampled accordingly | M123: 9102 | N123: NA | O123: 134 | Q123: Due to a coding mistake in area IIIa, this stock was not included in the applied work plan. However, the stock has been part of the actual work plan and has been sampled accordingly.
A124: DNK | B124: DNK | C124: 2017 | D124: Gadus morhua | E124: North Sea and Eastern Arctic | F124: ICES | G124: IIIaS | H124: length | I124: Surveys | J124: NA | K124: NA | L124: Due to a coding mistake in the area, this stock was not included in the applied work plan. However, the stock has been part of the actual work plan and has been sampled accordingly | M124: 9534 | N124: NA | O124: 220 | Q124: Due to a coding mistake in area IIIa, this stock was not included in the applied work plan. However, the stock has been part of the actual work plan and has been sampled accordingly.
A125: DNK | B125: DNK | C125: 2017 | D125: Gadus morhua | E125: North Sea and Eastern Arctic | F125: ICES | G125: IIIaS | H125: maturity | I125: Surveys | J125: NA | K125: NA | L125: Due to a coding mistake in the area, this stock was not included in the applied work plan. However, the stock has been part of the actual work plan and has been sampled accordingly | M125: 1606 | N125: NA | O125: 220 | Q125: Due to a coding mistake in area IIIa, this stock was not included in the applied work plan. However, the stock has been part of the actual work plan and has been sampled accordingly.
A126: DNK | B126: DNK | C126: 2017 | D126: Gadus morhua | E126: North Sea and Eastern Arctic | F126: ICES | G126: IIIaS | H126: sex | I126: Oberserver at sea | J126: NA | K126: NA | L126: Due to a coding mistake in the area, this stock was not included in the applied work plan. However, the stock has been part of the actual work plan and has been sampled accordingly | M126: 299 | N126: NA | O126: 134 | Q126: Due to a coding mistake in area IIIa, this stock was not included in the applied work plan. However, the stock has been part of the actual work plan and has been sampled accordingly.
A127: DNK | B127: DNK | C127: 2017 | D127: Gadus morhua | E127: North Sea and Eastern Arctic | F127: ICES | G127: IIIaS | H127: sex | I127: Surveys | J127: NA | K127: NA | L127: Due to a coding mistake in the area, this stock was not included in the applied work plan. However, the stock has been part of the actual work plan and has been sampled accordingly | M127: 1612 | N127: NA | O127: 220 | Q127: Due to a coding mistake in area IIIa, this stock was not included in the applied work plan. However, the stock has been part of the actual work plan and has been sampled accordingly.
A128: DNK | B128: DNK | C128: 2017 | D128: Gadus morhua | E128: North Sea and Eastern Arctic | F128: ICES | G128: IIIaS | H128: weight | I128: Harbour sampling | J128: NA | K128: NA | L128: Due to a coding mistake in the area, this stock was not included in the applied work plan. However, the stock has been part of the actual work plan and has been sampled accordingly | M128: 1462 | N128: NA | O128: 38
A129: DNK | B129: DNK | C129: 2017 | D129: Gadus morhua | E129: North Sea and Eastern Arctic | F129: ICES | G129: IIIaS | H129: weight | I129: Oberserver at sea | J129: NA | K129: NA | L129: Due to a coding mistake in the area, this stock was not included in the applied work plan. However, the stock has been part of the actual work plan and has been sampled accordingly | M129: 1743 | N129: NA | O129: 134 | Q129: Due to a coding mistake in area IIIa, this stock was not included in the applied work plan. However, the stock has been part of the actual work plan and has been sampled accordingly.
A130: DNK | B130: DNK | C130: 2017 | D130: Gadus morhua | E130: North Sea and Eastern Arctic | F130: ICES | G130: IIIaS | H130: weight | I130: Surveys | J130: NA | K130: NA | L130: Due to a coding mistake in the area, this stock was not included in the applied work plan. However, the stock has been part of the actual work plan and has been sampled accordingly | M130: 1617 | N130: NA | O130: 220 | Q130: Due to a coding mistake in area IIIa, this stock was not included in the applied work plan. However, the stock has been part of the actual work plan and has been sampled accordingly.
A131: DNK | B131: DNK | C131: 2017 | D131: Gadus morhua | E131: North Sea and Eastern Arctic | F131: ICES | G131: IV, VIId | H131: length | I131: Harbour sampling | J131: 1000 | K131: NA | L131: estimate based on samples from 2015 | M131: 1422 | N131: 142.2 | O131: 28 | P131: harbors selected according to preselected scheme. On each harbor day visit 1 box per size sorting group is selected for measurements of length, weight and age
A132: DNK | B132: DNK | C132: 2017 | D132: Gadus morhua | E132: North Sea and Eastern Arctic | F132: ICES | G132: IV, VIId | H132: length | I132: Oberserver at sea | J132: 3500 | K132: NA | L132: estimate based on an average of data from 2013-2015 | M132: 1547 | N132: 44.2 | O132: 28 | P132: all species caught are registered by total weight and number and a subsample or the total catch is length measured
A133: DNK | B133: DNK | C133: 2017 | D133: Gadus morhua | E133: North Sea and Eastern Arctic | F133: ICES | G133: IV, VIId | H133: length | I133: Surveys | J133: 500 | K133: NA | L133: estimate based on an average of data from 2013-2015 | M133: 1002 | N133: 200.4 | O133: 54 | P133: a subsample or the toal catch of the speices by station
A134: DNK | B134: DNK | C134: 2017 | D134: Gadus morhua | E134: North Sea and Eastern Arctic | F134: ICES | G134: IV, VIId | H134: sex | I134: Oberserver at sea | J134: 0 | K134: NA | L134: estimate based on an average of data from 2013-2015 | M134: 13 | N134: Inf | O134: 13
A135: DNK | B135: DNK | C135: 2017 | D135: Gadus morhua | E135: North Sea and Eastern Arctic | F135: ICES | G135: IV, VIId | H135: sex | I135: Surveys | J135: 200 | K135: NA | L135: estimate based on an average of data from 2013-2015 | M135: 203 | N135: 101.5 | O135: 54 | P135: 1 fish per cm/ station
A136: DNK | B136: DNK | C136: 2017 | D136: Gadus morhua | E136: North Sea and Eastern Arctic | F136: ICES | G136: IV, VIId | H136: weight | I136: Harbour sampling | J136: 1000 | K136: NA | L136: estimate based on samples from 2015 | M136: 1157 | N136: 115.7 | O136: 28 | P136: harbors selected according to preselected scheme. On each harbor day visit 1 box per size sorting group is selected for measurements of length, weight and age
A137: DNK | B137: DNK | C137: 2017 | D137: Gadus morhua | E137: North Sea and Eastern Arctic | F137: ICES | G137: IV, VIId | H137: weight | I137: Oberserver at sea | J137: 400 | K137: NA | L137: estimate based on an average of data from 2013-2015 | M137: 248 | N137: 62 | O137: 28 | P137: 1 fish per cm/ haul. Max 3 fish / cm / trip
A138: DNK | B138: DNK | C138: 2017 | D138: Gadus morhua | E138: North Sea and Eastern Arctic | F138: ICES | G138: IV, VIId | H138: weight | I138: Surveys | J138: 200 | K138: NA | L138: estimate based on an average of data from 2013-2015 | M138: 213 | N138: 106.5 | O138: 54 | P138: 1 fish per cm/ station
A139: DNK | B139: DNK | C139: 2017 | D139: Gadus morhua | E139: North Sea and Eastern Arctic | F139: ICES | G139: IV, VIId | H139: age | I139: Harbour sampling | J139: 1000 | K139: NA | L139: estimate based on samples from 2015 | M139: 1136 | N139: 113.6 | O139: 28 | P139: harbors selected according to preselected scheme. On each harbor day visit 1 box per size sorting group is selected for measurements of length, weight and age
A140: DNK | B140: DNK | C140: 2017 | D140: Gadus morhua | E140: North Sea and Eastern Arctic | F140: ICES | G140: IV, VIId | H140: age | I140: Oberserver at sea | J140: 400 | K140: NA | L140: estimate based on an average of data from 2013-2015 | M140: 221 | N140: 55.25 | O140: 28 | P140: 1 fish per cm/ haul. Max 3 fish / cm / trip
A141: DNK | B141: DNK | C141: 2017 | D141: Gadus morhua | E141: North Sea and Eastern Arctic | F141: ICES | G141: IV, VIId | H141: age | I141: Surveys | J141: 200 | K141: NA | L141: estimate based on an average of data from 2013-2015 | M141: 200 | N141: 100 | O141: 54 | P141: 1 fish per cm/ station
A142: DNK | B142: DNK | C142: 2017 | D142: Gadus morhua | E142: North Sea and Eastern Arctic | F142: ICES | G142: IV, VIId | H142: maturity | I142: Surveys | J142: 100 | K142: NA | L142: estimate based on an average of data from 2013-2015 | M142: 99 | N142: 99 | O142: 54 | P142: 1 fish per cm/ station
A143: DNK | B143: DNK | C143: 2017 | D143: Gadus morhua | E143: Baltic Sea | F143: ICES | G143: 22-24 | H143: length | I143: Harbour sampling | J143: 1000 | K143: NA | L143: estimate based on samples from 2015 | M143: 2557 | N143: 255.7 | O143: 42 | P143: harbors selected according to preselected scheme. On each harbor day visit 1 box per size sorting group is selected for measurements of length, weight and age
A144: DNK | B144: DNK | C144: 2017 | D144: Gadus morhua | E144: Baltic Sea | F144: ICES | G144: 22-24 | H144: length | I144: Oberserver at sea | J144: 5000 | K144: NA | L144: estimate based on an average of data from 2013-2015 | M144: 1974 | N144: 39.48 | O144: 28 | P144: all species caught are registered by total weight and number and a subsample or the total catch is length measured
A145: DNK | B145: DNK | C145: 2017 | D145: Gadus morhua | E145: Baltic Sea | F145: ICES | G145: 22-24 | H145: length | I145: Surveys | J145: 2000 | K145: NA | L145: estimate based on an average of data from 2013-2015 | M145: 8084 | N145: 404.2 | O145: 81 | P145: a subsample or the toal catch of the speices by station
A146: DNK | B146: DNK | C146: 2017 | D146: Gadus morhua | E146: Baltic Sea | F146: ICES | G146: 22-24 | H146: sex | I146: Oberserver at sea | J146: 0 | K146: NA | L146: estimate based on an average of data from 2013-2015 | M146: 138 | N146: Inf | O146: 28
A147: DNK | B147: DNK | C147: 2017 | D147: Gadus morhua | E147: Baltic Sea | F147: ICES | G147: 22-24 | H147: sex | I147: Surveys | J147: 400 | K147: NA | L147: estimate based on an average of data from 2013-2015 | M147: 705 | N147: 176.25 | O147: 81 | P147: 1 fish per cm/ station
A148: DNK | B148: DNK | C148: 2017 | D148: Gadus morhua | E148: Baltic Sea | F148: ICES | G148: 22-24 | H148: weight | I148: Harbour sampling | J148: 1000 | K148: NA | L148: estimate based on samples from 2015 | M148: 2557 | N148: 255.7 | O148: 42 | P148: harbors selected according to preselected scheme. On each harbor day visit 1 box per size sorting group is selected for measurements of length, weight and age
A149: DNK | B149: DNK | C149: 2017 | D149: Gadus morhua | E149: Baltic Sea | F149: ICES | G149: 22-24 | H149: weight | I149: Oberserver at sea | J149: 300 | K149: NA | L149: estimate based on an average of data from 2013-2015 | M149: 188 | N149: 62.67 | O149: 28 | P149: 1 fish per cm/ haul. Max 3 fish / cm / trip
A150: DNK | B150: DNK | C150: 2017 | D150: Gadus morhua | E150: Baltic Sea | F150: ICES | G150: 22-24 | H150: weight | I150: Surveys | J150: 400 | K150: NA | L150: estimate based on an average of data from 2013-2015 | M150: 720 | N150: 180 | O150: 81 | P150: 1 fish per cm/ station
A151: DNK | B151: DNK | C151: 2017 | D151: Gadus morhua | E151: Baltic Sea | F151: ICES | G151: 22-24 | H151: age | I151: Harbour sampling | J151: 800 | K151: NA | L151: estimate based on samples from 2015 | M151: 864 | N151: 108 | O151: 42 | P151: harbors selected according to preselected scheme. On each harbor day visit 1 box per size sorting group is selected for measurements of length, weight and age | Q151: cod from SD 24 can not be aged but are colleted and stored for shape analysis
A152: DNK | B152: DNK | C152: 2017 | D152: Gadus morhua | E152: Baltic Sea | F152: ICES | G152: 22-24 | H152: age | I152: Oberserver at sea | J152: 300 | K152: NA | L152: estimate based on an average of data from 2013-2015 | M152: 31 | N152: 10.33 | O152: 28 | P152: 1 fish per cm/ haul. Max 3 fish / cm / trip
A153: DNK | B153: DNK | C153: 2017 | D153: Gadus morhua | E153: Baltic Sea | F153: ICES | G153: 22-24 | H153: age | I153: Surveys | J153: 400 | K153: NA | L153: estimate based on an average of data from 2013-2015 | M153: 647 | N153: 161.75 | O153: 81 | P153: 1 fish per cm/ station
A154: DNK | B154: DNK | C154: 2017 | D154: Gadus morhua | E154: Baltic Sea | F154: ICES | G154: 22-24 | H154: maturity | I154: Surveys | J154: 400 | K154: NA | L154: estimate based on an average of data from 2013-2015 | M154: 646 | N154: 161.5 | O154: 81 | P154: 1 fish per cm/ station
A155: DNK | B155: DNK | C155: 2017 | D155: Glyptocephalus cynoglossus | E155: North Sea and Eastern Arctic | F155: ICES | G155: IIIa, IV | H155: length | I155: Harbour sampling | J155: 3000 | K155: NA | L155: estimate based on samples from 2015 | M155: 4090 | N155: 136.33 | O155: 16 | P155: harbors selected according to preselected scheme. On each harbor day visit 1 box per size sorting group is selected for measurements of length, weight and age. For flatfishes only 2 fish per cm are used for individual age and weight
A156: DNK | B156: DNK | C156: 2017 | D156: Glyptocephalus cynoglossus | E156: North Sea and Eastern Arctic | F156: ICES | G156: IIIa, IV | H156: length | I156: Oberserver at sea | J156: 4000 | K156: NA | L156: estimate based on an average of data from 2013-2015 | M156: 2343 | N156: 58.58 | O156: 71 | P156: all species caught are registered by total weight and number and a subsample or the total catch is length measured
A157: DNK | B157: DNK | C157: 2017 | D157: Glyptocephalus cynoglossus | E157: North Sea and Eastern Arctic | F157: ICES | G157: IIIa, IV | H157: length | I157: Surveys | J157: 500 | K157: NA | L157: estimate based on an average of data from 2013-2015 | M157: 831 | N157: 166.2 | O157: 98 | P157: a subsample or the toal catch of the speices by station
A158: DNK | B158: DNK | C158: 2017 | D158: Glyptocephalus cynoglossus | E158: North Sea and Eastern Arctic | F158: ICES | G158: IIIa, IV | H158: sex | I158: Oberserver at sea | J158: 0 | K158: NA | L158: estimate based on an average of data from 2013-2015 | M158: 9 | N158: Inf | O158: 9
A159: DNK | B159: DNK | C159: 2017 | D159: Glyptocephalus cynoglossus | E159: North Sea and Eastern Arctic | F159: ICES | G159: IIIa, IV | H159: sex | I159: Surveys | J159: 200 | K159: NA | L159: estimate based on an average of data from 2013-2015 | M159: 77 | N159: 38.5 | O159: 77 | P159: 1 fish per cm/ station
A160: DNK | B160: DNK | C160: 2017 | D160: Glyptocephalus cynoglossus | E160: North Sea and Eastern Arctic | F160: ICES | G160: IIIa, IV | H160: weight | I160: Harbour sampling | J160: 500 | K160: NA | L160: estimate based on samples from 2015 | M160: 730 | N160: 146 | O160: 16 | P160: harbors selected according to preselected scheme. On each harbor day visit 1 box per size sorting group is selected for measurements of length, weight and age. For flatfishes only 2 fish per cm are used for individual age and weight
A161: DNK | B161: DNK | C161: 2017 | D161: Glyptocephalus cynoglossus | E161: North Sea and Eastern Arctic | F161: ICES | G161: IIIa, IV | H161: weight | I161: Oberserver at sea | J161: 200 | K161: NA | L161: estimate based on an average of data from 2013-2015 | M161: 207 | N161: 103.5 | O161: 71 | P161: 1 fish per cm/ haul. Max 3 fish / cm / trip
A162: DNK | B162: DNK | C162: 2017 | D162: Glyptocephalus cynoglossus | E162: North Sea and Eastern Arctic | F162: ICES | G162: IIIa, IV | H162: weight | I162: Surveys | J162: 200 | K162: NA | L162: estimate based on an average of data from 2013-2015 | M162: 77 | N162: 38.5 | O162: 77 | P162: 1 fish per cm/ station
A163: DNK | B163: DNK | C163: 2017 | D163: Glyptocephalus cynoglossus | E163: North Sea and Eastern Arctic | F163: ICES | G163: IIIa, IV | H163: age | I163: Harbour sampling | J163: 500 | K163: NA | L163: estimate based on samples from 2015 | M163: 725 | N163: 145 | O163: 16 | P163: harbors selected according to preselected scheme. On each harbor day visit 1 box per size sorting group is selected for measurements of length, weight and age. For flatfishes only 2 fish per cm are used for individual age and weight
A164: DNK | B164: DNK | C164: 2017 | D164: Glyptocephalus cynoglossus | E164: North Sea and Eastern Arctic | F164: ICES | G164: IIIa, IV | H164: age | I164: Oberserver at sea | J164: 200 | K164: NA | L164: estimate based on an average of data from 2013-2015 | M164: 207 | N164: 103.5 | O164: 71 | P164: 1 fish per cm/ haul. Max 3 fish / cm / trip
A165: DNK | B165: DNK | C165: 2017 | D165: Glyptocephalus cynoglossus | E165: North Sea and Eastern Arctic | F165: ICES | G165: IIIa, IV | H165: age | I165: Surveys | J165: 200 | K165: NA | L165: estimate based on an average of data from 2013-2015 | M165: 77 | N165: 38.5 | O165: 77 | P165: 1 fish per cm/ station
A166: DNK | B166: DNK | C166: 2017 | D166: Glyptocephalus cynoglossus | E166: North Sea and Eastern Arctic | F166: ICES | G166: IIIa, IV | H166: maturity | I166: Surveys | J166: 200 | K166: NA | L166: estimate based on an average of data from 2013-2015 | M166: 72 | N166: 36 | O166: 72 | P166: 1 fish per cm/ station
A167: DNK | B167: DNK | C167: 2017 | D167: Limanda limanda | E167: Baltic Sea | F167: ICES | G167: 22-32 | H167: length | I167: Harbour sampling | J167: 1000 | K167: NA | L167: estimate based on samples from 2015 | M167: 1247 | N167: 124.7 | O167: 7 | P167: harbors selected according to preselected scheme. On each harbor day visit 1 box per size sorting group is selected for measurements of length, weight and age. For flatfishes only 2 fish per cm are used for individual age and weight
A168: DNK | B168: DNK | C168: 2017 | D168: Limanda limanda | E168: Baltic Sea | F168: ICES | G168: 22-32 | H168: length | I168: Oberserver at sea | J168: 3500 | K168: NA | L168: estimate based on an average of data from 2013-2015 | M168: 3956 | N168: 113.03 | O168: 33 | P168: all species caught are registered by total weight and number and a subsample or the total catch is length measured
A169: DNK | B169: DNK | C169: 2017 | D169: Limanda limanda | E169: Baltic Sea | F169: ICES | G169: 22-32 | H169: length | I169: Surveys | J169: 3500 | K169: NA | L169: estimate based on an average of data from 2013-2015 | M169: 7406 | N169: 211.6 | O169: 90 | P169: a subsample or the toal catch of the speices by station
A170: DNK | B170: DNK | C170: 2017 | D170: Limanda limanda | E170: Baltic Sea | F170: ICES | G170: 22-32 | H170: sex | I170: Harbour sampling | J170: 0 | K170: NA | L170: estimate based on samples from 2015 | M170: 143 | N170: Inf | O170: 7
A171: DNK | B171: DNK | C171: 2017 | D171: Limanda limanda | E171: Baltic Sea | F171: ICES | G171: 22-32 | H171: sex | I171: Oberserver at sea | J171: 0 | K171: NA | L171: estimate based on an average of data from 2013-2015 | M171: 304 | N171: Inf | O171: 33
A172: DNK | B172: DNK | C172: 2017 | D172: Limanda limanda | E172: Baltic Sea | F172: ICES | G172: 22-32 | H172: sex | I172: Surveys | J172: 200 | K172: NA | L172: estimate based on an average of data from 2013-2015 | M172: 425 | N172: 212.5 | O172: 90 | P172: 1 fish per cm/ station
A173: DNK | B173: DNK | C173: 2017 | D173: Limanda limanda | E173: Baltic Sea | F173: ICES | G173: 22-32 | H173: weight | I173: Harbour sampling | J173: 100 | K173: NA | L173: estimate based on samples from 2015 | M173: 187 | N173: 187 | O173: 7 | P173: harbors selected according to preselected scheme. On each harbor day visit 1 box per size sorting group is selected for measurements of length, weight and age. For flatfishes only 2 fish per cm are used for individual age and weight
A174: DNK | B174: DNK | C174: 2017 | D174: Limanda limanda | E174: Baltic Sea | F174: ICES | G174: 22-32 | H174: weight | I174: Oberserver at sea | J174: 200 | K174: NA | L174: estimate based on an average of data from 2013-2015 | M174: 384 | N174: 192 | O174: 33 | P174: 1 fish per cm/ haul. Max 3 fish / cm / trip
A175: DNK | B175: DNK | C175: 2017 | D175: Limanda limanda | E175: Baltic Sea | F175: ICES | G175: 22-32 | H175: weight | I175: Surveys | J175: 200 | K175: NA | L175: estimate based on an average of data from 2013-2015 | M175: 429 | N175: 214.5 | O175: 90 | P175: 1 fish per cm/ station
A176: DNK | B176: DNK | C176: 2017 | D176: Limanda limanda | E176: Baltic Sea | F176: ICES | G176: 22-32 | H176: age | I176: Harbour sampling | J176: 100 | K176: NA | L176: estimate based on samples from 2015 | M176: 180 | N176: 180 | O176: 7 | P176: harbors selected according to preselected scheme. On each harbor day visit 1 box per size sorting group is selected for measurements of length, weight and age. For flatfishes only 2 fish per cm are used for individual age and weight
A177: DNK | B177: DNK | C177: 2017 | D177: Limanda limanda | E177: Baltic Sea | F177: ICES | G177: 22-32 | H177: age | I177: Oberserver at sea | J177: 200 | K177: NA | L177: estimate based on an average of data from 2013-2015 | M177: 341 | N177: 170.5 | O177: 33 | P177: 1 fish per cm/ haul. Max 3 fish / cm / trip
A178: DNK | B178: DNK | C178: 2017 | D178: Limanda limanda | E178: Baltic Sea | F178: ICES | G178: 22-32 | H178: age | I178: Surveys | J178: 200 | K178: NA | L178: estimate based on an average of data from 2013-2015 | M178: 421 | N178: 210.5 | O178: 90 | P178: 1 fish per cm/ station
A179: DNK | B179: DNK | C179: 2017 | D179: Limanda limanda | E179: Baltic Sea | F179: ICES | G179: 22-32 | H179: maturity | I179: Harbour sampling | J179: 0 | K179: NA | L179: estimate based on samples from 2015 | M179: 47 | N179: Inf | O179: 7
A180: DNK | B180: DNK | C180: 2017 | D180: Limanda limanda | E180: Baltic Sea | F180: ICES | G180: 22-32 | H180: maturity | I180: Surveys | J180: 0 | K180: NA | L180: estimate based on an average of data from 2013-2015 | M180: 425 | N180: Inf | O180: 90 | P180: 1 fish per cm/ station
A181: DNK | B181: DNK | C181: 2017 | D181: Limanda limanda | E181: North Sea and Eastern Arctic | F181: ICES | G181: IIIa, IV, VIId | H181: length | I181: Harbour sampling | J181: 4500 | K181: NA | L181: estimate based on samples from 2015 | M181: 3420 | N181: 76 | O181: 15 | P181: harbors selected according to preselected scheme. On each harbor day visit 1 box per size sorting group is selected for measurements of length, weight and age. For flatfishes only 2 fish per cm are used for individual age and weight
A182: DNK | B182: DNK | C182: 2017 | D182: Limanda limanda | E182: North Sea and Eastern Arctic | F182: ICES | G182: IIIa, IV, VIId | H182: length | I182: Oberserver at sea | J182: 14000 | K182: NA | L182: estimate based on an average of data from 2013-2015 | M182: 12482 | N182: 89.16 | O182: 155 | P182: all species caught are registered by total weight and number and a subsample or the total catch is length measured
A183: DNK | B183: DNK | C183: 2017 | D183: Limanda limanda | E183: North Sea and Eastern Arctic | F183: ICES | G183: IIIa, IV, VIId | H183: length | I183: Surveys | J183: 17000 | K183: NA | L183: estimate based on an average of data from 2013-2015 | M183: 25520 | N183: 150.12 | O183: 259 | P183: a subsample or the toal catch of the speices by station
A184: DNK | B184: DNK | C184: 2017 | D184: Limanda limanda | E184: North Sea and Eastern Arctic | F184: ICES | G184: IIIa, IV, VIId | H184: sex | I184: Oberserver at sea | J184: 0 | K184: NA | L184: estimate based on an average of data from 2013-2015 | M184: 504 | N184: Inf | O184: 155
A185: DNK | B185: DNK | C185: 2017 | D185: Limanda limanda | E185: North Sea and Eastern Arctic | F185: ICES | G185: IIIa, IV, VIId | H185: sex | I185: Surveys | J185: 200 | K185: NA | L185: estimate based on an average of data from 2013-2015 | M185: 519 | N185: 259.5 | O185: 259 | P185: 1 fish per cm/ station
A186: DNK | B186: DNK | C186: 2017 | D186: Limanda limanda | E186: North Sea and Eastern Arctic | F186: ICES | G186: IIIa, IV, VIId | H186: weight | I186: Harbour sampling | J186: 500 | K186: NA | L186: estimate based on samples from 2015 | M186: 372 | N186: 74.4 | O186: 15 | P186: harbors selected according to preselected scheme. On each harbor day visit 1 box per size sorting group is selected for measurements of length, weight and age. For flatfishes only 2 fish per cm are used for individual age and weight
A187: DNK | B187: DNK | C187: 2017 | D187: Limanda limanda | E187: North Sea and Eastern Arctic | F187: ICES | G187: IIIa, IV, VIId | H187: weight | I187: Oberserver at sea | J187: 1000 | K187: NA | L187: estimate based on an average of data from 2013-2015 | M187: 1084 | N187: 108.4 | O187: 155 | P187: 1 fish per cm/ haul. Max 3 fish / cm / trip
A188: DNK | B188: DNK | C188: 2017 | D188: Limanda limanda | E188: North Sea and Eastern Arctic | F188: ICES | G188: IIIa, IV, VIId | H188: weight | I188: Surveys | J188: 200 | K188: NA | L188: estimate based on an average of data from 2013-2015 | M188: 519 | N188: 259.5 | O188: 259 | P188: 1 fish per cm/ station
A189: DNK | B189: DNK | C189: 2017 | D189: Limanda limanda | E189: North Sea and Eastern Arctic | F189: ICES | G189: IIIa, IV, VIId | H189: age | I189: Harbour sampling | J189: 500 | K189: NA | L189: estimate based on samples from 2015 | M189: 362 | N189: 72.4 | O189: 15 | P189: harbors selected according to preselected scheme. On each harbor day visit 1 box per size sorting group is selected for measurements of length, weight and age. For flatfishes only 2 fish per cm are used for individual age and weight
A190: DNK | B190: DNK | C190: 2017 | D190: Limanda limanda | E190: North Sea and Eastern Arctic | F190: ICES | G190: IIIa, IV, VIId | H190: age | I190: Oberserver at sea | J190: 1000 | K190: NA | L190: estimate based on an average of data from 2013-2015 | M190: 1034 | N190: 103.4 | O190: 155 | P190: 1 fish per cm/ haul. Max 3 fish / cm / trip
A191: DNK | B191: DNK | C191: 2017 | D191: Limanda limanda | E191: North Sea and Eastern Arctic | F191: ICES | G191: IIIa, IV, VIId | H191: age | I191: Surveys | J191: 200 | K191: NA | L191: estimate based on an average of data from 2013-2015 | M191: 508 | N191: 254 | O191: 259 | P191: 1 fish per cm/ station
A192: DNK | B192: DNK | C192: 2017 | D192: Limanda limanda | E192: North Sea and Eastern Arctic | F192: ICES | G192: IIIa, IV, VIId | H192: maturity | I192: Surveys | J192: 200 | K192: NA | L192: estimate based on an average of data from 2013-2015 | M192: 519 | N192: 259.5 | O192: 259 | P192: 1 fish per cm/ station
A193: DNK | B193: DNK | C193: 2017 | D193: Lophius piscatorius | E193: North Sea and Eastern Arctic | F193: ICES | G193: IV | H193: length | I193: Harbour sampling | J193: 900 | K193: NA | L193: estimate based on samples from 2015 | M193: 1212 | N193: 134.67 | O193: 18 | P193: harbors selected according to preselected scheme. On each harbor day visit 1 box per size sorting group is selected for measurements of length, weight
A194: DNK | B194: DNK | C194: 2017 | D194: Lophius piscatorius | E194: North Sea and Eastern Arctic | F194: ICES | G194: IV | H194: length | I194: Harbour sampling | J194: 900 | K194: NA | L194: estimate based on samples from 2015 | M194: 1212 | N194: 134.67 | O194: 18 | P194: harbors selected according to preselected scheme. On each harbor day visit 1 box per size sorting group is selected for measurements of length, weight
A195: DNK | B195: DNK | C195: 2017 | D195: Lophius piscatorius | E195: North Sea and Eastern Arctic | F195: ICES | G195: IV | H195: length | I195: Oberserver at sea | J195: 300 | K195: NA | L195: estimate based on an average of data from 2013-2015 | M195: 438 | N195: 146 | O195: 24 | P195: all species caught are registered by total weight and number and a subsample or the total catch is length measured
A196: DNK | B196: DNK | C196: 2017 | D196: Lophius piscatorius | E196: North Sea and Eastern Arctic | F196: ICES | G196: IV | H196: length | I196: Oberserver at sea | J196: 300 | K196: NA | L196: estimate based on an average of data from 2013-2015 | M196: 438 | N196: 146 | O196: 24 | P196: all species caught are registered by total weight and number and a subsample or the total catch is length measured
A197: DNK | B197: DNK | C197: 2017 | D197: Lophius piscatorius | E197: North Sea and Eastern Arctic | F197: ICES | G197: IV | H197: length | I197: Surveys | J197: 0 | K197: NA | L197: estimate based on an average of data from 2013-2015 | M197: 40 | N197: Inf | O197: 28 | P197: all species caught are registered by total length and number
A198: DNK | B198: DNK | C198: 2017 | D198: Lophius piscatorius | E198: North Sea and Eastern Arctic | F198: ICES | G198: IV | H198: sex | I198: Oberserver at sea | J198: 0 | K198: NA | L198: estimate based on an average of data from 2013-2015 | M198: 56 | N198: Inf | O198: 24
A199: DNK | B199: DNK | C199: 2017 | D199: Lophius piscatorius | E199: North Sea and Eastern Arctic | F199: ICES | G199: IV | H199: sex | I199: Oberserver at sea | J199: 0 | K199: NA | L199: estimate based on an average of data from 2013-2015 | M199: 56 | N199: Inf | O199: 24
A200: DNK | B200: DNK | C200: 2017 | D200: Lophius piscatorius | E200: North Sea and Eastern Arctic | F200: ICES | G200: IV | H200: sex | I200: Surveys | J200: 0 | K200: NA | L200: estimate based on an average of data from 2013-2015 | M200: 6 | N200: Inf | O200: 6 | P200: 1 fish per cm/ station are measured for individual measurements
... 331 more rows

Sheet Table1D Recreational Fisheries
A1: Table 1D: Recreational fisheries
X2: WP years | Y2: 2017-2019
X3: AR year | Y3: 2017
A4: MS | B4: Sampling year | C4: Area/EMU | D4: RFMO/RFO/IO | E4: Species | F4: Applicable (Species present in the MS?) | G4: Reasons for not sampling | H4: Threshold (Y/N) | I4: Annual estimate of catch? (Y/N) | J4: Annual percentage of released catch? (Y/N) | K4: Collection of catch composition data? (Y/N) | L4: Type of Survey | M4: Comments | N4: Unique Survey ID or Name of sampling scheme (Linked to Table 5A) | O4: Is the survey part of a pilot study or part of an established programme? | P4: Frequency | Q4: Is the sampling design documented? (Linked to Table 5A) | R4: Are non-response and refusal recorded? (Linked to Table 5A) | S4: Are the editing and imputation methods documented? (Linked to Table 5A) | T4: Estimation of the yearly weight and numbers of catch (Y/N) | U4: Estimation of the yearly percentage release (Y/N) | V4: Collection of catch composition data (Y/N) | W4: Evaluated by external experts/bodies (Y/N) | X4: Conform with accepted standards Y/N | Y4: AR Comments
A5: DNK | B5: 2017 | C5: North Sea and Eastern Arctic | D5: ICES | E5: Gadus morhua | F5: Y | I5: Y | J5: Y | K5: N | L5: National biannual recall survey targeting license holders | N5: Off-site internet based quesionnaire recall survey | O5: Established programme | P5: biannually | Q5: Y | R5: Y | S5: Y | T5: Y | U5: Y | V5: N | W5: Y | X5: Y
A6: DNK | B6: 2017 | C6: North Sea and Eastern Arctic | D6: ICES | E6: Anguilla anguilla | F6: Y | I6: Y | J6: Y | K6: N | L6: National biannual recall survey targeting license holders | N6: Off-site internet based quesionnaire recall survey | O6: Established programme | P6: biannually | Q6: Y | R6: Y | S6: Y | T6: Y | U6: Y | V6: N | W6: Y | X6: Y
A7: DNK | B7: 2017 | C7: North Sea and Eastern Arctic | D7: ICES | E7: Elasmobranchs | F7: Y | I7: Y | J7: N | K7: N | L7: National biannual recall survey targeting license holders | N7: Off-site internet based quesionnaire recall survey | O7: Established programme | P7: biannually | Q7: Y | R7: Y | S7: Y | T7: Y | U7: N | V7: N | W7: Y | X7: Y
A8: DNK | B8: 2017 | C8: North Sea and Eastern Arctic | D8: ICES | E8: Dicentrarchus labrax | F8: Y | I8: Y | J8: Y | K8: N | L8: National biannual recall survey targeting license holders | N8: Off-site internet based quesionnaire recall survey | O8: Established programme | P8: biannually | Q8: Y | R8: Y | S8: Y | T8: Y | U8: Y | V8: N | W8: Y | X8: Y
A9: DNK | B9: 2017 | C9: Baltic Sea | D9: ICES | E9: Salmo salar | F9: Y | I9: Y | J9: Y | K9: Y | L9: National biannual recall survey targeting license holders. Pilot onsite study runnning in 2017-2018 providing effort, catch and biologicla data i.e. length, weight and age. | N9: Off-site internet based quesionnaire recall survey. On-site access-point and on-board pilot study | O9: Established programme/pilot study | P9: biannually/ weekly | Q9: Y | R9: Y | S9: Y | T9: Y | U9: Y | V9: Y | W9: Y | X9: Y
A10: DNK | B10: 2017 | C10: Baltic Sea | D10: ICES | E10: Anguilla anguilla | F10: Y | I10: Y | J10: Y | K10: Y | L10: National biannual recall survey targeting license holders. Pilot onsite study runnning in 2017-2018 providing effort, catch and biologicla data i.e. length, weight and age. | N10: Off-site internet based quesionnaire recall survey. On-site access-point and on-board pilot study | O10: Established programme/pilot study | P10: biannually/ weekly | Q10: Y | R10: Y | S10: Y | T10: Y | U10: Y | V10: Y | W10: Y | X10: Y
A11: DNK | B11: 2017 | C11: Baltic Sea | D11: ICES | E11: Salmo trutta | F11: Y | I11: Y | J11: Y | K11: Y | L11: National biannual recall survey targeting license holders. Pilot onsite study runnning in 2017-2018 providing effort, catch and biologicla data i.e. length, weight and age. | N11: Off-site internet based quesionnaire recall survey. On-site access-point and on-board pilot study | O11: Established programme/pilot study | P11: biannually/ weekly | Q11: Y | R11: Y | S11: Y | T11: Y | U11: Y | V11: Y | W11: Y | X11: Y
A12: DNK | B12: 2017 | C12: Baltic Sea | D12: ICES | E12: Gadus morhua | F12: Y | I12: Y | J12: Y | K12: Y | L12: National biannual recall survey targeting license holders. Pilot onsite study runnning in 2017-2018 providing effort, catch and biologicla data i.e. length, weight and age. | N12: Off-site internet based quesionnaire recall survey. On-site access-point and on-board pilot study | O12: Established programme/pilot study | P12: biannually/ weekly | Q12: Y | R12: Y | S12: Y | T12: Y | U12: Y | V12: Y | W12: Y | X12: Y
A13: DNK | B13: 2017 | C13: Baltic Sea | D13: ICES | E13: Elasmobranchs | F13: Y | I13: Y | J13: N | K13: N | L13: National biannual recall survey targeting license holders | N13: Off-site internet based quesionnaire recall survey | O13: Established programme | P13: biannually | Q13: Y | R13: Y | S13: Y | T13: Y | U13: N | V13: N | W13: Y | X13: Y

Sheet Table1E Anadromous catadromous
A1: Table 1E: Anadromous and catadromous species data collection in fresh water
T2: WP years | U2: 2017-2019
T3: AR year | U3: 2017
A4: MS | B4: Sampling period | C4: Area | D4: RFMO/RFO/IO | E4: Species | F4: Applicable (Y/N) | G4: Reasons for not sampling | H4: Water Body | I4: Life stage | J4: Fishery / Independent data collection | K4: Method | L4: Unit | M4: Planned nos | N4: Frequency | O4: Comments | P4: Achieved numbers | Q4: % of achievement (100*P/M) | R4: Reasons for non-conformity | S4: Survey ID | T4: Agreed at RCG level? | U4: AR Comments
A6: DNK | B6: 2017-2020 | C6: Atlantic | D6: NA | E6: Salmo salar | F6: Y | H6: RIVER Varde | I6: ½ y , 1+ | J6: I | K6: electrofishing | L6: density/site | M6: 25 sites | N6: 4 years | P6: 25 | Q6: 100 | U6: Done 2017
A7: DNK | B7: 2017-2020 | C7: Atlantic | D7: NA | E7: Salmo salar | F7: Y | H7: RIVER Skjern | I7: ½ y , 1+ | J7: I | K7: electrofishing | L7: density/site | M7: 25 sites | N7: 4 years | P7: 25 | Q7: 100 | U7: Done 2016
A8: DNK | B8: 2017-2020 | C8: Atlantic | D8: NA | E8: Salmo salar | F8: Y | H8: RIVER Storaa | I8: ½ y , 1+ | J8: I | K8: electrofishing | L8: density/site | M8: 25 sites | N8: 4 years | P8: 25 | Q8: 100 | U8: Done 2015
A9: DNK | B9: 2017-2020 | C9: Atlantic | D9: NA | E9: Salmo salar | F9: Y | H9: RIVER Ribe | I9: ½ y , 1+ | J9: I | K9: electrofishing | L9: density/site | M9: 25 sites | N9: 4 years | P9: 25 | Q9: 100 | U9: Done 2014
A10: DNK | B10: 2017-2020 | C10: Atlantic | D10: NA | E10: Salmo salar | F10: Y | H10: RIVER Skjern | I10: smolt | J10: I | K10: trap | L10: n. smolts | M10: 4-20,000 | N10: 2016, 2017 | O10: Ongoing project | P10: 7000 | Q10: 100 | U10: 2016, 2017
A11: DNK | B11: 2017-2020 | C11: Atlantic | D11: NA | E11: Salmo salar | F11: Y | H11: RIVER Skjern | I11: adult | J11: I | K11: electrofishing | L11: n. adults | M11: 400 - 600 | N11: 2 years | O11: Regular monitoring PIT-tagging and recapture. | P11: 1462 | Q11: 100 | U11: Done 2016, 2017
A12: DNK | B12: 2017-2020 | C12: Atlantic | D12: NA | E12: Salmo salar | F12: Y | H12: RIVER Ribe | I12: adult | J12: I | K12: electrofishing | L12: n. adults | M12: 200 - 500 | N12: 2 years | O12: Regular monitoring PIT-tagging and recapture. | P12: 378 | Q12: 100 | U12: Done 2017
A13: DNK | B13: 2017-2020 | C13: Atlantic | D13: NA | E13: Salmo salar | F13: Y | H13: RIVER Varde | I13: adult | J13: I | K13: electrofishing | L13: n. adults | M13: 200 - 600 | N13: 2 years | O13: Regular monitoring PIT-tagging and recapture. | P13: 903 | Q13: 100 | U13: Done 2016
A14: DNK | B14: 2017-2020 | C14: Atlantic | D14: NA | E14: Salmo salar | F14: Y | H14: RIVER Storaa | I14: adult | J14: I | K14: electrofishing | L14: n. adults | M14: 400 - 600 | N14: 2 years | O14: Regular monitoring PIT-tagging and recapture. | P14: 498 | Q14: 100 | U14: Done 2015
A15: DNK | B15: 2017-2020 | C15: Atlantic | D15: NA | E15: Anguilla anguilla | F15: Y | H15: River Gudenaa | I15: silver | J15: I | K15: trap | L15: n. adults | M15: 100 - 300 | N15: Annually | O15: Ongoing project | P15: 199 | Q15: 100
A16: DNK | B16: 2017-2020 | C16: Atlantic | D16: NA | E16: Anguilla anguilla | F16: Y | H16: RIVER Ribe | I16: silver | J16: F | K16: Fyke/Pound nets | L16: n.outmigrating eel | M16: 500 - 1000 | N16: Annually | O16: Eel-MP-monitoring | P16: 94 | Q16: 100
A17: DNK | B17: 2017-2020 | C17: Atlantic | D17: NA | E17: Anguilla anguilla | F17: Y | H17: Hellebækken | I17: elvers | J17: I | K17: trap | L17: n.elvers | M17: 500 | N17: Annually | O17: New activity | P17: 770 | Q17: =P17*100/M17 -> 154
A18: DNK | B18: 2017-2020 | C18: Atlantic | D18: NA | E18: Anguilla anguilla | F18: Y | H18: River Gudenaa | I18: elvers | J18: I | K18: trap | L18: kg/upstream migrants | M18: 10-30 | N18: Annually | O18: Eel-MP-monitoring | P18: 0 | Q18: =P18*100/M18 -> 0 | R18: equipment failure
A19: DNK | B19: 2017-2020 | C19: Atlantic | D19: NA | E19: Anguilla anguilla | F19: Y | H19: Vester Vedsted | I19: elvers | J19: I | K19: electrofishing | L19: n.elvers | M19: ? | N19: Annually | O19: Ongoing monitoring | P19: 485 | Q19: 100
A20: DNK | B20: 2017-2020 | C20: Atlantic | D20: NA | E20: Anguilla anguilla | F20: Y | H20: Klitmøller Å | I20: silver | J20: I | K20: trap | L20: n.eels | M20: ? | N20: Annually | O20: New activity | P20: 255 | Q20: 100

Sheet Table1F Incidental by catch
A1: Table 1F: Incidental by-catch of birds, mammals, reptiles and fish
V2: WP years | W2: 2017-2019
V3: AR year | W3: 2017
P4: Has there be occurrence of bycatch?
A5: MS | B5: Sampling period/year(s) | C5: Region | D5: RFMO/RFO/IO | E5: Sub-area / Fishing ground | F5: Scheme | G5: Stratum ID code / Name of the survey | H5: Group of vulnerable species | I5: Expected occurence of recordings | J5: Comments | K5: Total number of PSU in the sampling year | L5: Achieved number of PSU in the sampling year | M5: Number of PSU sampled in which observers have been instructed to look for bycatch | N5: Does your sampling protocol allow for the calculation of observation effort “at haul level” (Y/N) | O5: Is there any mitigation device? (Y/N) | P5: Fish (Y/N/NA) | Q5: Mammals (Y/N/NA) | R5: Birds (Y/N/NA) | S5: Reptiles (Y/N/NA) | T5: Other (Y/N/NA) | U5: Are data stored in a national database? | V5: Are data stored in international database(s)? | W5: AR Comments
A7: DNK | B7: 2017 | C7: All region | D7: ICES | E7: all area | F7: At market - small pelagic | G7: Capros aper | H7: birds | I7: NA | J7: The scheme samples a subsample of the catch at the market. The subsamles are small and will in general only contain fish. The scheme is not designed to measure rare by-catch events. | K7: 1 | L7: 1 | M7: 1 | N7: N | O7: N. (The question more relates to specific observations of trips/ hauls and not overall sampling protocol) | P7: Y | Q7: N | R7: N | S7: N | T7: N | U7: Y | V7: Y | W7: The samples are unsorted, but small, so it is only likely so see endangered fish on the same size as the target species
A8: DNK | B8: 2017 | C8: All region | D8: ICES | E8: all area | F8: At market - small pelagic | G8: Capros aper | H8: Cartilagenous fish | I8: NA | J8: The scheme samples a subsample of the catch at the market. The subsamles are small and will in general only contain fish. The scheme is not designed to measure rare by-catch events. | K8: 1 | L8: 1 | M8: 1 | N8: N | O8: N. (The question more relates to specific observations of trips/ hauls and not overall sampling protocol) | P8: Y | Q8: N | R8: N | S8: N | T8: N | U8: Y | V8: Y | W8: The samples are unsorted, but small, so it is only likely so see endangered fish on the same size as the target species
A9: DNK | B9: 2017 | C9: All region | D9: ICES | E9: all area | F9: At market - small pelagic | G9: Capros aper | H9: Bony fish | I9: NA | J9: The scheme samples a subsample of the catch at the market. The subsamles are small and will in general only contain fish. The scheme is not designed to measure rare by-catch events. | K9: 1 | L9: 1 | M9: 1 | N9: N | O9: N. (The question more relates to specific observations of trips/ hauls and not overall sampling protocol) | P9: Y | Q9: N | R9: N | S9: N | T9: N | U9: Y | V9: Y | W9: The samples are unsorted, but small, so it is only likely so see endangered fish on the same size as the target species
A10: DNK | B10: 2017 | C10: All region | D10: ICES | E10: all area | F10: At market - small pelagic | G10: Capros aper | H10: Reptiles | I10: NA | J10: The scheme samples a subsample of the catch at the market. The subsamles are small and will in general only contain fish. The scheme is not designed to measure rare by-catch events. | K10: 1 | L10: 1 | M10: 1 | N10: N | O10: N. (The question more relates to specific observations of trips/ hauls and not overall sampling protocol) | P10: Y | Q10: N | R10: N | S10: N | T10: N | U10: Y | V10: Y | W10: The samples are unsorted, but small, so it is only likely so see endangered fish on the same size as the target species
A11: DNK | B11: 2017 | C11: All region | D11: ICES | E11: all area | F11: At market - small pelagic | G11: Capros aper | H11: Mammals | I11: NA | J11: The scheme samples a subsample of the catch at the market. The subsamles are small and will in general only contain fish. The scheme is not designed to measure rare by-catch events. | K11: 1 | L11: 1 | M11: 1 | N11: N | O11: N. (The question more relates to specific observations of trips/ hauls and not overall sampling protocol) | P11: Y | Q11: N | R11: N | S11: N | T11: N | U11: Y | V11: Y | W11: The samples are unsorted, but small, so it is only likely so see endangered fish on the same size as the target species
A12: DNK | B12: 2017 | C12: All region | D12: ICES | E12: all area | F12: At market - small pelagic | G12: Clupea harengus | H12: birds | I12: NA | J12: The scheme samples a subsample of the catch at the market. The subsamles are small and will in general only contain fish. The scheme is not designed to measure rare by-catch events. | K12: 433 | L12: 80 | M12: 80 | N12: N | O12: N. (The question more relates to specific observations of trips/ hauls and not overall sampling protocol) | P12: Y | Q12: N | R12: N | S12: N | T12: N | U12: Y | V12: Y | W12: The samples are unsorted, but small, so it is only likely so see endangered fish on the same size as the target species
A13: DNK | B13: 2017 | C13: All region | D13: ICES | E13: all area | F13: At market - small pelagic | G13: Clupea harengus | H13: Cartilagenous fish | I13: NA | J13: The scheme samples a subsample of the catch at the market. The subsamles are small and will in general only contain fish. The scheme is not designed to measure rare by-catch events. | K13: 433 | L13: 80 | M13: 80 | N13: N | O13: N. (The question more relates to specific observations of trips/ hauls and not overall sampling protocol) | P13: Y | Q13: N | R13: N | S13: N | T13: N | U13: Y | V13: Y | W13: The samples are unsorted, but small, so it is only likely so see endangered fish on the same size as the target species
A14: DNK | B14: 2017 | C14: All region | D14: ICES | E14: all area | F14: At market - small pelagic | G14: Clupea harengus | H14: Bony fish | I14: NA | J14: The scheme samples a subsample of the catch at the market. The subsamles are small and will in general only contain fish. The scheme is not designed to measure rare by-catch events. | K14: 433 | L14: 80 | M14: 80 | N14: N | O14: N. (The question more relates to specific observations of trips/ hauls and not overall sampling protocol) | P14: Y | Q14: N | R14: N | S14: N | T14: N | U14: Y | V14: Y | W14: The samples are unsorted, but small, so it is only likely so see endangered fish on the same size as the target species
A15: DNK | B15: 2017 | C15: All region | D15: ICES | E15: all area | F15: At market - small pelagic | G15: Clupea harengus | H15: Reptiles | I15: NA | J15: The scheme samples a subsample of the catch at the market. The subsamles are small and will in general only contain fish. The scheme is not designed to measure rare by-catch events. | K15: 433 | L15: 80 | M15: 80 | N15: N | O15: N. (The question more relates to specific observations of trips/ hauls and not overall sampling protocol) | P15: Y | Q15: N | R15: N | S15: N | T15: N | U15: Y | V15: Y | W15: The samples are unsorted, but small, so it is only likely so see endangered fish on the same size as the target species
A16: DNK | B16: 2017 | C16: All region | D16: ICES | E16: all area | F16: At market - small pelagic | G16: Clupea harengus | H16: Mammals | I16: NA | J16: The scheme samples a subsample of the catch at the market. The subsamles are small and will in general only contain fish. The scheme is not designed to measure rare by-catch events. | K16: 433 | L16: 80 | M16: 80 | N16: N | O16: N. (The question more relates to specific observations of trips/ hauls and not overall sampling protocol) | P16: Y | Q16: N | R16: N | S16: N | T16: N | U16: Y | V16: Y | W16: The samples are unsorted, but small, so it is only likely so see endangered fish on the same size as the target species
A17: DNK | B17: 2017 | C17: All region | D17: ICES | E17: all area | F17: At market - small pelagic | G17: Micromesistius poutassou | H17: birds | I17: NA | J17: The scheme samples a subsample of the catch at the market. The subsamles are small and will in general only contain fish. The scheme is not designed to measure rare by-catch events. | K17: 24 | L17: 25 | M17: 25 | N17: N | O17: N. (The question more relates to specific observations of trips/ hauls and not overall sampling protocol) | P17: Y | Q17: N | R17: N | S17: N | T17: N | U17: Y | V17: Y | W17: The samples are unsorted, but small, so it is only likely so see endangered fish on the same size as the target species
A18: DNK | B18: 2017 | C18: All region | D18: ICES | E18: all area | F18: At market - small pelagic | G18: Micromesistius poutassou | H18: Cartilagenous fish | I18: NA | J18: The scheme samples a subsample of the catch at the market. The subsamles are small and will in general only contain fish. The scheme is not designed to measure rare by-catch events. | K18: 24 | L18: 25 | M18: 25 | N18: N | O18: N. (The question more relates to specific observations of trips/ hauls and not overall sampling protocol) | P18: Y | Q18: N | R18: N | S18: N | T18: N | U18: Y | V18: Y | W18: The samples are unsorted, but small, so it is only likely so see endangered fish on the same size as the target species
A19: DNK | B19: 2017 | C19: All region | D19: ICES | E19: all area | F19: At market - small pelagic | G19: Micromesistius poutassou | H19: Bony fish | I19: NA | J19: The scheme samples a subsample of the catch at the market. The subsamles are small and will in general only contain fish. The scheme is not designed to measure rare by-catch events. | K19: 24 | L19: 25 | M19: 25 | N19: N | O19: N. (The question more relates to specific observations of trips/ hauls and not overall sampling protocol) | P19: Y | Q19: N | R19: N | S19: N | T19: N | U19: Y | V19: Y | W19: The samples are unsorted, but small, so it is only likely so see endangered fish on the same size as the target species
A20: DNK | B20: 2017 | C20: All region | D20: ICES | E20: all area | F20: At market - small pelagic | G20: Micromesistius poutassou | H20: Reptiles | I20: NA | J20: The scheme samples a subsample of the catch at the market. The subsamles are small and will in general only contain fish. The scheme is not designed to measure rare by-catch events. | K20: 24 | L20: 25 | M20: 25 | N20: N | O20: N. (The question more relates to specific observations of trips/ hauls and not overall sampling protocol) | P20: Y | Q20: N | R20: N | S20: N | T20: N | U20: Y | V20: Y | W20: The samples are unsorted, but small, so it is only likely so see endangered fish on the same size as the target species
A21: DNK | B21: 2017 | C21: All region | D21: ICES | E21: all area | F21: At market - small pelagic | G21: Micromesistius poutassou | H21: Mammals | I21: NA | J21: The scheme samples a subsample of the catch at the market. The subsamles are small and will in general only contain fish. The scheme is not designed to measure rare by-catch events. | K21: 24 | L21: 25 | M21: 25 | N21: N | O21: N. (The question more relates to specific observations of trips/ hauls and not overall sampling protocol) | P21: Y | Q21: N | R21: N | S21: N | T21: N | U21: Y | V21: Y | W21: The samples are unsorted, but small, so it is only likely so see endangered fish on the same size as the target species
A22: DNK | B22: 2017 | C22: All region | D22: ICES | E22: all area | F22: At market - small pelagic | G22: Scomber scombrus | H22: birds | I22: NA | J22: The scheme samples a subsample of the catch at the market. The subsamles are small and will in general only contain fish. The scheme is not designed to measure rare by-catch events. | K22: 51 | L22: 3 | M22: 3 | N22: N | O22: N. (The question more relates to specific observations of trips/ hauls and not overall sampling protocol) | P22: Y | Q22: N | R22: N | S22: N | T22: N | U22: Y | V22: Y | W22: The samples are unsorted, but small, so it is only likely so see endangered fish on the same size as the target species
A23: DNK | B23: 2017 | C23: All region | D23: ICES | E23: all area | F23: At market - small pelagic | G23: Scomber scombrus | H23: Cartilagenous fish | I23: NA | J23: The scheme samples a subsample of the catch at the market. The subsamles are small and will in general only contain fish. The scheme is not designed to measure rare by-catch events. | K23: 51 | L23: 3 | M23: 3 | N23: N | O23: N. (The question more relates to specific observations of trips/ hauls and not overall sampling protocol) | P23: Y | Q23: N | R23: N | S23: N | T23: N | U23: Y | V23: Y | W23: The samples are unsorted, but small, so it is only likely so see endangered fish on the same size as the target species
A24: DNK | B24: 2017 | C24: All region | D24: ICES | E24: all area | F24: At market - small pelagic | G24: Scomber scombrus | H24: Bony fish | I24: NA | J24: The scheme samples a subsample of the catch at the market. The subsamles are small and will in general only contain fish. The scheme is not designed to measure rare by-catch events. | K24: 51 | L24: 3 | M24: 3 | N24: N | O24: N. (The question more relates to specific observations of trips/ hauls and not overall sampling protocol) | P24: Y | Q24: N | R24: N | S24: N | T24: N | U24: Y | V24: Y | W24: The samples are unsorted, but small, so it is only likely so see endangered fish on the same size as the target species
A25: DNK | B25: 2017 | C25: All region | D25: ICES | E25: all area | F25: At market - small pelagic | G25: Scomber scombrus | H25: Reptiles | I25: NA | J25: The scheme samples a subsample of the catch at the market. The subsamles are small and will in general only contain fish. The scheme is not designed to measure rare by-catch events. | K25: 51 | L25: 3 | M25: 3 | N25: N | O25: N. (The question more relates to specific observations of trips/ hauls and not overall sampling protocol) | P25: Y | Q25: N | R25: N | S25: N | T25: N | U25: Y | V25: Y | W25: The samples are unsorted, but small, so it is only likely so see endangered fish on the same size as the target species
A26: DNK | B26: 2017 | C26: All region | D26: ICES | E26: all area | F26: At market - small pelagic | G26: Scomber scombrus | H26: Mammals | I26: NA | J26: The scheme samples a subsample of the catch at the market. The subsamles are small and will in general only contain fish. The scheme is not designed to measure rare by-catch events. | K26: 51 | L26: 3 | M26: 3 | N26: N | O26: N. (The question more relates to specific observations of trips/ hauls and not overall sampling protocol) | P26: Y | Q26: N | R26: N | S26: N | T26: N | U26: Y | V26: Y | W26: The samples are unsorted, but small, so it is only likely so see endangered fish on the same size as the target species
A27: DNK | B27: 2017 | C27: All region | D27: ICES | E27: all area | F27: At sea - self-sampling, small pelagic | G27: Sprattus sprattus | H27: birds | I27: NA | J27: The scheme samples a subsample of the ratained part of the haul at sea. The subsamles are small and will in general only contain fish. The scheme is not designed to measure rare by-catch events. | K27: 648 | L27: 12 | M27: 12 | N27: N | O27: N. (The question more relates to specific observations of trips/ hauls and not overall sampling protocol) | P27: Y | Q27: N | R27: N | S27: N | T27: N | U27: Y | V27: Y | W27: The self-sampling samples are small, but unsorted, so it is only likely so see endangered fish on the same size as the target species
A28: DNK | B28: 2017 | C28: All region | D28: ICES | E28: all area | F28: At sea - self-sampling, small pelagic | G28: Sprattus sprattus | H28: Cartilagenous fish | I28: NA | J28: The scheme samples a subsample of the ratained part of the haul at sea. The subsamles are small and will in general only contain fish. The scheme is not designed to measure rare by-catch events. | K28: 648 | L28: 12 | M28: 12 | N28: N | O28: N. (The question more relates to specific observations of trips/ hauls and not overall sampling protocol) | P28: Y | Q28: N | R28: N | S28: N | T28: N | U28: Y | V28: Y | W28: The self-sampling samples are small, but unsorted, so it is only likely so see endangered fish on the same size as the target species
A29: DNK | B29: 2017 | C29: All region | D29: ICES | E29: all area | F29: At sea - self-sampling, small pelagic | G29: Sprattus sprattus | H29: Bony fish | I29: NA | J29: The scheme samples a subsample of the ratained part of the haul at sea. The subsamles are small and will in general only contain fish. The scheme is not designed to measure rare by-catch events. | K29: 648 | L29: 12 | M29: 12 | N29: N | O29: N. (The question more relates to specific observations of trips/ hauls and not overall sampling protocol) | P29: Y | Q29: N | R29: N | S29: N | T29: N | U29: Y | V29: Y | W29: The self-sampling samples are small, but unsorted, so it is only likely so see endangered fish on the same size as the target species
A30: DNK | B30: 2017 | C30: All region | D30: ICES | E30: all area | F30: At sea - self-sampling, small pelagic | G30: Sprattus sprattus | H30: Reptiles | I30: NA | J30: The scheme samples a subsample of the ratained part of the haul at sea. The subsamles are small and will in general only contain fish. The scheme is not designed to measure rare by-catch events. | K30: 648 | L30: 12 | M30: 12 | N30: N | O30: N. (The question more relates to specific observations of trips/ hauls and not overall sampling protocol) | P30: Y | Q30: N | R30: N | S30: N | T30: N | U30: Y | V30: Y | W30: The self-sampling samples are small, but unsorted, so it is only likely so see endangered fish on the same size as the target species
A31: DNK | B31: 2017 | C31: All region | D31: ICES | E31: all area | F31: At sea - self-sampling, small pelagic | G31: Sprattus sprattus | H31: Mammals | I31: NA | J31: The scheme samples a subsample of the ratained part of the haul at sea. The subsamles are small and will in general only contain fish. The scheme is not designed to measure rare by-catch events. | K31: 648 | L31: 12 | M31: 12 | N31: N | O31: N. (The question more relates to specific observations of trips/ hauls and not overall sampling protocol) | P31: Y | Q31: N | R31: N | S31: N | T31: N | U31: Y | V31: Y | W31: The self-sampling samples are small, but unsorted, so it is only likely so see endangered fish on the same size as the target species
A32: DNK | B32: 2017 | C32: Baltic Sea | D32: ICES | E32: IIIcd | F32: at market - Fåborg | G32: M DKFAB | H32: birds | I32: NA | J32: The scheme samples sorted fish at the market, so no occurrence of by-catch is expected | K32: 348 | L32: 4 | M32: 4 | N32: N | O32: N. (The question more relates to specific observations of trips/ hauls and not overall sampling protocol) | P32: Y | Q32: N | R32: N | S32: N | T32: N | U32: Y | V32: Y | W32: This scheme samples sorted fish at the market, but since all the cod stocks caught by Dennmark are in table 1D and are sampled at the markets, then fish=Y
A33: DNK | B33: 2017 | C33: Baltic Sea | D33: ICES | E33: IIIcd | F33: at market - Fåborg | G33: M DKFAB | H33: Cartilagenous fish | I33: NA | J33: The scheme samples sorted fish at the market, so no occurrence of by-catch is expected | K33: 348 | L33: 4 | M33: 4 | N33: N | O33: N. (The question more relates to specific observations of trips/ hauls and not overall sampling protocol) | P33: Y | Q33: N | R33: N | S33: N | T33: N | U33: Y | V33: Y | W33: This scheme samples sorted fish at the market, but since all the cod stocks caught by Dennmark are in table 1D and are sampled at the markets, then fish=Y
A34: DNK | B34: 2017 | C34: Baltic Sea | D34: ICES | E34: IIIcd | F34: at market - Fåborg | G34: M DKFAB | H34: Bony fish | I34: NA | J34: The scheme samples sorted fish at the market, so no occurrence of by-catch is expected | K34: 348 | L34: 4 | M34: 4 | N34: N | O34: N. (The question more relates to specific observations of trips/ hauls and not overall sampling protocol) | P34: Y | Q34: N | R34: N | S34: N | T34: N | U34: Y | V34: Y | W34: This scheme samples sorted fish at the market, but since all the cod stocks caught by Dennmark are in table 1D and are sampled at the markets, then fish=Y
A35: DNK | B35: 2017 | C35: Baltic Sea | D35: ICES | E35: IIIcd | F35: at market - Fåborg | G35: M DKFAB | H35: Reptiles | I35: NA | J35: The scheme samples sorted fish at the market, so no occurrence of by-catch is expected | K35: 348 | L35: 4 | M35: 4 | N35: N | O35: N. (The question more relates to specific observations of trips/ hauls and not overall sampling protocol) | P35: Y | Q35: N | R35: N | S35: N | T35: N | U35: Y | V35: Y | W35: This scheme samples sorted fish at the market, but since all the cod stocks caught by Dennmark are in table 1D and are sampled at the markets, then fish=Y
A36: DNK | B36: 2017 | C36: Baltic Sea | D36: ICES | E36: IIIcd | F36: at market - Fåborg | G36: M DKFAB | H36: Mammals | I36: NA | J36: The scheme samples sorted fish at the market, so no occurrence of by-catch is expected | K36: 348 | L36: 4 | M36: 4 | N36: N | O36: N. (The question more relates to specific observations of trips/ hauls and not overall sampling protocol) | P36: Y | Q36: N | R36: N | S36: N | T36: N | U36: Y | V36: Y | W36: This scheme samples sorted fish at the market, but since all the cod stocks caught by Dennmark are in table 1D and are sampled at the markets, then fish=Y
A37: DNK | B37: 2017 | C37: Baltic Sea | D37: ICES | E37: IIIcd | F37: at market - Gilleleje | G37: M DKGLE | H37: birds | I37: NA | J37: The scheme samples sorted fish at the market, so no occurrence of by-catch is expected | K37: 317 | L37: 6 | M37: 6 | N37: N | O37: N. (The question more relates to specific observations of trips/ hauls and not overall sampling protocol) | P37: Y | Q37: N | R37: N | S37: N | T37: N | U37: Y | V37: Y | W37: This scheme samples sorted fish at the market, but since all the cod stocks caught by Dennmark are in table 1D and are sampled at the markets, then fish=Y
A38: DNK | B38: 2017 | C38: Baltic Sea | D38: ICES | E38: IIIcd | F38: at market - Gilleleje | G38: M DKGLE | H38: Cartilagenous fish | I38: NA | J38: The scheme samples sorted fish at the market, so no occurrence of by-catch is expected | K38: 317 | L38: 6 | M38: 6 | N38: N | O38: N. (The question more relates to specific observations of trips/ hauls and not overall sampling protocol) | P38: Y | Q38: N | R38: N | S38: N | T38: N | U38: Y | V38: Y | W38: This scheme samples sorted fish at the market, but since all the cod stocks caught by Dennmark are in table 1D and are sampled at the markets, then fish=Y
A39: DNK | B39: 2017 | C39: Baltic Sea | D39: ICES | E39: IIIcd | F39: at market - Gilleleje | G39: M DKGLE | H39: Bony fish | I39: NA | J39: The scheme samples sorted fish at the market, so no occurrence of by-catch is expected | K39: 317 | L39: 6 | M39: 6 | N39: N | O39: N. (The question more relates to specific observations of trips/ hauls and not overall sampling protocol) | P39: Y | Q39: N | R39: N | S39: N | T39: N | U39: Y | V39: Y | W39: This scheme samples sorted fish at the market, but since all the cod stocks caught by Dennmark are in table 1D and are sampled at the markets, then fish=Y
A40: DNK | B40: 2017 | C40: Baltic Sea | D40: ICES | E40: IIIcd | F40: at market - Gilleleje | G40: M DKGLE | H40: Reptiles | I40: NA | J40: The scheme samples sorted fish at the market, so no occurrence of by-catch is expected | K40: 317 | L40: 6 | M40: 6 | N40: N | O40: N. (The question more relates to specific observations of trips/ hauls and not overall sampling protocol) | P40: Y | Q40: N | R40: N | S40: N | T40: N | U40: Y | V40: Y | W40: This scheme samples sorted fish at the market, but since all the cod stocks caught by Dennmark are in table 1D and are sampled at the markets, then fish=Y
A41: DNK | B41: 2017 | C41: Baltic Sea | D41: ICES | E41: IIIcd | F41: at market - Gilleleje | G41: M DKGLE | H41: Mammals | I41: NA | J41: The scheme samples sorted fish at the market, so no occurrence of by-catch is expected | K41: 317 | L41: 6 | M41: 6 | N41: N | O41: N. (The question more relates to specific observations of trips/ hauls and not overall sampling protocol) | P41: Y | Q41: N | R41: N | S41: N | T41: N | U41: Y | V41: Y | W41: This scheme samples sorted fish at the market, but since all the cod stocks caught by Dennmark are in table 1D and are sampled at the markets, then fish=Y
A42: DNK | B42: 2017 | C42: Baltic Sea | D42: ICES | E42: IIIcd | F42: at market - Nexø | G42: M DKNEX | H42: birds | I42: NA | J42: The scheme samples sorted fish at the market, so no occurrence of by-catch is expected | K42: 325 | L42: 12 | M42: 12 | N42: N | O42: N. (The question more relates to specific observations of trips/ hauls and not overall sampling protocol) | P42: Y | Q42: N | R42: N | S42: N | T42: N | U42: Y | V42: Y | W42: This scheme samples sorted fish at the market, but since all the cod stocks caught by Dennmark are in table 1D and are sampled at the markets, then fish=Y
A43: DNK | B43: 2017 | C43: Baltic Sea | D43: ICES | E43: IIIcd | F43: at market - Nexø | G43: M DKNEX | H43: Cartilagenous fish | I43: NA | J43: The scheme samples sorted fish at the market, so no occurrence of by-catch is expected | K43: 325 | L43: 12 | M43: 12 | N43: N | O43: N. (The question more relates to specific observations of trips/ hauls and not overall sampling protocol) | P43: Y | Q43: N | R43: N | S43: N | T43: N | U43: Y | V43: Y | W43: This scheme samples sorted fish at the market, but since all the cod stocks caught by Dennmark are in table 1D and are sampled at the markets, then fish=Y
A44: DNK | B44: 2017 | C44: Baltic Sea | D44: ICES | E44: IIIcd | F44: at market - Nexø | G44: M DKNEX | H44: Bony fish | I44: NA | J44: The scheme samples sorted fish at the market, so no occurrence of by-catch is expected | K44: 325 | L44: 12 | M44: 12 | N44: N | O44: N. (The question more relates to specific observations of trips/ hauls and not overall sampling protocol) | P44: Y | Q44: N | R44: N | S44: N | T44: N | U44: Y | V44: Y | W44: This scheme samples sorted fish at the market, but since all the cod stocks caught by Dennmark are in table 1D and are sampled at the markets, then fish=Y
A45: DNK | B45: 2017 | C45: Baltic Sea | D45: ICES | E45: IIIcd | F45: at market - Nexø | G45: M DKNEX | H45: Reptiles | I45: NA | J45: The scheme samples sorted fish at the market, so no occurrence of by-catch is expected | K45: 325 | L45: 12 | M45: 12 | N45: N | O45: N. (The question more relates to specific observations of trips/ hauls and not overall sampling protocol) | P45: Y | Q45: N | R45: N | S45: N | T45: N | U45: Y | V45: Y | W45: This scheme samples sorted fish at the market, but since all the cod stocks caught by Dennmark are in table 1D and are sampled at the markets, then fish=Y
A46: DNK | B46: 2017 | C46: Baltic Sea | D46: ICES | E46: IIIcd | F46: at market - Nexø | G46: M DKNEX | H46: Mammals | I46: NA | J46: The scheme samples sorted fish at the market, so no occurrence of by-catch is expected | K46: 325 | L46: 12 | M46: 12 | N46: N | O46: N. (The question more relates to specific observations of trips/ hauls and not overall sampling protocol) | P46: Y | Q46: N | R46: N | S46: N | T46: N | U46: Y | V46: Y | W46: This scheme samples sorted fish at the market, but since all the cod stocks caught by Dennmark are in table 1D and are sampled at the markets, then fish=Y
A47: DNK | B47: 2017 | C47: Baltic Sea | D47: ICES | E47: IIIcd | F47: at market - Rønne | G47: M DKRNN | H47: birds | I47: NA | J47: The scheme samples sorted fish at the market, so no occurrence of by-catch is expected | K47: 287 | L47: 13 | M47: 13 | N47: N | O47: N. (The question more relates to specific observations of trips/ hauls and not overall sampling protocol) | P47: Y | Q47: N | R47: N | S47: N | T47: N | U47: Y | V47: Y | W47: This scheme samples sorted fish at the market, but since all the cod stocks caught by Dennmark are in table 1D and are sampled at the markets, then fish=Y
A48: DNK | B48: 2017 | C48: Baltic Sea | D48: ICES | E48: IIIcd | F48: at market - Rønne | G48: M DKRNN | H48: Cartilagenous fish | I48: NA | J48: The scheme samples sorted fish at the market, so no occurrence of by-catch is expected | K48: 287 | L48: 13 | M48: 13 | N48: N | O48: N. (The question more relates to specific observations of trips/ hauls and not overall sampling protocol) | P48: Y | Q48: N | R48: N | S48: N | T48: N | U48: Y | V48: Y | W48: This scheme samples sorted fish at the market, but since all the cod stocks caught by Dennmark are in table 1D and are sampled at the markets, then fish=Y
A49: DNK | B49: 2017 | C49: Baltic Sea | D49: ICES | E49: IIIcd | F49: at market - Rønne | G49: M DKRNN | H49: Bony fish | I49: NA | J49: The scheme samples sorted fish at the market, so no occurrence of by-catch is expected | K49: 287 | L49: 13 | M49: 13 | N49: N | O49: N. (The question more relates to specific observations of trips/ hauls and not overall sampling protocol) | P49: Y | Q49: N | R49: N | S49: N | T49: N | U49: Y | V49: Y | W49: This scheme samples sorted fish at the market, but since all the cod stocks caught by Dennmark are in table 1D and are sampled at the markets, then fish=Y
A50: DNK | B50: 2017 | C50: Baltic Sea | D50: ICES | E50: IIIcd | F50: at market - Rønne | G50: M DKRNN | H50: Reptiles | I50: NA | J50: The scheme samples sorted fish at the market, so no occurrence of by-catch is expected | K50: 287 | L50: 13 | M50: 13 | N50: N | O50: N. (The question more relates to specific observations of trips/ hauls and not overall sampling protocol) | P50: Y | Q50: N | R50: N | S50: N | T50: N | U50: Y | V50: Y | W50: This scheme samples sorted fish at the market, but since all the cod stocks caught by Dennmark are in table 1D and are sampled at the markets, then fish=Y
A51: DNK | B51: 2017 | C51: Baltic Sea | D51: ICES | E51: IIIcd | F51: at market - Rønne | G51: M DKRNN | H51: Mammals | I51: NA | J51: The scheme samples sorted fish at the market, so no occurrence of by-catch is expected | K51: 287 | L51: 13 | M51: 13 | N51: N | O51: N. (The question more relates to specific observations of trips/ hauls and not overall sampling protocol) | P51: Y | Q51: N | R51: N | S51: N | T51: N | U51: Y | V51: Y | W51: This scheme samples sorted fish at the market, but since all the cod stocks caught by Dennmark are in table 1D and are sampled at the markets, then fish=Y
A52: DNK | B52: 2017 | C52: Baltic Sea | D52: ICES | E52: IIIcd | F52: at market - Tejn | G52: M DKTEJ | H52: birds | I52: NA | J52: The scheme samples sorted fish at the market, so no occurrence of by-catch is expected | K52: 146 | L52: 2 | M52: 2 | N52: N | O52: N. (The question more relates to specific observations of trips/ hauls and not overall sampling protocol) | P52: Y | Q52: N | R52: N | S52: N | T52: N | U52: Y | V52: Y | W52: This scheme samples sorted fish at the market, but since all the cod stocks caught by Dennmark are in table 1D and are sampled at the markets, then fish=Y
A53: DNK | B53: 2017 | C53: Baltic Sea | D53: ICES | E53: IIIcd | F53: at market - Tejn | G53: M DKTEJ | H53: Cartilagenous fish | I53: NA | J53: The scheme samples sorted fish at the market, so no occurrence of by-catch is expected | K53: 146 | L53: 2 | M53: 2 | N53: N | O53: N. (The question more relates to specific observations of trips/ hauls and not overall sampling protocol) | P53: Y | Q53: N | R53: N | S53: N | T53: N | U53: Y | V53: Y | W53: This scheme samples sorted fish at the market, but since all the cod stocks caught by Dennmark are in table 1D and are sampled at the markets, then fish=Y
A54: DNK | B54: 2017 | C54: Baltic Sea | D54: ICES | E54: IIIcd | F54: at market - Tejn | G54: M DKTEJ | H54: Bony fish | I54: NA | J54: The scheme samples sorted fish at the market, so no occurrence of by-catch is expected | K54: 146 | L54: 2 | M54: 2 | N54: N | O54: N. (The question more relates to specific observations of trips/ hauls and not overall sampling protocol) | P54: Y | Q54: N | R54: N | S54: N | T54: N | U54: Y | V54: Y | W54: This scheme samples sorted fish at the market, but since all the cod stocks caught by Dennmark are in table 1D and are sampled at the markets, then fish=Y
A55: DNK | B55: 2017 | C55: Baltic Sea | D55: ICES | E55: IIIcd | F55: at market - Tejn | G55: M DKTEJ | H55: Reptiles | I55: NA | J55: The scheme samples sorted fish at the market, so no occurrence of by-catch is expected | K55: 146 | L55: 2 | M55: 2 | N55: N | O55: N. (The question more relates to specific observations of trips/ hauls and not overall sampling protocol) | P55: Y | Q55: N | R55: N | S55: N | T55: N | U55: Y | V55: Y | W55: This scheme samples sorted fish at the market, but since all the cod stocks caught by Dennmark are in table 1D and are sampled at the markets, then fish=Y
A56: DNK | B56: 2017 | C56: Baltic Sea | D56: ICES | E56: IIIcd | F56: at market - Tejn | G56: M DKTEJ | H56: Mammals | I56: NA | J56: The scheme samples sorted fish at the market, so no occurrence of by-catch is expected | K56: 146 | L56: 2 | M56: 2 | N56: N | O56: N. (The question more relates to specific observations of trips/ hauls and not overall sampling protocol) | P56: Y | Q56: N | R56: N | S56: N | T56: N | U56: Y | V56: Y | W56: This scheme samples sorted fish at the market, but since all the cod stocks caught by Dennmark are in table 1D and are sampled at the markets, then fish=Y
A57: DNK | B57: 2017 | C57: Baltic Sea | D57: ICES | E57: IIIcd | F57: at market - Vedbæk | G57: M DKVBK | H57: birds | I57: NA | J57: The scheme samples sorted fish at the market, so no occurrence of by-catch is expected | K57: 269 | L57: 0 | M57: 0 | N57: N | O57: N. (The question more relates to specific observations of trips/ hauls and not overall sampling protocol) | P57: Y | Q57: N | R57: N | S57: N | T57: N | U57: Y | V57: Y | W57: This scheme samples sorted fish at the market, but since all the cod stocks caught by Dennmark are in table 1D and are sampled at the markets, then fish=Y
A58: DNK | B58: 2017 | C58: Baltic Sea | D58: ICES | E58: IIIcd | F58: at market - Vedbæk | G58: M DKVBK | H58: Cartilagenous fish | I58: NA | J58: The scheme samples sorted fish at the market, so no occurrence of by-catch is expected | K58: 269 | L58: 0 | M58: 0 | N58: N | O58: N. (The question more relates to specific observations of trips/ hauls and not overall sampling protocol) | P58: Y | Q58: N | R58: N | S58: N | T58: N | U58: Y | V58: Y | W58: This scheme samples sorted fish at the market, but since all the cod stocks caught by Dennmark are in table 1D and are sampled at the markets, then fish=Y
A59: DNK | B59: 2017 | C59: Baltic Sea | D59: ICES | E59: IIIcd | F59: at market - Vedbæk | G59: M DKVBK | H59: Bony fish | I59: NA | J59: The scheme samples sorted fish at the market, so no occurrence of by-catch is expected | K59: 269 | L59: 0 | M59: 0 | N59: N | O59: N. (The question more relates to specific observations of trips/ hauls and not overall sampling protocol) | P59: Y | Q59: N | R59: N | S59: N | T59: N | U59: Y | V59: Y | W59: This scheme samples sorted fish at the market, but since all the cod stocks caught by Dennmark are in table 1D and are sampled at the markets, then fish=Y
A60: DNK | B60: 2017 | C60: Baltic Sea | D60: ICES | E60: IIIcd | F60: at market - Vedbæk | G60: M DKVBK | H60: Reptiles | I60: NA | J60: The scheme samples sorted fish at the market, so no occurrence of by-catch is expected | K60: 269 | L60: 0 | M60: 0 | N60: N | O60: N. (The question more relates to specific observations of trips/ hauls and not overall sampling protocol) | P60: Y | Q60: N | R60: N | S60: N | T60: N | U60: Y | V60: Y | W60: This scheme samples sorted fish at the market, but since all the cod stocks caught by Dennmark are in table 1D and are sampled at the markets, then fish=Y
A61: DNK | B61: 2017 | C61: Baltic Sea | D61: ICES | E61: IIIcd | F61: at market - Vedbæk | G61: M DKVBK | H61: Mammals | I61: NA | J61: The scheme samples sorted fish at the market, so no occurrence of by-catch is expected | K61: 269 | L61: 0 | M61: 0 | N61: N | O61: N. (The question more relates to specific observations of trips/ hauls and not overall sampling protocol) | P61: Y | Q61: N | R61: N | S61: N | T61: N | U61: Y | V61: Y | W61: This scheme samples sorted fish at the market, but since all the cod stocks caught by Dennmark are in table 1D and are sampled at the markets, then fish=Y
A62: DNK | B62: 2017 | C62: North Sea and Eastern Arctic | D62: ICES | E62: IV | F62: at market - Hirtshals | G62: M DKHIR | H62: birds | I62: NA | J62: The scheme samples sorted fish at the market, so no occurrence of by-catch is expected | K62: 353 | L62: 14 | M62: 14 | N62: N | O62: N. (The question more relates to specific observations of trips/ hauls and not overall sampling protocol) | P62: Y | Q62: N | R62: N | S62: N | T62: N | U62: Y | V62: Y | W62: This scheme samples sorted fish at the market, but since all the cod stocks caught by Dennmark are in table 1D and are sampled at the markets, then fish=Y
A63: DNK | B63: 2017 | C63: North Sea and Eastern Arctic | D63: ICES | E63: IV | F63: at market - Hirtshals | G63: M DKHIR | H63: Cartilagenous fish | I63: NA | J63: The scheme samples sorted fish at the market, so no occurrence of by-catch is expected | K63: 353 | L63: 14 | M63: 14 | N63: N | O63: N. (The question more relates to specific observations of trips/ hauls and not overall sampling protocol) | P63: Y | Q63: N | R63: N | S63: N | T63: N | U63: Y | V63: Y | W63: This scheme samples sorted fish at the market, but since all the cod stocks caught by Dennmark are in table 1D and are sampled at the markets, then fish=Y
A64: DNK | B64: 2017 | C64: North Sea and Eastern Arctic | D64: ICES | E64: IV | F64: at market - Hirtshals | G64: M DKHIR | H64: Bony fish | I64: NA | J64: The scheme samples sorted fish at the market, so no occurrence of by-catch is expected | K64: 353 | L64: 14 | M64: 14 | N64: N | O64: N. (The question more relates to specific observations of trips/ hauls and not overall sampling protocol) | P64: Y | Q64: N | R64: N | S64: N | T64: N | U64: Y | V64: Y | W64: This scheme samples sorted fish at the market, but since all the cod stocks caught by Dennmark are in table 1D and are sampled at the markets, then fish=Y
A65: DNK | B65: 2017 | C65: North Sea and Eastern Arctic | D65: ICES | E65: IV | F65: at market - Hirtshals | G65: M DKHIR | H65: Reptiles | I65: NA | J65: The scheme samples sorted fish at the market, so no occurrence of by-catch is expected | K65: 353 | L65: 14 | M65: 14 | N65: N | O65: N. (The question more relates to specific observations of trips/ hauls and not overall sampling protocol) | P65: Y | Q65: N | R65: N | S65: N | T65: N | U65: Y | V65: Y | W65: This scheme samples sorted fish at the market, but since all the cod stocks caught by Dennmark are in table 1D and are sampled at the markets, then fish=Y
A66: DNK | B66: 2017 | C66: North Sea and Eastern Arctic | D66: ICES | E66: IV | F66: at market - Hirtshals | G66: M DKHIR | H66: Mammals | I66: NA | J66: The scheme samples sorted fish at the market, so no occurrence of by-catch is expected | K66: 353 | L66: 14 | M66: 14 | N66: N | O66: N. (The question more relates to specific observations of trips/ hauls and not overall sampling protocol) | P66: Y | Q66: N | R66: N | S66: N | T66: N | U66: Y | V66: Y | W66: This scheme samples sorted fish at the market, but since all the cod stocks caught by Dennmark are in table 1D and are sampled at the markets, then fish=Y
A67: DNK | B67: 2017 | C67: North sea and Eastern Arctic | D67: ICES | E67: IV,III | F67: At market - small pelagic | G67: Ammodytidae sp. | H67: birds | I67: NA | J67: The scheme samples a subsample of the catch at the market. The subsamles are small and will in general only contain fish. The scheme is not designed to measure rare by-catch events. | K67: 1489 | L67: 64 | M67: 64 | N67: N | O67: N. (The question more relates to specific observations of trips/ hauls and not overall sampling protocol) | P67: Y | Q67: N | R67: N | S67: N | T67: N | U67: Y | V67: Y | W67: The samples are unsorted, but small, so it is only likely so see endangered fish on the same size as the target species
A68: DNK | B68: 2017 | C68: North sea and Eastern Arctic | D68: ICES | E68: IV,III | F68: At market - small pelagic | G68: Ammodytidae sp. | H68: Cartilagenous fish | I68: NA | J68: The scheme samples a subsample of the catch at the market. The subsamles are small and will in general only contain fish. The scheme is not designed to measure rare by-catch events. | K68: 1489 | L68: 64 | M68: 64 | N68: N | O68: N. (The question more relates to specific observations of trips/ hauls and not overall sampling protocol) | P68: Y | Q68: N | R68: N | S68: N | T68: N | U68: Y | V68: Y | W68: The samples are unsorted, but small, so it is only likely so see endangered fish on the same size as the target species
A69: DNK | B69: 2017 | C69: North sea and Eastern Arctic | D69: ICES | E69: IV,III | F69: At market - small pelagic | G69: Ammodytidae sp. | H69: Bony fish | I69: NA | J69: The scheme samples a subsample of the catch at the market. The subsamles are small and will in general only contain fish. The scheme is not designed to measure rare by-catch events. | K69: 1489 | L69: 64 | M69: 64 | N69: N | O69: N. (The question more relates to specific observations of trips/ hauls and not overall sampling protocol) | P69: Y | Q69: N | R69: N | S69: N | T69: N | U69: Y | V69: Y | W69: The samples are unsorted, but small, so it is only likely so see endangered fish on the same size as the target species
A70: DNK | B70: 2017 | C70: North sea and Eastern Arctic | D70: ICES | E70: IV,III | F70: At market - small pelagic | G70: Ammodytidae sp. | H70: Reptiles | I70: NA | J70: The scheme samples a subsample of the catch at the market. The subsamles are small and will in general only contain fish. The scheme is not designed to measure rare by-catch events. | K70: 1489 | L70: 64 | M70: 64 | N70: N | O70: N. (The question more relates to specific observations of trips/ hauls and not overall sampling protocol) | P70: Y | Q70: N | R70: N | S70: N | T70: N | U70: Y | V70: Y | W70: The samples are unsorted, but small, so it is only likely so see endangered fish on the same size as the target species
A71: DNK | B71: 2017 | C71: North sea and Eastern Arctic | D71: ICES | E71: IV,III | F71: At market - small pelagic | G71: Ammodytidae sp. | H71: Mammals | I71: NA | J71: The scheme samples a subsample of the catch at the market. The subsamles are small and will in general only contain fish. The scheme is not designed to measure rare by-catch events. | K71: 1489 | L71: 64 | M71: 64 | N71: N | O71: N. (The question more relates to specific observations of trips/ hauls and not overall sampling protocol) | P71: Y | Q71: N | R71: N | S71: N | T71: N | U71: Y | V71: Y | W71: The samples are unsorted, but small, so it is only likely so see endangered fish on the same size as the target species
A72: DNK | B72: 2017 | C72: North sea and Eastern Arctic | D72: ICES | E72: IV,IIIa | F72: At market - small pelagic | G72: Trisopterus esmarkii | H72: birds | I72: NA | J72: The scheme samples a subsample of the catch at the market. The subsamles are small and will in general only contain fish. The scheme is not designed to measure rare by-catch events. | K72: 64 | L72: 7 | M72: 7 | N72: N | O72: N. (The question more relates to specific observations of trips/ hauls and not overall sampling protocol) | P72: Y | Q72: N | R72: N | S72: N | T72: N | U72: Y | V72: Y | W72: The samples are unsorted, but small, so it is only likely so see endangered fish on the same size as the target species
A73: DNK | B73: 2017 | C73: North sea and Eastern Arctic | D73: ICES | E73: IV,IIIa | F73: At market - small pelagic | G73: Trisopterus esmarkii | H73: Cartilagenous fish | I73: NA | J73: The scheme samples a subsample of the catch at the market. The subsamles are small and will in general only contain fish. The scheme is not designed to measure rare by-catch events. | K73: 64 | L73: 7 | M73: 7 | N73: N | O73: N. (The question more relates to specific observations of trips/ hauls and not overall sampling protocol) | P73: Y | Q73: N | R73: N | S73: N | T73: N | U73: Y | V73: Y | W73: The samples are unsorted, but small, so it is only likely so see endangered fish on the same size as the target species
A74: DNK | B74: 2017 | C74: North sea and Eastern Arctic | D74: ICES | E74: IV,IIIa | F74: At market - small pelagic | G74: Trisopterus esmarkii | H74: Bony fish | I74: NA | J74: The scheme samples a subsample of the catch at the market. The subsamles are small and will in general only contain fish. The scheme is not designed to measure rare by-catch events. | K74: 64 | L74: 7 | M74: 7 | N74: N | O74: N. (The question more relates to specific observations of trips/ hauls and not overall sampling protocol) | P74: Y | Q74: N | R74: N | S74: N | T74: N | U74: Y | V74: Y | W74: The samples are unsorted, but small, so it is only likely so see endangered fish on the same size as the target species
A75: DNK | B75: 2017 | C75: North sea and Eastern Arctic | D75: ICES | E75: IV,IIIa | F75: At market - small pelagic | G75: Trisopterus esmarkii | H75: Reptiles | I75: NA | J75: The scheme samples a subsample of the catch at the market. The subsamles are small and will in general only contain fish. The scheme is not designed to measure rare by-catch events. | K75: 64 | L75: 7 | M75: 7 | N75: N | O75: N. (The question more relates to specific observations of trips/ hauls and not overall sampling protocol) | P75: Y | Q75: N | R75: N | S75: N | T75: N | U75: Y | V75: Y | W75: The samples are unsorted, but small, so it is only likely so see endangered fish on the same size as the target species
A76: DNK | B76: 2017 | C76: North sea and Eastern Arctic | D76: ICES | E76: IV,IIIa | F76: At market - small pelagic | G76: Trisopterus esmarkii | H76: Mammals | I76: NA | J76: The scheme samples a subsample of the catch at the market. The subsamles are small and will in general only contain fish. The scheme is not designed to measure rare by-catch events. | K76: 64 | L76: 7 | M76: 7 | N76: N | O76: N. (The question more relates to specific observations of trips/ hauls and not overall sampling protocol) | P76: Y | Q76: N | R76: N | S76: N | T76: N | U76: Y | V76: Y | W76: The samples are unsorted, but small, so it is only likely so see endangered fish on the same size as the target species
A77: DNK | B77: 2017 | C77: North Sea and Eastern Arctic | D77: ICES | E77: IV,III | F77: at market - Thorsminde | G77: M DKTMD | H77: birds | I77: NA | J77: The scheme samples sorted fish at the market, so no occurrence of by-catch is expected | K77: 299 | L77: 0 | M77: 0 | N77: N | O77: N. (The question more relates to specific observations of trips/ hauls and not overall sampling protocol) | P77: Y | Q77: N | R77: N | S77: N | T77: N | U77: Y | V77: Y | W77: This scheme samples sorted fish at the market, but since all the cod stocks caught by Dennmark are in table 1D and are sampled at the markets, then fish=Y
A78: DNK | B78: 2017 | C78: North Sea and Eastern Arctic | D78: ICES | E78: IV,III | F78: at market - Thorsminde | G78: M DKTMD | H78: Cartilagenous fish | I78: NA | J78: The scheme samples sorted fish at the market, so no occurrence of by-catch is expected | K78: 299 | L78: 0 | M78: 0 | N78: N | O78: N. (The question more relates to specific observations of trips/ hauls and not overall sampling protocol) | P78: Y | Q78: N | R78: N | S78: N | T78: N | U78: Y | V78: Y | W78: This scheme samples sorted fish at the market, but since all the cod stocks caught by Dennmark are in table 1D and are sampled at the markets, then fish=Y
A79: DNK | B79: 2017 | C79: North Sea and Eastern Arctic | D79: ICES | E79: IV,III | F79: at market - Thorsminde | G79: M DKTMD | H79: Bony fish | I79: NA | J79: The scheme samples sorted fish at the market, so no occurrence of by-catch is expected | K79: 299 | L79: 0 | M79: 0 | N79: N | O79: N. (The question more relates to specific observations of trips/ hauls and not overall sampling protocol) | P79: Y | Q79: N | R79: N | S79: N | T79: N | U79: Y | V79: Y | W79: This scheme samples sorted fish at the market, but since all the cod stocks caught by Dennmark are in table 1D and are sampled at the markets, then fish=Y
A80: DNK | B80: 2017 | C80: North Sea and Eastern Arctic | D80: ICES | E80: IV,III | F80: at market - Thorsminde | G80: M DKTMD | H80: Reptiles | I80: NA | J80: The scheme samples sorted fish at the market, so no occurrence of by-catch is expected | K80: 299 | L80: 0 | M80: 0 | N80: N | O80: N. (The question more relates to specific observations of trips/ hauls and not overall sampling protocol) | P80: Y | Q80: N | R80: N | S80: N | T80: N | U80: Y | V80: Y | W80: This scheme samples sorted fish at the market, but since all the cod stocks caught by Dennmark are in table 1D and are sampled at the markets, then fish=Y
A81: DNK | B81: 2017 | C81: North Sea and Eastern Arctic | D81: ICES | E81: IV,III | F81: at market - Thorsminde | G81: M DKTMD | H81: Mammals | I81: NA | J81: The scheme samples sorted fish at the market, so no occurrence of by-catch is expected | K81: 299 | L81: 0 | M81: 0 | N81: N | O81: N. (The question more relates to specific observations of trips/ hauls and not overall sampling protocol) | P81: Y | Q81: N | R81: N | S81: N | T81: N | U81: Y | V81: Y | W81: This scheme samples sorted fish at the market, but since all the cod stocks caught by Dennmark are in table 1D and are sampled at the markets, then fish=Y
A82: DNK | B82: 2017 | C82: North sea and Eastern Arctic | D82: ICES | E82: IV,IIIa | F82: At sea - self-sampling, small pelagic | G82: Ammodytidae sp. | H82: birds | I82: NA | J82: The scheme samples a subsample of the ratained part of the haul at sea. The subsamles are small and will in general only contain fish. The scheme is not designed to measure rare by-catch events. | K82: 1489 | L82: 238 | M82: 238 | N82: N | O82: N. (The question more relates to specific observations of trips/ hauls and not overall sampling protocol) | P82: Y | Q82: N | R82: N | S82: N | T82: N | U82: Y | V82: Y | W82: The self-sampling samples are small, but unsorted, so it is only likely so see endangered fish on the same size as the target species
A83: DNK | B83: 2017 | C83: North sea and Eastern Arctic | D83: ICES | E83: IV,IIIa | F83: At sea - self-sampling, small pelagic | G83: Ammodytidae sp. | H83: Cartilagenous fish | I83: NA | J83: The scheme samples a subsample of the ratained part of the haul at sea. The subsamles are small and will in general only contain fish. The scheme is not designed to measure rare by-catch events. | K83: 1489 | L83: 238 | M83: 238 | N83: N | O83: N. (The question more relates to specific observations of trips/ hauls and not overall sampling protocol) | P83: Y | Q83: N | R83: N | S83: N | T83: N | U83: Y | V83: Y | W83: The self-sampling samples are small, but unsorted, so it is only likely so see endangered fish on the same size as the target species
A84: DNK | B84: 2017 | C84: North sea and Eastern Arctic | D84: ICES | E84: IV,IIIa | F84: At sea - self-sampling, small pelagic | G84: Ammodytidae sp. | H84: Bony fish | I84: NA | J84: The scheme samples a subsample of the ratained part of the haul at sea. The subsamles are small and will in general only contain fish. The scheme is not designed to measure rare by-catch events. | K84: 1489 | L84: 238 | M84: 238 | N84: N | O84: N. (The question more relates to specific observations of trips/ hauls and not overall sampling protocol) | P84: Y | Q84: N | R84: N | S84: N | T84: N | U84: Y | V84: Y | W84: The self-sampling samples are small, but unsorted, so it is only likely so see endangered fish on the same size as the target species
A85: DNK | B85: 2017 | C85: North sea and Eastern Arctic | D85: ICES | E85: IV,IIIa | F85: At sea - self-sampling, small pelagic | G85: Ammodytidae sp. | H85: Reptiles | I85: NA | J85: The scheme samples a subsample of the ratained part of the haul at sea. The subsamles are small and will in general only contain fish. The scheme is not designed to measure rare by-catch events. | K85: 1489 | L85: 238 | M85: 238 | N85: N | O85: N. (The question more relates to specific observations of trips/ hauls and not overall sampling protocol) | P85: Y | Q85: N | R85: N | S85: N | T85: N | U85: Y | V85: Y | W85: The self-sampling samples are small, but unsorted, so it is only likely so see endangered fish on the same size as the target species
A86: DNK | B86: 2017 | C86: North sea and Eastern Arctic | D86: ICES | E86: IV,IIIa | F86: At sea - self-sampling, small pelagic | G86: Ammodytidae sp. | H86: Mammals | I86: NA | J86: The scheme samples a subsample of the ratained part of the haul at sea. The subsamles are small and will in general only contain fish. The scheme is not designed to measure rare by-catch events. | K86: 1489 | L86: 238 | M86: 238 | N86: N | O86: N. (The question more relates to specific observations of trips/ hauls and not overall sampling protocol) | P86: Y | Q86: N | R86: N | S86: N | T86: N | U86: Y | V86: Y | W86: The self-sampling samples are small, but unsorted, so it is only likely so see endangered fish on the same size as the target species
A87: DNK | B87: 2017 | C87: North Sea and Eastern Arctic & Baltic Sea | D87: ICES | E87: IV,III | F87: at market - Grenå | G87: M DKGRE | H87: birds | I87: NA | J87: The scheme samples sorted fish at the market, so no occurrence of by-catch is expected | K87: 295 | L87: 2 | M87: 2 | N87: N | O87: N. (The question more relates to specific observations of trips/ hauls and not overall sampling protocol) | P87: Y | Q87: N | R87: N | S87: N | T87: N | U87: Y | V87: Y | W87: This scheme samples sorted fish at the market, but since all the cod stocks caught by Dennmark are in table 1D and are sampled at the markets, then fish=Y
A88: DNK | B88: 2017 | C88: North Sea and Eastern Arctic & Baltic Sea | D88: ICES | E88: IV,III | F88: at market - Grenå | G88: M DKGRE | H88: Cartilagenous fish | I88: NA | J88: The scheme samples sorted fish at the market, so no occurrence of by-catch is expected | K88: 295 | L88: 2 | M88: 2 | N88: N | O88: N. (The question more relates to specific observations of trips/ hauls and not overall sampling protocol) | P88: Y | Q88: N | R88: N | S88: N | T88: N | U88: Y | V88: Y | W88: This scheme samples sorted fish at the market, but since all the cod stocks caught by Dennmark are in table 1D and are sampled at the markets, then fish=Y
A89: DNK | B89: 2017 | C89: North Sea and Eastern Arctic & Baltic Sea | D89: ICES | E89: IV,III | F89: at market - Grenå | G89: M DKGRE | H89: Bony fish | I89: NA | J89: The scheme samples sorted fish at the market, so no occurrence of by-catch is expected | K89: 295 | L89: 2 | M89: 2 | N89: N | O89: N. (The question more relates to specific observations of trips/ hauls and not overall sampling protocol) | P89: Y | Q89: N | R89: N | S89: N | T89: N | U89: Y | V89: Y | W89: This scheme samples sorted fish at the market, but since all the cod stocks caught by Dennmark are in table 1D and are sampled at the markets, then fish=Y
A90: DNK | B90: 2017 | C90: North Sea and Eastern Arctic & Baltic Sea | D90: ICES | E90: IV,III | F90: at market - Grenå | G90: M DKGRE | H90: Reptiles | I90: NA | J90: The scheme samples sorted fish at the market, so no occurrence of by-catch is expected | K90: 295 | L90: 2 | M90: 2 | N90: N | O90: N. (The question more relates to specific observations of trips/ hauls and not overall sampling protocol) | P90: Y | Q90: N | R90: N | S90: N | T90: N | U90: Y | V90: Y | W90: This scheme samples sorted fish at the market, but since all the cod stocks caught by Dennmark are in table 1D and are sampled at the markets, then fish=Y
A91: DNK | B91: 2017 | C91: North Sea and Eastern Arctic & Baltic Sea | D91: ICES | E91: IV,III | F91: at market - Grenå | G91: M DKGRE | H91: Mammals | I91: NA | J91: The scheme samples sorted fish at the market, so no occurrence of by-catch is expected | K91: 295 | L91: 2 | M91: 2 | N91: N | O91: N. (The question more relates to specific observations of trips/ hauls and not overall sampling protocol) | P91: Y | Q91: N | R91: N | S91: N | T91: N | U91: Y | V91: Y | W91: This scheme samples sorted fish at the market, but since all the cod stocks caught by Dennmark are in table 1D and are sampled at the markets, then fish=Y
A92: DNK | B92: 2017 | C92: North Sea and Eastern Arctic & Baltic Sea | D92: ICES | E92: IV,III | F92: at market - Hanstholm | G92: M DKHAN | H92: birds | I92: NA | J92: The scheme samples sorted fish at the market, so no occurrence of by-catch is expected | K92: 348 | L92: 11 | M92: 11 | N92: N | O92: N. (The question more relates to specific observations of trips/ hauls and not overall sampling protocol) | P92: Y | Q92: N | R92: N | S92: N | T92: N | U92: Y | V92: Y | W92: This scheme samples sorted fish at the market, but since all the cod stocks caught by Dennmark are in table 1D and are sampled at the markets, then fish=Y
A93: DNK | B93: 2017 | C93: North Sea and Eastern Arctic & Baltic Sea | D93: ICES | E93: IV,III | F93: at market - Hanstholm | G93: M DKHAN | H93: Cartilagenous fish | I93: NA | J93: The scheme samples sorted fish at the market, so no occurrence of by-catch is expected | K93: 348 | L93: 11 | M93: 11 | N93: N | O93: N. (The question more relates to specific observations of trips/ hauls and not overall sampling protocol) | P93: Y | Q93: N | R93: N | S93: N | T93: N | U93: Y | V93: Y | W93: This scheme samples sorted fish at the market, but since all the cod stocks caught by Dennmark are in table 1D and are sampled at the markets, then fish=Y
A94: DNK | B94: 2017 | C94: North Sea and Eastern Arctic & Baltic Sea | D94: ICES | E94: IV,III | F94: at market - Hanstholm | G94: M DKHAN | H94: Bony fish | I94: NA | J94: The scheme samples sorted fish at the market, so no occurrence of by-catch is expected | K94: 348 | L94: 11 | M94: 11 | N94: N | O94: N. (The question more relates to specific observations of trips/ hauls and not overall sampling protocol) | P94: Y | Q94: N | R94: N | S94: N | T94: N | U94: Y | V94: Y | W94: This scheme samples sorted fish at the market, but since all the cod stocks caught by Dennmark are in table 1D and are sampled at the markets, then fish=Y
A95: DNK | B95: 2017 | C95: North Sea and Eastern Arctic & Baltic Sea | D95: ICES | E95: IV,III | F95: at market - Hanstholm | G95: M DKHAN | H95: Reptiles | I95: NA | J95: The scheme samples sorted fish at the market, so no occurrence of by-catch is expected | K95: 348 | L95: 11 | M95: 11 | N95: N | O95: N. (The question more relates to specific observations of trips/ hauls and not overall sampling protocol) | P95: Y | Q95: N | R95: N | S95: N | T95: N | U95: Y | V95: Y | W95: This scheme samples sorted fish at the market, but since all the cod stocks caught by Dennmark are in table 1D and are sampled at the markets, then fish=Y
A96: DNK | B96: 2017 | C96: North Sea and Eastern Arctic & Baltic Sea | D96: ICES | E96: IV,III | F96: at market - Hanstholm | G96: M DKHAN | H96: Mammals | I96: NA | J96: The scheme samples sorted fish at the market, so no occurrence of by-catch is expected | K96: 348 | L96: 11 | M96: 11 | N96: N | O96: N. (The question more relates to specific observations of trips/ hauls and not overall sampling protocol) | P96: Y | Q96: N | R96: N | S96: N | T96: N | U96: Y | V96: Y | W96: This scheme samples sorted fish at the market, but since all the cod stocks caught by Dennmark are in table 1D and are sampled at the markets, then fish=Y
A97: DNK | B97: 2017 | C97: North Sea and Eastern Arctic & Baltic Sea | D97: ICES | E97: IV,III | F97: at market - Hundested | G97: M DKHUN | H97: birds | I97: NA | J97: The scheme samples sorted fish at the market, so no occurrence of by-catch is expected | K97: 347 | L97: 7 | M97: 7 | N97: N | O97: N. (The question more relates to specific observations of trips/ hauls and not overall sampling protocol) | P97: Y | Q97: N | R97: N | S97: N | T97: N | U97: Y | V97: Y | W97: This scheme samples sorted fish at the market, but since all the cod stocks caught by Dennmark are in table 1D and are sampled at the markets, then fish=Y
A98: DNK | B98: 2017 | C98: North Sea and Eastern Arctic & Baltic Sea | D98: ICES | E98: IV,III | F98: at market - Hundested | G98: M DKHUN | H98: Cartilagenous fish | I98: NA | J98: The scheme samples sorted fish at the market, so no occurrence of by-catch is expected | K98: 347 | L98: 7 | M98: 7 | N98: N | O98: N. (The question more relates to specific observations of trips/ hauls and not overall sampling protocol) | P98: Y | Q98: N | R98: N | S98: N | T98: N | U98: Y | V98: Y | W98: This scheme samples sorted fish at the market, but since all the cod stocks caught by Dennmark are in table 1D and are sampled at the markets, then fish=Y
A99: DNK | B99: 2017 | C99: North Sea and Eastern Arctic & Baltic Sea | D99: ICES | E99: IV,III | F99: at market - Hundested | G99: M DKHUN | H99: Bony fish | I99: NA | J99: The scheme samples sorted fish at the market, so no occurrence of by-catch is expected | K99: 347 | L99: 7 | M99: 7 | N99: N | O99: N. (The question more relates to specific observations of trips/ hauls and not overall sampling protocol) | P99: Y | Q99: N | R99: N | S99: N | T99: N | U99: Y | V99: Y | W99: This scheme samples sorted fish at the market, but since all the cod stocks caught by Dennmark are in table 1D and are sampled at the markets, then fish=Y
A100: DNK | B100: 2017 | C100: North Sea and Eastern Arctic & Baltic Sea | D100: ICES | E100: IV,III | F100: at market - Hundested | G100: M DKHUN | H100: Reptiles | I100: NA | J100: The scheme samples sorted fish at the market, so no occurrence of by-catch is expected | K100: 347 | L100: 7 | M100: 7 | N100: N | O100: N. (The question more relates to specific observations of trips/ hauls and not overall sampling protocol) | P100: Y | Q100: N | R100: N | S100: N | T100: N | U100: Y | V100: Y | W100: This scheme samples sorted fish at the market, but since all the cod stocks caught by Dennmark are in table 1D and are sampled at the markets, then fish=Y
A101: DNK | B101: 2017 | C101: North Sea and Eastern Arctic & Baltic Sea | D101: ICES | E101: IV,III | F101: at market - Hundested | G101: M DKHUN | H101: Mammals | I101: NA | J101: The scheme samples sorted fish at the market, so no occurrence of by-catch is expected | K101: 347 | L101: 7 | M101: 7 | N101: N | O101: N. (The question more relates to specific observations of trips/ hauls and not overall sampling protocol) | P101: Y | Q101: N | R101: N | S101: N | T101: N | U101: Y | V101: Y | W101: This scheme samples sorted fish at the market, but since all the cod stocks caught by Dennmark are in table 1D and are sampled at the markets, then fish=Y
A102: DNK | B102: 2017 | C102: North Sea and Eastern Arctic & Baltic Sea | D102: ICES | E102: IV,III | F102: at market - Hvide Sande | G102: M DKHVS | H102: birds | I102: NA | J102: The scheme samples sorted fish at the market, so no occurrence of by-catch is expected | K102: 365 | L102: 30 | M102: 30 | N102: N | O102: N. (The question more relates to specific observations of trips/ hauls and not overall sampling protocol) | P102: Y | Q102: N | R102: N | S102: N | T102: N | U102: Y | V102: Y | W102: This scheme samples sorted fish at the market, but since all the cod stocks caught by Dennmark are in table 1D and are sampled at the markets, then fish=Y
A103: DNK | B103: 2017 | C103: North Sea and Eastern Arctic & Baltic Sea | D103: ICES | E103: IV,III | F103: at market - Hvide Sande | G103: M DKHVS | H103: Cartilagenous fish | I103: NA | J103: The scheme samples sorted fish at the market, so no occurrence of by-catch is expected | K103: 365 | L103: 30 | M103: 30 | N103: N | O103: N. (The question more relates to specific observations of trips/ hauls and not overall sampling protocol) | P103: Y | Q103: N | R103: N | S103: N | T103: N | U103: Y | V103: Y | W103: This scheme samples sorted fish at the market, but since all the cod stocks caught by Dennmark are in table 1D and are sampled at the markets, then fish=Y
A104: DNK | B104: 2017 | C104: North Sea and Eastern Arctic & Baltic Sea | D104: ICES | E104: IV,III | F104: at market - Hvide Sande | G104: M DKHVS | H104: Bony fish | I104: NA | J104: The scheme samples sorted fish at the market, so no occurrence of by-catch is expected | K104: 365 | L104: 30 | M104: 30 | N104: N | O104: N. (The question more relates to specific observations of trips/ hauls and not overall sampling protocol) | P104: Y | Q104: N | R104: N | S104: N | T104: N | U104: Y | V104: Y | W104: This scheme samples sorted fish at the market, but since all the cod stocks caught by Dennmark are in table 1D and are sampled at the markets, then fish=Y
A105: DNK | B105: 2017 | C105: North Sea and Eastern Arctic & Baltic Sea | D105: ICES | E105: IV,III | F105: at market - Hvide Sande | G105: M DKHVS | H105: Reptiles | I105: NA | J105: The scheme samples sorted fish at the market, so no occurrence of by-catch is expected | K105: 365 | L105: 30 | M105: 30 | N105: N | O105: N. (The question more relates to specific observations of trips/ hauls and not overall sampling protocol) | P105: Y | Q105: N | R105: N | S105: N | T105: N | U105: Y | V105: Y | W105: This scheme samples sorted fish at the market, but since all the cod stocks caught by Dennmark are in table 1D and are sampled at the markets, then fish=Y
A106: DNK | B106: 2017 | C106: North Sea and Eastern Arctic & Baltic Sea | D106: ICES | E106: IV,III | F106: at market - Hvide Sande | G106: M DKHVS | H106: Mammals | I106: NA | J106: The scheme samples sorted fish at the market, so no occurrence of by-catch is expected | K106: 365 | L106: 30 | M106: 30 | N106: N | O106: N. (The question more relates to specific observations of trips/ hauls and not overall sampling protocol) | P106: Y | Q106: N | R106: N | S106: N | T106: N | U106: Y | V106: Y | W106: This scheme samples sorted fish at the market, but since all the cod stocks caught by Dennmark are in table 1D and are sampled at the markets, then fish=Y
A107: DNK | B107: 2017 | C107: North Sea and Eastern Arctic & Baltic Sea | D107: ICES | E107: IV,III | F107: at market - Skagen | G107: M DKSKA | H107: birds | I107: NA | J107: The scheme samples sorted fish at the market, so no occurrence of by-catch is expected | K107: 355 | L107: 0 | M107: 0 | N107: N | O107: N. (The question more relates to specific observations of trips/ hauls and not overall sampling protocol) | P107: Y | Q107: N | R107: N | S107: N | T107: N | U107: Y | V107: Y | W107: This scheme samples sorted fish at the market, but since all the cod stocks caught by Dennmark are in table 1D and are sampled at the markets, then fish=Y
A108: DNK | B108: 2017 | C108: North Sea and Eastern Arctic & Baltic Sea | D108: ICES | E108: IV,III | F108: at market - Skagen | G108: M DKSKA | H108: Cartilagenous fish | I108: NA | J108: The scheme samples sorted fish at the market, so no occurrence of by-catch is expected | K108: 355 | L108: 0 | M108: 0 | N108: N | O108: N. (The question more relates to specific observations of trips/ hauls and not overall sampling protocol) | P108: Y | Q108: N | R108: N | S108: N | T108: N | U108: Y | V108: Y | W108: This scheme samples sorted fish at the market, but since all the cod stocks caught by Dennmark are in table 1D and are sampled at the markets, then fish=Y
A109: DNK | B109: 2017 | C109: North Sea and Eastern Arctic & Baltic Sea | D109: ICES | E109: IV,III | F109: at market - Skagen | G109: M DKSKA | H109: Bony fish | I109: NA | J109: The scheme samples sorted fish at the market, so no occurrence of by-catch is expected | K109: 355 | L109: 0 | M109: 0 | N109: N | O109: N. (The question more relates to specific observations of trips/ hauls and not overall sampling protocol) | P109: Y | Q109: N | R109: N | S109: N | T109: N | U109: Y | V109: Y | W109: This scheme samples sorted fish at the market, but since all the cod stocks caught by Dennmark are in table 1D and are sampled at the markets, then fish=Y
A110: DNK | B110: 2017 | C110: North Sea and Eastern Arctic & Baltic Sea | D110: ICES | E110: IV,III | F110: at market - Skagen | G110: M DKSKA | H110: Reptiles | I110: NA | J110: The scheme samples sorted fish at the market, so no occurrence of by-catch is expected | K110: 355 | L110: 0 | M110: 0 | N110: N | O110: N. (The question more relates to specific observations of trips/ hauls and not overall sampling protocol) | P110: Y | Q110: N | R110: N | S110: N | T110: N | U110: Y | V110: Y | W110: This scheme samples sorted fish at the market, but since all the cod stocks caught by Dennmark are in table 1D and are sampled at the markets, then fish=Y
A111: DNK | B111: 2017 | C111: North Sea and Eastern Arctic & Baltic Sea | D111: ICES | E111: IV,III | F111: at market - Skagen | G111: M DKSKA | H111: Mammals | I111: NA | J111: The scheme samples sorted fish at the market, so no occurrence of by-catch is expected | K111: 355 | L111: 0 | M111: 0 | N111: N | O111: N. (The question more relates to specific observations of trips/ hauls and not overall sampling protocol) | P111: Y | Q111: N | R111: N | S111: N | T111: N | U111: Y | V111: Y | W111: This scheme samples sorted fish at the market, but since all the cod stocks caught by Dennmark are in table 1D and are sampled at the markets, then fish=Y
A112: DNK | B112: 2017 | C112: North sea and Eastern Arctic & Baltic Sea | D112: ICES | E112: IV,III | F112: At market - small pelagic | G112: Sprattus sprattus | H112: birds | I112: NA | J112: The scheme samples a subsample of the catch at the market. The subsamles are small and will in general only contain fish. The scheme is not designed to measure rare by-catch events. | K112: 648 | L112: 24 | M112: 24 | N112: N | O112: N. (The question more relates to specific observations of trips/ hauls and not overall sampling protocol) | P112: Y | Q112: N | R112: N | S112: N | T112: N | U112: Y | V112: Y | W112: The samples are unsorted, but small, so it is only likely so see endangered fish on the same size as the target species
A113: DNK | B113: 2017 | C113: North sea and Eastern Arctic & Baltic Sea | D113: ICES | E113: IV,III | F113: At market - small pelagic | G113: Sprattus sprattus | H113: Cartilagenous fish | I113: NA | J113: The scheme samples a subsample of the catch at the market. The subsamles are small and will in general only contain fish. The scheme is not designed to measure rare by-catch events. | K113: 648 | L113: 24 | M113: 24 | N113: N | O113: N. (The question more relates to specific observations of trips/ hauls and not overall sampling protocol) | P113: Y | Q113: N | R113: N | S113: N | T113: N | U113: Y | V113: Y | W113: The samples are unsorted, but small, so it is only likely so see endangered fish on the same size as the target species
A114: DNK | B114: 2017 | C114: North sea and Eastern Arctic & Baltic Sea | D114: ICES | E114: IV,III | F114: At market - small pelagic | G114: Sprattus sprattus | H114: Bony fish | I114: NA | J114: The scheme samples a subsample of the catch at the market. The subsamles are small and will in general only contain fish. The scheme is not designed to measure rare by-catch events. | K114: 648 | L114: 24 | M114: 24 | N114: N | O114: N. (The question more relates to specific observations of trips/ hauls and not overall sampling protocol) | P114: Y | Q114: N | R114: N | S114: N | T114: N | U114: Y | V114: Y | W114: The samples are unsorted, but small, so it is only likely so see endangered fish on the same size as the target species
A115: DNK | B115: 2017 | C115: North sea and Eastern Arctic & Baltic Sea | D115: ICES | E115: IV,III | F115: At market - small pelagic | G115: Sprattus sprattus | H115: Reptiles | I115: NA | J115: The scheme samples a subsample of the catch at the market. The subsamles are small and will in general only contain fish. The scheme is not designed to measure rare by-catch events. | K115: 648 | L115: 24 | M115: 24 | N115: N | O115: N. (The question more relates to specific observations of trips/ hauls and not overall sampling protocol) | P115: Y | Q115: N | R115: N | S115: N | T115: N | U115: Y | V115: Y | W115: The samples are unsorted, but small, so it is only likely so see endangered fish on the same size as the target species
A116: DNK | B116: 2017 | C116: North sea and Eastern Arctic & Baltic Sea | D116: ICES | E116: IV,III | F116: At market - small pelagic | G116: Sprattus sprattus | H116: Mammals | I116: NA | J116: The scheme samples a subsample of the catch at the market. The subsamles are small and will in general only contain fish. The scheme is not designed to measure rare by-catch events. | K116: 648 | L116: 24 | M116: 24 | N116: N | O116: N. (The question more relates to specific observations of trips/ hauls and not overall sampling protocol) | P116: Y | Q116: N | R116: N | S116: N | T116: N | U116: Y | V116: Y | W116: The samples are unsorted, but small, so it is only likely so see endangered fish on the same size as the target species
A117: DNK | B117: 2017 | C117: North Sea and Eastern Arctic & Baltic Sea | D117: ICES | E117: IV,III | F117: at market - Strandby | G117: M DKSTD | H117: birds | I117: NA | J117: The scheme samples sorted fish at the market, so no occurrence of by-catch is expected | K117: 351 | L117: 19 | M117: 19 | N117: N | O117: N. (The question more relates to specific observations of trips/ hauls and not overall sampling protocol) | P117: Y | Q117: N | R117: N | S117: N | T117: N | U117: Y | V117: Y | W117: This scheme samples sorted fish at the market, but since all the cod stocks caught by Dennmark are in table 1D and are sampled at the markets, then fish=Y
A118: DNK | B118: 2017 | C118: North Sea and Eastern Arctic & Baltic Sea | D118: ICES | E118: IV,III | F118: at market - Strandby | G118: M DKSTD | H118: Cartilagenous fish | I118: NA | J118: The scheme samples sorted fish at the market, so no occurrence of by-catch is expected | K118: 351 | L118: 19 | M118: 19 | N118: N | O118: N. (The question more relates to specific observations of trips/ hauls and not overall sampling protocol) | P118: Y | Q118: N | R118: N | S118: N | T118: N | U118: Y | V118: Y | W118: This scheme samples sorted fish at the market, but since all the cod stocks caught by Dennmark are in table 1D and are sampled at the markets, then fish=Y
A119: DNK | B119: 2017 | C119: North Sea and Eastern Arctic & Baltic Sea | D119: ICES | E119: IV,III | F119: at market - Strandby | G119: M DKSTD | H119: Bony fish | I119: NA | J119: The scheme samples sorted fish at the market, so no occurrence of by-catch is expected | K119: 351 | L119: 19 | M119: 19 | N119: N | O119: N. (The question more relates to specific observations of trips/ hauls and not overall sampling protocol) | P119: Y | Q119: N | R119: N | S119: N | T119: N | U119: Y | V119: Y | W119: This scheme samples sorted fish at the market, but since all the cod stocks caught by Dennmark are in table 1D and are sampled at the markets, then fish=Y
A120: DNK | B120: 2017 | C120: North Sea and Eastern Arctic & Baltic Sea | D120: ICES | E120: IV,III | F120: at market - Strandby | G120: M DKSTD | H120: Reptiles | I120: NA | J120: The scheme samples sorted fish at the market, so no occurrence of by-catch is expected | K120: 351 | L120: 19 | M120: 19 | N120: N | O120: N. (The question more relates to specific observations of trips/ hauls and not overall sampling protocol) | P120: Y | Q120: N | R120: N | S120: N | T120: N | U120: Y | V120: Y | W120: This scheme samples sorted fish at the market, but since all the cod stocks caught by Dennmark are in table 1D and are sampled at the markets, then fish=Y
A121: DNK | B121: 2017 | C121: North Sea and Eastern Arctic & Baltic Sea | D121: ICES | E121: IV,III | F121: at market - Strandby | G121: M DKSTD | H121: Mammals | I121: NA | J121: The scheme samples sorted fish at the market, so no occurrence of by-catch is expected | K121: 351 | L121: 19 | M121: 19 | N121: N | O121: N. (The question more relates to specific observations of trips/ hauls and not overall sampling protocol) | P121: Y | Q121: N | R121: N | S121: N | T121: N | U121: Y | V121: Y | W121: This scheme samples sorted fish at the market, but since all the cod stocks caught by Dennmark are in table 1D and are sampled at the markets, then fish=Y
A122: DNK | B122: 2017 | C122: North Sea and Eastern Arctic & Baltic Sea | D122: ICES | E122: IV,III | F122: at market - Thyborøn | G122: M DKTHN | H122: birds | I122: NA | J122: The scheme samples sorted fish at the market, so no occurrence of by-catch is expected | K122: 339 | L122: 23 | M122: 23 | N122: N | O122: N. (The question more relates to specific observations of trips/ hauls and not overall sampling protocol) | P122: Y | Q122: N | R122: N | S122: N | T122: N | U122: Y | V122: Y | W122: This scheme samples sorted fish at the market, but since all the cod stocks caught by Dennmark are in table 1D and are sampled at the markets, then fish=Y
A123: DNK | B123: 2017 | C123: North Sea and Eastern Arctic & Baltic Sea | D123: ICES | E123: IV,III | F123: at market - Thyborøn | G123: M DKTHN | H123: Cartilagenous fish | I123: NA | J123: The scheme samples sorted fish at the market, so no occurrence of by-catch is expected | K123: 339 | L123: 23 | M123: 23 | N123: N | O123: N. (The question more relates to specific observations of trips/ hauls and not overall sampling protocol) | P123: Y | Q123: N | R123: N | S123: N | T123: N | U123: Y | V123: Y | W123: This scheme samples sorted fish at the market, but since all the cod stocks caught by Dennmark are in table 1D and are sampled at the markets, then fish=Y
A124: DNK | B124: 2017 | C124: North Sea and Eastern Arctic & Baltic Sea | D124: ICES | E124: IV,III | F124: at market - Thyborøn | G124: M DKTHN | H124: Bony fish | I124: NA | J124: The scheme samples sorted fish at the market, so no occurrence of by-catch is expected | K124: 339 | L124: 23 | M124: 23 | N124: N | O124: N. (The question more relates to specific observations of trips/ hauls and not overall sampling protocol) | P124: Y | Q124: N | R124: N | S124: N | T124: N | U124: Y | V124: Y | W124: This scheme samples sorted fish at the market, but since all the cod stocks caught by Dennmark are in table 1D and are sampled at the markets, then fish=Y
A125: DNK | B125: 2017 | C125: North Sea and Eastern Arctic & Baltic Sea | D125: ICES | E125: IV,III | F125: at market - Thyborøn | G125: M DKTHN | H125: Reptiles | I125: NA | J125: The scheme samples sorted fish at the market, so no occurrence of by-catch is expected | K125: 339 | L125: 23 | M125: 23 | N125: N | O125: N. (The question more relates to specific observations of trips/ hauls and not overall sampling protocol) | P125: Y | Q125: N | R125: N | S125: N | T125: N | U125: Y | V125: Y | W125: This scheme samples sorted fish at the market, but since all the cod stocks caught by Dennmark are in table 1D and are sampled at the markets, then fish=Y
A126: DNK | B126: 2017 | C126: North Sea and Eastern Arctic & Baltic Sea | D126: ICES | E126: IV,III | F126: at market - Thyborøn | G126: M DKTHN | H126: Mammals | I126: NA | J126: The scheme samples sorted fish at the market, so no occurrence of by-catch is expected | K126: 339 | L126: 23 | M126: 23 | N126: N | O126: N. (The question more relates to specific observations of trips/ hauls and not overall sampling protocol) | P126: Y | Q126: N | R126: N | S126: N | T126: N | U126: Y | V126: Y | W126: This scheme samples sorted fish at the market, but since all the cod stocks caught by Dennmark are in table 1D and are sampled at the markets, then fish=Y
A127: DNK | B127: 2017 | C127: North sea and Eastern Arctic & Baltic Sea | D127: ICES | E127: IV,III | F127: At sea - Observer | G127: Bornholm, Trawler/Seiner | H127: birds | I127: + | J127: The scheme samples all species caught, but the program is not designed to give good estimates of rare by-catch events - it is desinged to give a good estimate of commercial species | K127: 2124 | L127: 28 | M127: 28 | N127: N | O127: Y. (The observers recorde selection devices mounted on towed gear, but it is presently not possible to recorde the present of other mitigation devices). (The question more relates to specific observations of trips/ hauls and not overall sampling protocol) | P127: Y | Q127: Y | R127: Y | S127: Y | T127: Y | U127: Y | V127: Y
A128: DNK | B128: 2017 | C128: North sea and Eastern Arctic & Baltic Sea | D128: ICES | E128: IV,III | F128: At sea - Observer | G128: Bornholm, Trawler/Seiner | H128: Cartilagenous fish | I128: + | J128: The scheme samples all species caught, but the program is not designed to give good estimates of rare by-catch events - it is desinged to give a good estimate of commercial species | K128: 2124 | L128: 28 | M128: 28 | N128: N | O128: Y. (The observers recorde selection devices mounted on towed gear, but it is presently not possible to recorde the present of other mitigation devices). (The question more relates to specific observations of trips/ hauls and not overall sampling protocol) | P128: Y | Q128: Y | R128: Y | S128: Y | T128: Y | U128: Y | V128: Y
A129: DNK | B129: 2017 | C129: North sea and Eastern Arctic & Baltic Sea | D129: ICES | E129: IV,III | F129: At sea - Observer | G129: Bornholm, Trawler/Seiner | H129: Bony fish | I129: + | J129: The scheme samples all species caught, but the program is not designed to give good estimates of rare by-catch events - it is desinged to give a good estimate of commercial species | K129: 2124 | L129: 28 | M129: 28 | N129: N | O129: Y. (The observers recorde selection devices mounted on towed gear, but it is presently not possible to recorde the present of other mitigation devices). (The question more relates to specific observations of trips/ hauls and not overall sampling protocol) | P129: Y | Q129: Y | R129: Y | S129: Y | T129: Y | U129: Y | V129: Y
A130: DNK | B130: 2017 | C130: North sea and Eastern Arctic & Baltic Sea | D130: ICES | E130: IV,III | F130: At sea - Observer | G130: Bornholm, Trawler/Seiner | H130: Reptiles | I130: - | J130: The scheme samples all species caught, but the program is not designed to give good estimates of rare by-catch events - it is desinged to give a good estimate of commercial species. Denmark have never seen any reptiles in catch | K130: 2124 | L130: 28 | M130: 28 | N130: N | O130: Y. (The observers recorde selection devices mounted on towed gear, but it is presently not possible to recorde the present of other mitigation devices). (The question more relates to specific observations of trips/ hauls and not overall sampling protocol) | P130: Y | Q130: Y | R130: Y | S130: Y | T130: Y | U130: Y | V130: Y
A131: DNK | B131: 2017 | C131: North sea and Eastern Arctic & Baltic Sea | D131: ICES | E131: IV,III | F131: At sea - Observer | G131: Bornholm, Trawler/Seiner | H131: Mammals | I131: + | J131: The scheme samples all species caught, but the program is not designed to give good estimates of rare by-catch events - it is desinged to give a good estimate of commercial species | K131: 2124 | L131: 28 | M131: 28 | N131: N | O131: Y. (The observers recorde selection devices mounted on towed gear, but it is presently not possible to recorde the present of other mitigation devices). (The question more relates to specific observations of trips/ hauls and not overall sampling protocol) | P131: Y | Q131: Y | R131: Y | S131: Y | T131: Y | U131: Y | V131: Y
A132: DNK | B132: 2017 | C132: North sea and Eastern Arctic & Baltic Sea | D132: ICES | E132: IV,III | F132: At sea - Observer | G132: Charlottenlund, Trawler/Seiner | H132: birds | I132: + | J132: The scheme samples all species caught, but the program is not designed to give good estimates of rare by-catch events - it is desinged to give a good estimate of commercial species | K132: 6549 | L132: 63 | M132: 63 | N132: N | O132: Y. (The observers recorde selection devices mounted on towed gear, but it is presently not possible to recorde the present of other mitigation devices). (The question more relates to specific observations of trips/ hauls and not overall sampling protocol) | P132: Y | Q132: Y | R132: Y | S132: Y | T132: Y | U132: Y | V132: Y
A133: DNK | B133: 2017 | C133: North sea and Eastern Arctic & Baltic Sea | D133: ICES | E133: IV,III | F133: At sea - Observer | G133: Charlottenlund, Trawler/Seiner | H133: Cartilagenous fish | I133: + | J133: The scheme samples all species caught, but the program is not designed to give good estimates of rare by-catch events - it is desinged to give a good estimate of commercial species | K133: 6549 | L133: 63 | M133: 63 | N133: N | O133: Y. (The observers recorde selection devices mounted on towed gear, but it is presently not possible to recorde the present of other mitigation devices). (The question more relates to specific observations of trips/ hauls and not overall sampling protocol) | P133: Y | Q133: Y | R133: Y | S133: Y | T133: Y | U133: Y | V133: Y
A134: DNK | B134: 2017 | C134: North sea and Eastern Arctic & Baltic Sea | D134: ICES | E134: IV,III | F134: At sea - Observer | G134: Charlottenlund, Trawler/Seiner | H134: Bony fish | I134: + | J134: The scheme samples all species caught, but the program is not designed to give good estimates of rare by-catch events - it is desinged to give a good estimate of commercial species | K134: 6549 | L134: 63 | M134: 63 | N134: N | O134: Y. (The observers recorde selection devices mounted on towed gear, but it is presently not possible to recorde the present of other mitigation devices). (The question more relates to specific observations of trips/ hauls and not overall sampling protocol) | P134: Y | Q134: Y | R134: Y | S134: Y | T134: Y | U134: Y | V134: Y
A135: DNK | B135: 2017 | C135: North sea and Eastern Arctic & Baltic Sea | D135: ICES | E135: IV,III | F135: At sea - Observer | G135: Charlottenlund, Trawler/Seiner | H135: Reptiles | I135: - | J135: The scheme samples all species caught, but the program is not designed to give good estimates of rare by-catch events - it is desinged to give a good estimate of commercial species. Denmark have never seen any reptiles in catch | K135: 6549 | L135: 63 | M135: 63 | N135: N | O135: Y. (The observers recorde selection devices mounted on towed gear, but it is presently not possible to recorde the present of other mitigation devices). (The question more relates to specific observations of trips/ hauls and not overall sampling protocol) | P135: Y | Q135: Y | R135: Y | S135: Y | T135: Y | U135: Y | V135: Y
A136: DNK | B136: 2017 | C136: North sea and Eastern Arctic & Baltic Sea | D136: ICES | E136: IV,III | F136: At sea - Observer | G136: Charlottenlund, Trawler/Seiner | H136: Mammals | I136: + | J136: The scheme samples all species caught, but the program is not designed to give good estimates of rare by-catch events - it is desinged to give a good estimate of commercial species | K136: 6549 | L136: 63 | M136: 63 | N136: N | O136: Y. (The observers recorde selection devices mounted on towed gear, but it is presently not possible to recorde the present of other mitigation devices). (The question more relates to specific observations of trips/ hauls and not overall sampling protocol) | P136: Y | Q136: Y | R136: Y | S136: Y | T136: Y | U136: Y | V136: Y
A137: DNK | B137: 2017 | C137: North sea and Eastern Arctic & Baltic Sea | D137: ICES | E137: IV,III | F137: At sea - Observer | G137: Hirtshals, CCTV | H137: birds | I137: + | J137: The scheme samples all species caught, but the program is not designed to give good estimates of rare by-catch events - it is desinged to give a good estimate of commercial species | K137: 0 | L137: 0 | M137: 0 | N137: N | O137: Y. (The observers recorde selection devices mounted on towed gear, but it is presently not possible to recorde the present of other mitigation devices). (The question more relates to specific observations of trips/ hauls and not overall sampling protocol) | P137: Y | Q137: Y | R137: Y | S137: Y | T137: Y | U137: Y | V137: Y
A138: DNK | B138: 2017 | C138: North sea and Eastern Arctic & Baltic Sea | D138: ICES | E138: IV,III | F138: At sea - Observer | G138: Hirtshals, CCTV | H138: Cartilagenous fish | I138: + | J138: The scheme samples all species caught, but the program is not designed to give good estimates of rare by-catch events - it is desinged to give a good estimate of commercial species | K138: 0 | L138: 0 | M138: 0 | N138: N | O138: Y. (The observers recorde selection devices mounted on towed gear, but it is presently not possible to recorde the present of other mitigation devices). (The question more relates to specific observations of trips/ hauls and not overall sampling protocol) | P138: Y | Q138: Y | R138: Y | S138: Y | T138: Y | U138: Y | V138: Y
A139: DNK | B139: 2017 | C139: North sea and Eastern Arctic & Baltic Sea | D139: ICES | E139: IV,III | F139: At sea - Observer | G139: Hirtshals, CCTV | H139: Bony fish | I139: + | J139: The scheme samples all species caught, but the program is not designed to give good estimates of rare by-catch events - it is desinged to give a good estimate of commercial species | K139: 0 | L139: 0 | M139: 0 | N139: N | O139: Y. (The observers recorde selection devices mounted on towed gear, but it is presently not possible to recorde the present of other mitigation devices). (The question more relates to specific observations of trips/ hauls and not overall sampling protocol) | P139: Y | Q139: Y | R139: Y | S139: Y | T139: Y | U139: Y | V139: Y
A140: DNK | B140: 2017 | C140: North sea and Eastern Arctic & Baltic Sea | D140: ICES | E140: IV,III | F140: At sea - Observer | G140: Hirtshals, CCTV | H140: Reptiles | I140: - | J140: The scheme samples all species caught, but the program is not designed to give good estimates of rare by-catch events - it is desinged to give a good estimate of commercial species. Denmark have never seen any reptiles in catch | K140: 0 | L140: 0 | M140: 0 | N140: N | O140: Y. (The observers recorde selection devices mounted on towed gear, but it is presently not possible to recorde the present of other mitigation devices). (The question more relates to specific observations of trips/ hauls and not overall sampling protocol) | P140: Y | Q140: Y | R140: Y | S140: Y | T140: Y | U140: Y | V140: Y
A141: DNK | B141: 2017 | C141: North sea and Eastern Arctic & Baltic Sea | D141: ICES | E141: IV,III | F141: At sea - Observer | G141: Hirtshals, CCTV | H141: Mammals | I141: + | J141: The scheme samples all species caught, but the program is not designed to give good estimates of rare by-catch events - it is desinged to give a good estimate of commercial species | K141: 0 | L141: 0 | M141: 0 | N141: N | O141: Y. (The observers recorde selection devices mounted on towed gear, but it is presently not possible to recorde the present of other mitigation devices). (The question more relates to specific observations of trips/ hauls and not overall sampling protocol) | P141: Y | Q141: Y | R141: Y | S141: Y | T141: Y | U141: Y | V141: Y
A142: DNK | B142: 2017 | C142: North sea and Eastern Arctic & Baltic Sea | D142: ICES | E142: IV,III | F142: At sea - Observer | G142: Hirtshals, OTB_CRU_32-69_0_0 | H142: birds | I142: + | J142: The scheme samples all species caught, but the program is not designed to give good estimates of rare by-catch events - it is desinged to give a good estimate of commercial species | K142: 735 | L142: 7 | M142: 7 | N142: N | O142: Y. (The observers recorde selection devices mounted on towed gear, but it is presently not possible to recorde the present of other mitigation devices). (The question more relates to specific observations of trips/ hauls and not overall sampling protocol) | P142: Y | Q142: Y | R142: Y | S142: Y | T142: Y | U142: Y | V142: Y
A143: DNK | B143: 2017 | C143: North sea and Eastern Arctic & Baltic Sea | D143: ICES | E143: IV,III | F143: At sea - Observer | G143: Hirtshals, OTB_CRU_32-69_0_0 | H143: Cartilagenous fish | I143: + | J143: The scheme samples all species caught, but the program is not designed to give good estimates of rare by-catch events - it is desinged to give a good estimate of commercial species | K143: 735 | L143: 7 | M143: 7 | N143: N | O143: Y. (The observers recorde selection devices mounted on towed gear, but it is presently not possible to recorde the present of other mitigation devices). (The question more relates to specific observations of trips/ hauls and not overall sampling protocol) | P143: Y | Q143: Y | R143: Y | S143: Y | T143: Y | U143: Y | V143: Y
A144: DNK | B144: 2017 | C144: North sea and Eastern Arctic & Baltic Sea | D144: ICES | E144: IV,III | F144: At sea - Observer | G144: Hirtshals, OTB_CRU_32-69_0_0 | H144: Bony fish | I144: + | J144: The scheme samples all species caught, but the program is not designed to give good estimates of rare by-catch events - it is desinged to give a good estimate of commercial species | K144: 735 | L144: 7 | M144: 7 | N144: N | O144: Y. (The observers recorde selection devices mounted on towed gear, but it is presently not possible to recorde the present of other mitigation devices). (The question more relates to specific observations of trips/ hauls and not overall sampling protocol) | P144: Y | Q144: Y | R144: Y | S144: Y | T144: Y | U144: Y | V144: Y
A145: DNK | B145: 2017 | C145: North sea and Eastern Arctic & Baltic Sea | D145: ICES | E145: IV,III | F145: At sea - Observer | G145: Hirtshals, OTB_CRU_32-69_0_0 | H145: Reptiles | I145: - | J145: The scheme samples all species caught, but the program is not designed to give good estimates of rare by-catch events - it is desinged to give a good estimate of commercial species. Denmark have never seen any reptiles in catch | K145: 735 | L145: 7 | M145: 7 | N145: N | O145: Y. (The observers recorde selection devices mounted on towed gear, but it is presently not possible to recorde the present of other mitigation devices). (The question more relates to specific observations of trips/ hauls and not overall sampling protocol) | P145: Y | Q145: Y | R145: Y | S145: Y | T145: Y | U145: Y | V145: Y
A146: DNK | B146: 2017 | C146: North sea and Eastern Arctic & Baltic Sea | D146: ICES | E146: IV,III | F146: At sea - Observer | G146: Hirtshals, OTB_CRU_32-69_0_0 | H146: Mammals | I146: + | J146: The scheme samples all species caught, but the program is not designed to give good estimates of rare by-catch events - it is desinged to give a good estimate of commercial species | K146: 735 | L146: 7 | M146: 7 | N146: N | O146: Y. (The observers recorde selection devices mounted on towed gear, but it is presently not possible to recorde the present of other mitigation devices). (The question more relates to specific observations of trips/ hauls and not overall sampling protocol) | P146: Y | Q146: Y | R146: Y | S146: Y | T146: Y | U146: Y | V146: Y
A147: DNK | B147: 2017 | C147: North sea and Eastern Arctic & Baltic Sea | D147: ICES | E147: IV,III | F147: At sea - Observer | G147: Hirtshals, TBB | H147: birds | I147: + | J147: The scheme samples all species caught, but the program is not designed to give good estimates of rare by-catch events - it is desinged to give a good estimate of commercial species | K147: 1909 | L147: 18 | M147: 18 | N147: N | O147: Y. (The observers recorde selection devices mounted on towed gear, but it is presently not possible to recorde the present of other mitigation devices). (The question more relates to specific observations of trips/ hauls and not overall sampling protocol) | P147: Y | Q147: Y | R147: Y | S147: Y | T147: Y | U147: Y | V147: Y
A148: DNK | B148: 2017 | C148: North sea and Eastern Arctic & Baltic Sea | D148: ICES | E148: IV,III | F148: At sea - Observer | G148: Hirtshals, TBB | H148: Cartilagenous fish | I148: + | J148: The scheme samples all species caught, but the program is not designed to give good estimates of rare by-catch events - it is desinged to give a good estimate of commercial species | K148: 1909 | L148: 18 | M148: 18 | N148: N | O148: Y. (The observers recorde selection devices mounted on towed gear, but it is presently not possible to recorde the present of other mitigation devices). (The question more relates to specific observations of trips/ hauls and not overall sampling protocol) | P148: Y | Q148: Y | R148: Y | S148: Y | T148: Y | U148: Y | V148: Y
A149: DNK | B149: 2017 | C149: North sea and Eastern Arctic & Baltic Sea | D149: ICES | E149: IV,III | F149: At sea - Observer | G149: Hirtshals, TBB | H149: Bony fish | I149: + | J149: The scheme samples all species caught, but the program is not designed to give good estimates of rare by-catch events - it is desinged to give a good estimate of commercial species | K149: 1909 | L149: 18 | M149: 18 | N149: N | O149: Y. (The observers recorde selection devices mounted on towed gear, but it is presently not possible to recorde the present of other mitigation devices). (The question more relates to specific observations of trips/ hauls and not overall sampling protocol) | P149: Y | Q149: Y | R149: Y | S149: Y | T149: Y | U149: Y | V149: Y
A150: DNK | B150: 2017 | C150: North sea and Eastern Arctic & Baltic Sea | D150: ICES | E150: IV,III | F150: At sea - Observer | G150: Hirtshals, TBB | H150: Reptiles | I150: - | J150: The scheme samples all species caught, but the program is not designed to give good estimates of rare by-catch events - it is desinged to give a good estimate of commercial species. Denmark have never seen any reptiles in catch | K150: 1909 | L150: 18 | M150: 18 | N150: N | O150: Y. (The observers recorde selection devices mounted on towed gear, but it is presently not possible to recorde the present of other mitigation devices). (The question more relates to specific observations of trips/ hauls and not overall sampling protocol) | P150: Y | Q150: Y | R150: Y | S150: Y | T150: Y | U150: Y | V150: Y
A151: DNK | B151: 2017 | C151: North sea and Eastern Arctic & Baltic Sea | D151: ICES | E151: IV,III | F151: At sea - Observer | G151: Hirtshals, TBB | H151: Mammals | I151: + | J151: The scheme samples all species caught, but the program is not designed to give good estimates of rare by-catch events - it is desinged to give a good estimate of commercial species | K151: 1909 | L151: 18 | M151: 18 | N151: N | O151: Y. (The observers recorde selection devices mounted on towed gear, but it is presently not possible to recorde the present of other mitigation devices). (The question more relates to specific observations of trips/ hauls and not overall sampling protocol) | P151: Y | Q151: Y | R151: Y | S151: Y | T151: Y | U151: Y | V151: Y
A152: DNK | B152: 2017 | C152: North sea and Eastern Arctic & Baltic Sea | D152: ICES | E152: IV,III | F152: At sea - Observer | G152: Hirtshals, Trawler/Seiner, North Sea | H152: birds | I152: + | J152: The scheme samples all species caught, but the program is not designed to give good estimates of rare by-catch events - it is desinged to give a good estimate of commercial species | K152: 2116 | L152: 25 | M152: 25 | N152: N | O152: Y. (The observers recorde selection devices mounted on towed gear, but it is presently not possible to recorde the present of other mitigation devices). (The question more relates to specific observations of trips/ hauls and not overall sampling protocol) | P152: Y | Q152: Y | R152: Y | S152: Y | T152: Y | U152: Y | V152: Y
A153: DNK | B153: 2017 | C153: North sea and Eastern Arctic & Baltic Sea | D153: ICES | E153: IV,III | F153: At sea - Observer | G153: Hirtshals, Trawler/Seiner, North Sea | H153: Cartilagenous fish | I153: + | J153: The scheme samples all species caught, but the program is not designed to give good estimates of rare by-catch events - it is desinged to give a good estimate of commercial species | K153: 2116 | L153: 25 | M153: 25 | N153: N | O153: Y. (The observers recorde selection devices mounted on towed gear, but it is presently not possible to recorde the present of other mitigation devices). (The question more relates to specific observations of trips/ hauls and not overall sampling protocol) | P153: Y | Q153: Y | R153: Y | S153: Y | T153: Y | U153: Y | V153: Y
A154: DNK | B154: 2017 | C154: North sea and Eastern Arctic & Baltic Sea | D154: ICES | E154: IV,III | F154: At sea - Observer | G154: Hirtshals, Trawler/Seiner, North Sea | H154: Bony fish | I154: + | J154: The scheme samples all species caught, but the program is not designed to give good estimates of rare by-catch events - it is desinged to give a good estimate of commercial species | K154: 2116 | L154: 25 | M154: 25 | N154: N | O154: Y. (The observers recorde selection devices mounted on towed gear, but it is presently not possible to recorde the present of other mitigation devices). (The question more relates to specific observations of trips/ hauls and not overall sampling protocol) | P154: Y | Q154: Y | R154: Y | S154: Y | T154: Y | U154: Y | V154: Y
A155: DNK | B155: 2017 | C155: North sea and Eastern Arctic & Baltic Sea | D155: ICES | E155: IV,III | F155: At sea - Observer | G155: Hirtshals, Trawler/Seiner, North Sea | H155: Reptiles | I155: - | J155: The scheme samples all species caught, but the program is not designed to give good estimates of rare by-catch events - it is desinged to give a good estimate of commercial species. Denmark have never seen any reptiles in catch | K155: 2116 | L155: 25 | M155: 25 | N155: N | O155: Y. (The observers recorde selection devices mounted on towed gear, but it is presently not possible to recorde the present of other mitigation devices). (The question more relates to specific observations of trips/ hauls and not overall sampling protocol) | P155: Y | Q155: Y | R155: Y | S155: Y | T155: Y | U155: Y | V155: Y
A156: DNK | B156: 2017 | C156: North sea and Eastern Arctic & Baltic Sea | D156: ICES | E156: IV,III | F156: At sea - Observer | G156: Hirtshals, Trawler/Seiner, North Sea | H156: Mammals | I156: + | J156: The scheme samples all species caught, but the program is not designed to give good estimates of rare by-catch events - it is desinged to give a good estimate of commercial species | K156: 2116 | L156: 25 | M156: 25 | N156: N | O156: Y. (The observers recorde selection devices mounted on towed gear, but it is presently not possible to recorde the present of other mitigation devices). (The question more relates to specific observations of trips/ hauls and not overall sampling protocol) | P156: Y | Q156: Y | R156: Y | S156: Y | T156: Y | U156: Y | V156: Y
A157: DNK | B157: 2017 | C157: North sea and Eastern Arctic & Baltic Sea | D157: ICES | E157: IV,III | F157: At sea - Observer | G157: Hirtshals, Trawler/Seiner, Skagerrak | H157: birds | I157: + | J157: The scheme samples all species caught, but the program is not designed to give good estimates of rare by-catch events - it is desinged to give a good estimate of commercial species | K157: 9080 | L157: 75 | M157: 75 | N157: N | O157: Y. (The observers recorde selection devices mounted on towed gear, but it is presently not possible to recorde the present of other mitigation devices). (The question more relates to specific observations of trips/ hauls and not overall sampling protocol) | P157: Y | Q157: Y | R157: Y | S157: Y | T157: Y | U157: Y | V157: Y
A158: DNK | B158: 2017 | C158: North sea and Eastern Arctic & Baltic Sea | D158: ICES | E158: IV,III | F158: At sea - Observer | G158: Hirtshals, Trawler/Seiner, Skagerrak | H158: Cartilagenous fish | I158: + | J158: The scheme samples all species caught, but the program is not designed to give good estimates of rare by-catch events - it is desinged to give a good estimate of commercial species | K158: 9080 | L158: 75 | M158: 75 | N158: N | O158: Y. (The observers recorde selection devices mounted on towed gear, but it is presently not possible to recorde the present of other mitigation devices). (The question more relates to specific observations of trips/ hauls and not overall sampling protocol) | P158: Y | Q158: Y | R158: Y | S158: Y | T158: Y | U158: Y | V158: Y
A159: DNK | B159: 2017 | C159: North sea and Eastern Arctic & Baltic Sea | D159: ICES | E159: IV,III | F159: At sea - Observer | G159: Hirtshals, Trawler/Seiner, Skagerrak | H159: Bony fish | I159: + | J159: The scheme samples all species caught, but the program is not designed to give good estimates of rare by-catch events - it is desinged to give a good estimate of commercial species | K159: 9080 | L159: 75 | M159: 75 | N159: N | O159: Y. (The observers recorde selection devices mounted on towed gear, but it is presently not possible to recorde the present of other mitigation devices). (The question more relates to specific observations of trips/ hauls and not overall sampling protocol) | P159: Y | Q159: Y | R159: Y | S159: Y | T159: Y | U159: Y | V159: Y
A160: DNK | B160: 2017 | C160: North sea and Eastern Arctic & Baltic Sea | D160: ICES | E160: IV,III | F160: At sea - Observer | G160: Hirtshals, Trawler/Seiner, Skagerrak | H160: Reptiles | I160: - | J160: The scheme samples all species caught, but the program is not designed to give good estimates of rare by-catch events - it is desinged to give a good estimate of commercial species. Denmark have never seen any reptiles in catch | K160: 9080 | L160: 75 | M160: 75 | N160: N | O160: Y. (The observers recorde selection devices mounted on towed gear, but it is presently not possible to recorde the present of other mitigation devices). (The question more relates to specific observations of trips/ hauls and not overall sampling protocol) | P160: Y | Q160: Y | R160: Y | S160: Y | T160: Y | U160: Y | V160: Y
A161: DNK | B161: 2017 | C161: North sea and Eastern Arctic & Baltic Sea | D161: ICES | E161: IV,III | F161: At sea - Observer | G161: Hirtshals, Trawler/Seiner, Skagerrak | H161: Mammals | I161: + | J161: The scheme samples all species caught, but the program is not designed to give good estimates of rare by-catch events - it is desinged to give a good estimate of commercial species | K161: 9080 | L161: 75 | M161: 75 | N161: N | O161: Y. (The observers recorde selection devices mounted on towed gear, but it is presently not possible to recorde the present of other mitigation devices). (The question more relates to specific observations of trips/ hauls and not overall sampling protocol) | P161: Y | Q161: Y | R161: Y | S161: Y | T161: Y | U161: Y | V161: Y
A162: DNK | B162: 2017 | C162: North sea and Eastern Arctic & Baltic Sea | D162: ICES | E162: IIIac | F162: At sea - Self-sampling, sole | G162: Sole | H162: birds | I162: NA | J162: The scheme focus on Solea solea and is not expected to give any information on other speices | K162: 570 | L162: 2 | M162: 2 | N162: N | O162: N. (The question more relates to specific observations of trips/ hauls and not overall sampling protocol) | P162: N | Q162: N | R162: N | S162: N | T162: N | U162: Y | V162: Y
A163: DNK | B163: 2017 | C163: North sea and Eastern Arctic & Baltic Sea | D163: ICES | E163: IIIac | F163: At sea - Self-sampling, sole | G163: Sole | H163: Cartilagenous fish | I163: NA | J163: The scheme focus on Solea solea and is not expected to give any information on other speices | K163: 570 | L163: 2 | M163: 2 | N163: N | O163: N. (The question more relates to specific observations of trips/ hauls and not overall sampling protocol) | P163: N | Q163: N | R163: N | S163: N | T163: N | U163: Y | V163: Y
A164: DNK | B164: 2017 | C164: North sea and Eastern Arctic & Baltic Sea | D164: ICES | E164: IIIac | F164: At sea - Self-sampling, sole | G164: Sole | H164: Bony fish | I164: NA | J164: The scheme focus on Solea solea and is not expected to give any information on other speices | K164: 570 | L164: 2 | M164: 2 | N164: N | O164: N. (The question more relates to specific observations of trips/ hauls and not overall sampling protocol) | P164: N | Q164: N | R164: N | S164: N | T164: N | U164: Y | V164: Y
A165: DNK | B165: 2017 | C165: North sea and Eastern Arctic & Baltic Sea | D165: ICES | E165: IIIac | F165: At sea - Self-sampling, sole | G165: Sole | H165: Reptiles | I165: NA | J165: The scheme focus on Solea solea and is not expected to give any information on other speices | K165: 570 | L165: 2 | M165: 2 | N165: N | O165: N. (The question more relates to specific observations of trips/ hauls and not overall sampling protocol) | P165: N | Q165: N | R165: N | S165: N | T165: N | U165: Y | V165: Y
A166: DNK | B166: 2017 | C166: North sea and Eastern Arctic & Baltic Sea | D166: ICES | E166: IIIac | F166: At sea - Self-sampling, sole | G166: Sole | H166: Mammals | I166: NA | J166: The scheme focus on Solea solea and is not expected to give any information on other speices | K166: 570 | L166: 2 | M166: 2 | N166: N | O166: N. (The question more relates to specific observations of trips/ hauls and not overall sampling protocol) | P166: N | Q166: N | R166: N | S166: N | T166: N | U166: Y | V166: Y
A167: DNK | B167: 2017 | C167: Baltic Sea | D167: ICES | E167: IIIcd | F167: at market - København | G167: M DKCPH | H167: NA | I167: NA | J167: NA | K167: 237 | L167: 2 | M167: 2 | N167: N | O167: N. (The question more relates to specific observations of trips/ hauls and not overall sampling protocol) | P167: Y | Q167: N | R167: N | S167: N | T167: N | U167: Y | V167: Y | W167: This scheme samples sorted fish at the market, but since all the cod stocks caught by Dennmark are in table 1D and are sampled at the markets, then fish=Y
A168: DNK | B168: 2017 | C168: All region | D168: ICES | E168: all area | F168: At market - small pelagic | G168: Trachurus trachurus | H168: NA | I168: NA | J168: NA | K168: 4 | L168: 1 | M168: 1 | N168: N | O168: N. (The question more relates to specific observations of trips/ hauls and not overall sampling protocol) | P168: Y | Q168: N | R168: N | S168: N | T168: N | U168: Y | V168: Y | W168: The samples are unsorted, but small, so it is only likely so see endangered fish on the same size as the target species
A169: DNK | B169: 2017 | C169: North sea and Eastern Arctic | D169: ICES | E169: IV,III | F169: At sea - Observer | G169: Gillnetters | H169: NA | I169: NA | J169: NA | K169: 3499 | L169: 25 | M169: 25 | N169: N | O169: Y. (The observers recorde selection devices mounted on towed gear, but it is presently not possible to recorde the present of other mitigation devices). (The question more relates to specific observations of trips/ hauls and not overall sampling protocol) | P169: Y | Q169: Y | R169: Y | S169: Y | T169: Y | U169: Y | V169: Y
A170: DNK | B170: 2017 | C170: Baltic Sea | D170: ICES | E170: IIId | F170: At sea - Observer | G170: LLD | H170: NA | I170: NA | J170: NA | K170: 89 | L170: 2 | M170: 2 | N170: N | O170: Y. (The observers recorde selection devices mounted on towed gear, but it is presently not possible to recorde the present of other mitigation devices). (The question more relates to specific observations of trips/ hauls and not overall sampling protocol) | P170: Y | Q170: Y | R170: Y | S170: Y | T170: Y | U170: Y | V170: Y

Sheet Table1G List of research survey
A1: Table 1G: List of research surveys at sea
Z2: WP years | AA2: 2017-2019
Z3: AR year | AA3: 2017
A4: MS | B4: Name of survey | C4: Acronym | D4: Mandatory (Y/N) | E4: Threshold (Y/N) | F4: Agreed at RCG level | G4: MS participation | H4: Area(s) covered | I4: Period (Month) | J4: Frequency | K4: Days at sea planned | L4: Type of sampling activities | M4: Planned target | N4: Map | O4: Relevant international planning group - RFMO/RFO/IO | P4: International database | Q4: Comments | R4: Type of MS participation | S4: In case of financial participation, is payment done? (Y/N) | T4: Days at sea achieved | U4: Achieved target | V4: Other data assimilations (Y/N) | W4: Was the survey carried out within the official time period? (Y/N) | X4: Was the survey carried out within the official survey area? (Y/N) | Y4: Indication if AR comments by MS are required concerning effort achieved | Z4: Indication if AR comments by MS are required concerning temporal and spatial coverage | AA4: AR Comments
A5: DNK | B5: Baltic International Trawl Survey | C5: BITS Q1 BITS Q4 | D5: Y | H5: IIIaS, IIIb-d | I5: 1st and 4th quarter | J5: Annual | K5: 50 50 | L5: Fish Hauls | M5: 115 115 | N5: Fig. 1G.1 - Fig. 1G.3 | O5: ICES WGBIFS | P5: ICES DATRAS | Q5: Two Danish research vessels involved in each quarter. The survey includes the folloving surveys: KASU-1 and KASU2+ (KASU Q4 + Torsk Kattegat), number of stations BITS-1: 50, KASU-1: 50, BITS-2: 50, KASU-2+: 65 (45 TV3 + 20 commercial trawl) | R5: Physical | T5: 39 47 | U5: 113 154 | V5: Y | W5: Y | X5: Y
A6: DNK | B6: Baltic International Acoustic survey | C6: BIAS | D6: Y | G6: DNK participates on other MS research vessel | H6: IIIa, IIIb-a | I6: Sep-Oct | J6: Annual | K6: - | L6: - | M6: - | N6: - | O6: ICES WGIPS | R6: Physical
A7: DNK | B7: International Bottom Trawl Survey | C7: IBTS Q1 IBTS Q3 | D7: Y | H7: IIIa, IV | I7: 1st and 3rd quarter | J7: Annual | K7: 18 18 | L7: Fish Hauls (Plankton Hauls) Fish Hauls | M7: 40 (80) 50 | N7: Fig. 1G.4 - Fig. 1G.5 | O7: ICES IBTSWG | P7: ICES DATRAS | R7: Physical | T7: 17 17 | U7: 43 (87) 50 | V7: Y | W7: Y | X7: Y
A8: DNK | B8: North Sea Sandeels Survey | C8: NSSS | D8: Y | H8: IVa, IVb | I8: 4th quarter | J8: Annual | K8: 22 | L8: Dredge Hauls | M8: 75 | N8: Fig. 1G.6 - Fig. 1G.7 | O8: ICES WGNSSK | P8: no existing database | Q8: Two chartered vessel | R8: Physical | T8: 23 | U8: 103 | V8: Y | W8: Y | X8: Y
A9: DNK | B9: International Ecosystem Survey in the Nordic Seas | C9: ASH | D9: Y | H9: IIa | I9: May | J9: Annual | K9: 30 | L9: Echo Nm Fish Hauls | M9: 3000 NA | N9: Fig. 1G.8 - Fig. 1G.9 | O9: ICES WGIPS | P9: no existing database | R9: Physical | T9: 30 | U9: 3344 | V9: Y | W9: Y | X9: Y
A10: DNK | B10: NS Herring Acoustic Survey | C10: NHAS | D10: Y | H10: IIa, IV, VIa | I10: June, July | J10: Annual | K10: 15 | L10: Echo Nm Fish Hauls | M10: 3000 NA | N10: Fig. 1G.10 - Fig. 1G.11 | O10: ICES WGIPS | P10: ICES Acoustic Trawl Surveys | R10: Physical | T10: 15 | U10: 2289 | V10: Y | W10: Y | X10: Y | AA10: The realized sailed distance is what has been allocated to Denmark and the NP should be revised accordingly , see text box 1G
A11: DNK | B11: Nephrops TVsurvey (FU 3&4) | C11: NTV3&4 | D11: Y | H11: IIIa | I11: 2nd or 3rd quarter | J11: Annual | K11: 7 | L11: Video sledge tracks | M11: 95 | N11: Fig. 1G.12 - Fig. 1G.13 | O11: ICES WGNEPS | P11: no existing database | Q11: Sweden covers the eastern part of the joint survey area | R11: Physical | T11: 9 | U11: 103 | V11: Y | W11: Y | X11: Y
A12: DNK | B12: Blue whiting survey | C12: IBWSS | D12: Y | G12: DNK participates on other MS research vessel | H12: VI, VII | I12: 1st and 2nd quarter | J12: Annual | K12: - | L12: - | M12: - | N12: - | O12: ICES WGIPS | R12: Physical
A13: DNK | B13: Flatfish survey in the Kattegat/Skagerrak | C13: FFS | D13: N | H13: IIIA | I13: 4th quarter | J13: Annual | K13: 24 | L13: Fish Hauls | M13: 85 | N13: Fig. 1G.14 - Fig. 1G.15 | O13: ICES WGBIFS | P13: no existing database | Q13: previously Fishermen - DTU Aqua SoleS | R13: Physical | T13: 18 | U13: 72 | V13: Y | W13: Y | X13: Y
A14: DNK | B14: Nephrops TVsurvey (FU 33) | C14: NTV33 | D14: N | H14: IVb | I14: 2nd or 3rd quarter | J14: Annual | K14: 9 | L14: Video sledge tracks | M14: 80 | N14: Fig. 1G.16 - Fig. 1G.17 | O14: ICES WGNEPS | P14: no existing database | Q14: New survey | R14: Physical | T14: 7 | U14: 66 | V14: Y | W14: Y | X14: Y | AA14: Reduced coverage due to poor weather and technical problems, see text box 1G
A15: DNK | B15: Mussel and oyster surveys in Danish coastal waters | C15: MO-SUR | D15: N | H15: IV l and sub-div 22 | I15: 2nd or 3rd quarter | J15: Annual | K15: 25 | L15: Mussel sledge | M15: 400 mussel and 200 oysters stations | N15: Fig. 1G.18 | O15: _ | P15: no existing database | R15: Physical | T15: 25 | U15: 615 | V15: N | W15: Y | X15: Y | AA15: see text box 1G

Sheet Table1H Research survey data
A1: Table 1H: Research survey data collection and dissemination
L2: WP years | M2: 2017-2019
L3: AR year | M3: 2017
A4: MS | B4: Name of survey | C4: Acronym | D4: Type of data collected | E4: Core/ Additional variable | F4: Used as basis for advice (Y/N) | G4: Comments | H4: Was the sampling carried out? (Y/N/P) | I4: Relevant International database | J4: Was the data uploaded to the relevant database? (Y/N) | K4: Other data assimilations? (Y/N) | L4: Indication if AR comments are required by MS | M4: AR comments
A5: DNK | B5: Baltic International Trawl Survey | C5: BITS Q1 BITS Q4 | D5: Biological data for cod and other demersal species | E5: C | F5: Y | H5: Y | I5: ICES DATRAS | J5: Y | K5: Y
D6: CTD by trawl station | E6: A | F6: N | I6: ICES Oceanogr. | K6: N
D7: Litter items in the trawl | E7: A | F7: N | I7: ICES DATRAS | K7: N
A8: DNK | B8: International Bottom Trawl Survey | C8: IBTS Q1 IBTS Q3 | D8: Biological data for fish species (haddock, cod, saithe, herring, sprat, whiting, mackerel, Norway pout and plaice) | E8: C | F8: Y | H8: Y | I8: ICES DATRAS | J8: Y | K8: N
D9: Herring larvae (only in Q1) | E9: C | F9: Y | I9: no existing database | K9: Y
D10: CTD by trawl station | E10: A | F10: N | I10: ICES Oceanogr. | J10: Y | K10: N
D11: Litter items in the trawl | E11: A | F11: N | I11: ICES DATRAS | J11: Y | K11: N
A12: DNK | B12: North Sea Sandeels Survey | C12: NSSS | D12: Biological data for sandeels | E12: C | F12: Y | G12: commercial vessels | H12: Y | I12: no existing database
D13: Sediment samples | E13: A | F13: N
A14: DNK | B14: International Ecosystem Survey in the Nordic Seas | C14: ASH | D14: Biological data for Herring and Blue whiting | E14: C | F14: Y | H14: Y | I14: no existing database
D15: CTD and Zooplankton by Trawl station | E15: A | F15: N | H15: Y | I15: ICES Oceanogr. | J15: Y (CTD) | K15: Y
A16: DNK | B16: NS Herring Acoustic Survey | C16: NHAS | D16: Biological data for Herring and Sprat | E16: C | F16: Y | H16: Y | I16: ICES Acoustic Trawl Surveys | J16: Y | K16: Y
D17: CTD and Zooplankton by Trawl station | E17: A | F17: N | H17: Y | I17: ICES Oceanogr. | J17: Y (CTD) | K17: Y
A18: DNK | B18: Nephrops TVsurvey (FU 3&4) | C18: NTV3&4 | D18: Abundance of Nephrops burrows | E18: C | F18: Y | H18: Y | I18: no existing database
D19: CTD by video sledge track | E19: A | F19: N | H19: Y
A20: DNK | B20: Flatfish survey in the Kattegat/Skagerrak | C20: FFS | D20: Biological data for sole and plaice | E20: C | F20: Y | H20: Y | I20: no existing database
D21: CTD by trawl station | E21: A | F21: N | H21: Y
A22: DNK | B22: Nephrops TVsurvey (FU 33) | C22: NTV33 | D22: Abundance of Nephrops burrows | E22: C | F22: Y | H22: Y | I22: no existing database
D23: CTD by video sledge track | E23: A | F23: N | H23: Y
A24: DNK | B24: MO-SUR | C24: IV l and 22 | D24: Abundance of mussels and ousters | E24: C | F24: Y | H24: Y | I24: no existing database

Sheet Table2A Fishing activity variab
A1: Table 2A: Fishing activity variables data collection strategy
S2: WP years | T2: 2017-2019
S3: AR year | T3: 2017 | U3: *---------------------------
A4: MS | B4: Supra region | C4: Region | D4: Variable Group | E4: Variable | F4: Fishing technique | G4: Length class | H4: Metiers (level 6) | I4: Data collected under control regulation appropriate for scientific use (Y/N/I) | J4: Type of data collected under control regulation used to calculate the estimates | K4: Expected coverage of data collected under control regulation (% of fishing trips) | L4: Additional data collection (Y/N) | M4: Data collection scheme | N4: Planned coverage of data collected under complementary data collection (% of fishing trips) | O4: Comments | P4: Data collected under control regulation accessible for scientific use (Y/N/I) | Q4: Data source for complementary data collection | R4: Achieved coverage of data collected under complementary data collection | S4: Response Rate (%) | T4: AR comments
A5: DNK | B5: North Atlantic | C5: Baltic Sea (ICES areas III b-d) | D5: Capacity | E5: KW | F5: all fleets | G5: all | H5: All metiers | I5: Y | J5: National fleet register | K5: 100% | L5: N | M5: None | N5: NA | P5: Y | Q5: NA | R5: NA | S5: NA
A6: DNK | B6: North Atlantic | C6: Baltic Sea (ICES areas III b-d) | D6: Capacity | E6: KW | F6: Inactive vessels | G6: all | H6: All metiers | I6: Y | J6: National fleet register | K6: 100% | L6: N | M6: None | N6: NA | P6: Y | Q6: NA | R6: NA | S6: NA
A7: DNK | B7: North Atlantic | C7: Baltic Sea (ICES areas III b-d) | D7: Effort | E7: Days at sea | F7: all fleets | G7: - < 8 m | H7: All metiers | I7: Y | J7: Sales notes | K7: 100% | L7: N | M7: None | N7: NA | P7: Y | Q7: NA | R7: NA | S7: NA
A8: DNK | B8: North Atlantic | C8: Baltic Sea (ICES areas III b-d) | D8: Effort | E8: Days at sea | F8: all fleets | G8: 8 - 12 m | H8: All metiers | I8: Y | J8: Sales notes, logbooks | K8: 100% | L8: N | M8: None | N8: NA | P8: Y | Q8: NA | R8: NA | S8: NA
A9: DNK | B9: North Atlantic | C9: Baltic Sea (ICES areas III b-d) | D9: Effort | E9: Days at sea | F9: all fleets | G9: 12 m or larger | H9: All metiers | I9: Y | J9: Sales notes, logbooks, VMS | K9: 100% | L9: N | M9: None | N9: NA | P9: Y | Q9: NA | R9: NA | S9: NA
A10: DNK | B10: North Atlantic | C10: Baltic Sea (ICES areas III b-d) | D10: Landings | E10: Tonnes | F10: all fleets | G10: - < 8 m | H10: All metiers | I10: Y | J10: Sales notes | K10: 100% | L10: N | M10: None | N10: NA | P10: Y | Q10: NA | R10: NA | S10: NA
A11: DNK | B11: North Atlantic | C11: Baltic Sea (ICES areas III b-d) | D11: Landings | E11: Tonnes | F11: all fleets | G11: 8 m or larger | H11: All metiers | I11: Y | J11: Sales notes, logbooks | K11: 100% | L11: N | M11: None | N11: NA | P11: Y | Q11: NA | R11: NA | S11: NA
A12: DNK | B12: North Atlantic | C12: North Sea and Eastern Arctic | D12: Capacity | E12: KW | F12: all fleets | G12: all | H12: All metiers | I12: Y | J12: National fleet register | K12: 100% | L12: N | M12: None | N12: NA | P12: Y | Q12: NA | R12: NA | S12: NA
A13: DNK | B13: North Atlantic | C13: North Sea and Eastern Arctic | D13: Capacity | E13: KW | F13: Inactive vessels | G13: all | H13: All metiers | I13: Y | J13: National fleet register | K13: 100% | L13: N | M13: None | N13: NA | P13: Y | Q13: NA | R13: NA | S13: NA
A14: DNK | B14: North Atlantic | C14: North Sea and Eastern Arctic | D14: Effort | E14: Days at sea | F14: all fleets | G14: - < 10 m | H14: All metiers | I14: Y | J14: Sales notes | K14: 100% | L14: N | M14: None | N14: NA | P14: Y | Q14: NA | R14: NA | S14: NA
A15: DNK | B15: North Atlantic | C15: North Sea and Eastern Arctic | D15: Effort | E15: Days at sea | F15: all fleets | G15: 10 - 12 m | H15: All metiers | I15: Y | J15: Sales notes, logbooks | K15: 100% | L15: N | M15: None | N15: NA | P15: Y | Q15: NA | R15: NA | S15: NA
A16: DNK | B16: North Atlantic | C16: North Sea and Eastern Arctic | D16: Effort | E16: Days at sea | F16: all fleets | G16: 12 m or larger | H16: All metiers | I16: Y | J16: Sales notes, logbooks, VMS | K16: 100% | L16: N | M16: None | N16: NA | P16: Y | Q16: NA | R16: NA | S16: NA
A17: DNK | B17: North Atlantic | C17: North Sea and Eastern Arctic | D17: Landings | E17: Tonnes | F17: all fleets | G17: - < 10 m | H17: All metiers | I17: Y | J17: Sales notes | K17: 100% | L17: N | M17: None | N17: NA | P17: Y | Q17: NA | R17: NA | S17: NA
A18: DNK | B18: North Atlantic | C18: North Sea and Eastern Arctic | D18: Landings | E18: Tonnes | F18: all fleets | G18: 10 m or larger | H18: All metiers | I18: Y | J18: Sales notes, logbooks | K18: 100% | L18: N | M18: None | N18: NA | P18: Y | Q18: NA | R18: NA | S18: NA

Sheet Table3A Pop segment fisheries
A1: Table 3A: Population segments for collection of economic and social data for fisheries
Q2: WP years | R2: 2017-2019
A3: Note: There is no clustering of segments. We simulate individual accounts for all units in the population, which are not included the sample. Each individuel unit is grouped in the statistic according to the length and gear specification for that individual unit. We do not calculate statistics for groups with less than 10 units, therefore the segment DTS_VL1012, DTS_VL1824 and DTS_VL2440 includes 2, 7, and 3 vessels respectively that had more than 50 % fishing days with pelagic gear. The number of units with 50% pelagic gear have been added to the comment. | Q3: AR year | R3: 2017
A4: MS | B4: Supra region | C4: Fishing technique | D4: Length class | E4: Cluster Name | F4: Type of variables (E/S) | G4: Variable | H4: Data Source | I4: Type of data collection scheme | J4: Frequency | K4: Planned sample rate % | L4: Comments | M4: Frame population | N4: Achieved sample number | O4: Achieved Sample Rate % | P4: Response Rate % | Q4: Achieved Sample no/Planned sample no. | R4: AR Comments
A5: DNK | B5: Baltic Sea, North Sea and Eastern Arctic, and North Atlantic | C5: Demersal trawlers and/or demersal seiners | D5: 0m-<10m | F5: E | G5: Gross value of landings | H5: Harmonized accounts for fishery | I5: C - Non-Probability Sample Survey | J5: Annual | K5: 25 | L5: Reference year 2016 | M5: 5 | N5: 2 | O5: 0.4 | P5: 100 | Q5: 1.782531194 | R5: Trawlers 0-10 meters and 10-12 metres are combined into one sample for the simulation of individual accounts for the rest of the segment. The sample is selected based on the value of landings for the individual vessels. The sample include 10 of the 17 trawlers in the frame population. The achieved sample rate is 58.82% . Five vessels are not in the frame population due to low revenue and short period of operation.
A6: DNK | B6: Baltic Sea, North Sea and Eastern Arctic, and North Atlantic | C6: Demersal trawlers and/or demersal seiners | D6: 0m-<10m | F6: E | G6: Income from leasing out quota or other fishing rights | H6: Harmonized accounts for fishery | I6: C - Non-Probability Sample Survey | J6: Annual | K6: 25 | L6: Reference year 2016 | M6: 5 | N6: 2 | O6: 0.4 | P6: 100 | Q6: 1.782531194 | R6: Trawlers 0-10 meters and 10-12 metres are combined into one sample for the simulation of individual accounts for the rest of the segment. The sample is selected based on the value of landings for the individual vessels. The sample include 10 of the 17 trawlers in the frame population. The achieved sample rate is 58.82% . Five vessels are not in the frame population due to low revenue and short period of operation.
A7: DNK | B7: Baltic Sea, North Sea and Eastern Arctic, and North Atlantic | C7: Demersal trawlers and/or demersal seiners | D7: 0m-<10m | F7: E | G7: Other income | H7: Harmonized accounts for fishery | I7: C - Non-Probability Sample Survey | J7: Annual | K7: 25 | L7: Reference year 2016 | M7: 5 | N7: 2 | O7: 0.4 | P7: 100 | Q7: 1.782531194 | R7: Trawlers 0-10 meters and 10-12 metres are combined into one sample for the simulation of individual accounts for the rest of the segment. The sample is selected based on the value of landings for the individual vessels. The sample include 10 of the 17 trawlers in the frame population. The achieved sample rate is 58.82% . Five vessels are not in the frame population due to low revenue and short period of operation.
A8: DNK | B8: Baltic Sea, North Sea and Eastern Arctic, and North Atlantic | C8: Demersal trawlers and/or demersal seiners | D8: 0m-<10m | F8: E | G8: Personnel costs (former name: Wages and salaries of crew) | H8: Harmonized accounts for fishery | I8: C - Non-Probability Sample Survey | J8: Annual | K8: 25 | L8: Reference year 2016 | M8: 5 | N8: 2 | O8: 0.4 | P8: 100 | Q8: 1.782531194 | R8: Trawlers 0-10 meters and 10-12 metres are combined into one sample for the simulation of individual accounts for the rest of the segment. The sample is selected based on the value of landings for the individual vessels. The sample include 10 of the 17 trawlers in the frame population. The achieved sample rate is 58.82% . Five vessels are not in the frame population due to low revenue and short period of operation.
A9: DNK | B9: Baltic Sea, North Sea and Eastern Arctic, and North Atlantic | C9: Demersal trawlers and/or demersal seiners | D9: 0m-<10m | F9: E | G9: (Imputed) Value of unpaid labour | H9: Harmonized accounts for fishery | I9: C - Non-Probability Sample Survey | J9: Annual | K9: 25 | L9: Reference year 2016 | M9: 5 | N9: 2 | O9: 0.4 | P9: 100 | Q9: 1.782531194 | R9: Trawlers 0-10 meters and 10-12 metres are combined into one sample for the simulation of individual accounts for the rest of the segment. The sample is selected based on the value of landings for the individual vessels. The sample include 10 of the 17 trawlers in the frame population. The achieved sample rate is 58.82% . Five vessels are not in the frame population due to low revenue and short period of operation.
A10: DNK | B10: Baltic Sea, North Sea and Eastern Arctic, and North Atlantic | C10: Demersal trawlers and/or demersal seiners | D10: 0m-<10m | F10: E | G10: Energy costs | H10: Harmonized accounts for fishery | I10: C - Non-Probability Sample Survey | J10: Annual | K10: 25 | L10: Reference year 2016 | M10: 5 | N10: 2 | O10: 0.4 | P10: 100 | Q10: 1.782531194 | R10: Trawlers 0-10 meters and 10-12 metres are combined into one sample for the simulation of individual accounts for the rest of the segment. The sample is selected based on the value of landings for the individual vessels. The sample include 10 of the 17 trawlers in the frame population. The achieved sample rate is 58.82% . Five vessels are not in the frame population due to low revenue and short period of operation.
A11: DNK | B11: Baltic Sea, North Sea and Eastern Arctic, and North Atlantic | C11: Demersal trawlers and/or demersal seiners | D11: 0m-<10m | F11: E | G11: Repair and maintenance costs | H11: Harmonized accounts for fishery | I11: C - Non-Probability Sample Survey | J11: Annual | K11: 25 | L11: Reference year 2016 | M11: 5 | N11: 2 | O11: 0.4 | P11: 100 | Q11: 1.782531194 | R11: Trawlers 0-10 meters and 10-12 metres are combined into one sample for the simulation of individual accounts for the rest of the segment. The sample is selected based on the value of landings for the individual vessels. The sample include 10 of the 17 trawlers in the frame population. The achieved sample rate is 58.82% . Five vessels are not in the frame population due to low revenue and short period of operation.
A12: DNK | B12: Baltic Sea, North Sea and Eastern Arctic, and North Atlantic | C12: Demersal trawlers and/or demersal seiners | D12: 0m-<10m | F12: E | G12: Variable costs | H12: Harmonized accounts for fishery | I12: C - Non-Probability Sample Survey | J12: Annual | K12: 25 | L12: Reference year 2016 | M12: 5 | N12: 2 | O12: 0.4 | P12: 100 | Q12: 1.782531194 | R12: Trawlers 0-10 meters and 10-12 metres are combined into one sample for the simulation of individual accounts for the rest of the segment. The sample is selected based on the value of landings for the individual vessels. The sample include 10 of the 17 trawlers in the frame population. The achieved sample rate is 58.82% . Five vessels are not in the frame population due to low revenue and short period of operation.
A13: DNK | B13: Baltic Sea, North Sea and Eastern Arctic, and North Atlantic | C13: Demersal trawlers and/or demersal seiners | D13: 0m-<10m | F13: E | G13: Non-variable costs | H13: Harmonized accounts for fishery | I13: C - Non-Probability Sample Survey | J13: Annual | K13: 25 | L13: Reference year 2016 | M13: 5 | N13: 2 | O13: 0.4 | P13: 100 | Q13: 1.782531194 | R13: Trawlers 0-10 meters and 10-12 metres are combined into one sample for the simulation of individual accounts for the rest of the segment. The sample is selected based on the value of landings for the individual vessels. The sample include 10 of the 17 trawlers in the frame population. The achieved sample rate is 58.82% . Five vessels are not in the frame population due to low revenue and short period of operation.
A14: DNK | B14: Baltic Sea, North Sea and Eastern Arctic, and North Atlantic | C14: Demersal trawlers and/or demersal seiners | D14: 0m-<10m | F14: E | G14: Lease/rental payments for quota or other fishing rights | H14: Harmonized accounts for fishery | I14: C - Non-Probability Sample Survey | J14: Annual | K14: 25 | L14: Reference year 2016 | M14: 5 | N14: 2 | O14: 0.4 | P14: 100 | Q14: 1.782531194 | R14: Trawlers 0-10 meters and 10-12 metres are combined into one sample for the simulation of individual accounts for the rest of the segment. The sample is selected based on the value of landings for the individual vessels. The sample include 10 of the 17 trawlers in the frame population. The achieved sample rate is 58.82% . Five vessels are not in the frame population due to low revenue and short period of operation.
A15: DNK | B15: Baltic Sea, North Sea and Eastern Arctic, and North Atlantic | C15: Demersal trawlers and/or demersal seiners | D15: 0m-<10m | F15: E | G15: Operating subsidies (new variable) | H15: Harmonized accounts for fishery | I15: C - Non-Probability Sample Survey | J15: Annual | K15: N/A | L15: Reference year 2017 | M15: N/A | N15: N/A | P15: N/A | R15: New variable. The variable has been in the accounts for many years, but no operating subsidies has been in effect. In 2017 however some fishermen has been subsidied by kompensaton for loss in fishing.
A16: DNK | B16: Baltic Sea, North Sea and Eastern Arctic, and North Atlantic | C16: Demersal trawlers and/or demersal seiners | D16: 0m-<10m | F16: E | G16: Subsidies on investments (former name: Direct subsidies) | H16: Harmonized accounts for fishery | I16: C - Non-Probability Sample Survey | J16: Annual | K16: 25 | L16: Reference year 2016 | M16: 5 | N16: 2 | O16: 0.4 | P16: 100 | Q16: 1.782531194 | R16: Trawlers 0-10 meters and 10-12 metres are combined into one sample for the simulation of individual accounts for the rest of the segment. The sample is selected based on the value of landings for the individual vessels. The sample include 10 of the 17 trawlers in the frame population. The achieved sample rate is 58.82% . Five vessels are not in the frame population due to low revenue and short period of operation.
A17: DNK | B17: Baltic Sea, North Sea and Eastern Arctic, and North Atlantic | C17: Demersal trawlers and/or demersal seiners | D17: 0m-<10m | F17: E | G17: Consumption of fixed capital (former name Annual depreciation) | H17: Harmonized accounts for fishery | I17: C - Non-Probability Sample Survey | J17: Annual | K17: 25 | L17: Reference year 2016 | M17: 5 | N17: 2 | O17: 0.4 | P17: 100 | Q17: 1.782531194 | R17: Trawlers 0-10 meters and 10-12 metres are combined into one sample for the simulation of individual accounts for the rest of the segment. The sample is selected based on the value of landings for the individual vessels. The sample include 10 of the 17 trawlers in the frame population. The achieved sample rate is 58.82% . Five vessels are not in the frame population due to low revenue and short period of operation.
A18: DNK | B18: Baltic Sea, North Sea and Eastern Arctic, and North Atlantic | C18: Demersal trawlers and/or demersal seiners | D18: 0m-<10m | F18: E | G18: Value of physical capital (former name: Depreciated replacement value | H18: Harmonized accounts for fishery | I18: C - Non-Probability Sample Survey | J18: Annual | K18: 25 | L18: Reference year 2016 | M18: 5 | N18: 2 | O18: 0.4 | P18: 100 | Q18: 1.782531194 | R18: Trawlers 0-10 meters and 10-12 metres are combined into one sample for the simulation of individual accounts for the rest of the segment. The sample is selected based on the value of landings for the individual vessels. The sample include 10 of the 17 trawlers in the frame population. The achieved sample rate is 58.82% . Five vessels are not in the frame population due to low revenue and short period of operation.
A19: DNK | B19: Baltic Sea, North Sea and Eastern Arctic, and North Atlantic | C19: Demersal trawlers and/or demersal seiners | D19: 0m-<10m | F19: E | G19: Value of quota and other fishing rights | H19: Harmonized accounts for fishery | I19: C - Non-Probability Sample Survey | J19: Annual | K19: 25 | L19: Reference year 2016 | M19: 5 | N19: 2 | O19: 0.4 | P19: 100 | Q19: 1.782531194 | R19: Trawlers 0-10 meters and 10-12 metres are combined into one sample for the simulation of individual accounts for the rest of the segment. The sample is selected based on the value of landings for the individual vessels. The sample include 10 of the 17 trawlers in the frame population. The achieved sample rate is 58.82% . Five vessels are not in the frame population due to low revenue and short period of operation.
A20: DNK | B20: Baltic Sea, North Sea and Eastern Arctic, and North Atlantic | C20: Demersal trawlers and/or demersal seiners | D20: 0m-<10m | F20: E | G20: Investments in tangible assets (former name: Investments) | H20: Harmonized accounts for fishery | I20: C - Non-Probability Sample Survey | J20: Annual | K20: 25 | L20: Reference year 2016 | M20: 5 | N20: 2 | O20: 0.4 | P20: 100 | Q20: 1.782531194 | R20: Trawlers 0-10 meters and 10-12 metres are combined into one sample for the simulation of individual accounts for the rest of the segment. The sample is selected based on the value of landings for the individual vessels. The sample include 10 of the 17 trawlers in the frame population. The achieved sample rate is 58.82% . Five vessels are not in the frame population due to low revenue and short period of operation.
A21: DNK | B21: Baltic Sea, North Sea and Eastern Arctic, and North Atlantic | C21: Demersal trawlers and/or demersal seiners | D21: 0m-<10m | F21: E | G21: Long/short Debt (former name Debt/asset ratio) | H21: Harmonized accounts for fishery | I21: C - Non-Probability Sample Survey | J21: Annual | K21: 25 | L21: Reference year 2016 | M21: 5 | N21: 2 | O21: 0.4 | P21: 100 | Q21: 1.782531194 | R21: Trawlers 0-10 meters and 10-12 metres are combined into one sample for the simulation of individual accounts for the rest of the segment. The sample is selected based on the value of landings for the individual vessels. The sample include 10 of the 17 trawlers in the frame population. The achieved sample rate is 58.82% . Five vessels are not in the frame population due to low revenue and short period of operation.
A22: DNK | B22: Baltic Sea, North Sea and Eastern Arctic, and North Atlantic | C22: Demersal trawlers and/or demersal seiners | D22: 0m-<10m | F22: E | G22: Total assets (new variable) | H22: Harmonized accounts for fishery | I22: C - Non-Probability Sample Survey | J22: Annual | K22: N/A | L22: Reference year 2017 | M22: N/A | N22: N/A | P22: N/A | R22: New variable. Data exists for all years. Starting from 2009 Total assets include the value of fishing rights, but there is a break in series. Before 2012 the value of fishing rights includes only fishing rights held by the fishing firms in the sample, from 2012 onwards the value includes fishing rights for the whole population.
A23: DNK | B23: Baltic Sea, North Sea and Eastern Arctic, and North Atlantic | C23: Demersal trawlers and/or demersal seiners | D23: 0m-<10m | F23: E | G23: Engaged crew | H23: Harmonized accounts for fishery | I23: C - Non-Probability Sample Survey | J23: Annual | K23: 25 | L23: Reference year 2016 | M23: 5 | N23: 2 | O23: 0.4 | P23: 100 | Q23: 1.782531194 | R23: Trawlers 0-10 meters and 10-12 metres are combined into one sample for the simulation of individual accounts for the rest of the segment. The sample is selected based on the value of landings for the individual vessels. The sample include 10 of the 17 trawlers in the frame population. The achieved sample rate is 58.82% . Five vessels are not in the frame population due to low revenue and short period of operation.
A24: DNK | B24: Baltic Sea, North Sea and Eastern Arctic, and North Atlantic | C24: Demersal trawlers and/or demersal seiners | D24: 0m-<10m | F24: E | G24: Unpaid labour (new variable) | H24: Harmonized accounts for fishery | I24: C - Non-Probability Sample Survey | J24: Annual | K24: 25 | L24: Reference year 2017 | M24: N/A | N24: N/A | P24: N/A | R24: New variable. Working owners who does not get wage or salary but take tehir income from the profit.
A25: DNK | B25: Baltic Sea, North Sea and Eastern Arctic, and North Atlantic | C25: Demersal trawlers and/or demersal seiners | D25: 0m-<10m | F25: E | G25: Total hours worked per year (new variable) | H25: Harmonized accounts for fishery | I25: C - Non-Probability Sample Survey | J25: Annual | K25: 25 | L25: Reference year 2017 | M25: N/A | N25: N/A | P25: N/A | R25: New variable. The variable has been in the accounts for many years. It is the basic data for calculating FTE.
A26: DNK | B26: Baltic Sea, North Sea and Eastern Arctic, and North Atlantic | C26: Demersal trawlers and/or demersal seiners | D26: 0m-<10m | F26: E | G26: FTE (to be deleted) | H26: Harmonized accounts for fishery | I26: C - Non-Probability Sample Survey | J26: Annual | K26: 25 | L26: Reference year 2016 | M26: 5 | N26: 2 | O26: 0.4 | P26: 100 | Q26: 1.782531194 | R26: Trawlers 0-10 meters and 10-12 metres are combined into one sample for the simulation of individual accounts for the rest of the segment. The sample is selected based on the value of landings for the individual vessels. The sample include 10 of the 17 trawlers in the frame population. The achieved sample rate is 58.82% . Five vessels are not in the frame population due to low revenue and short period of operation.
A27: DNK | B27: Baltic Sea, North Sea and Eastern Arctic, and North Atlantic | C27: Demersal trawlers and/or demersal seiners | D27: 0m-<10m | F27: E | G27: FTE harmonised (to be deleted) | H27: Harmonized accounts for fishery | I27: C - Non-Probability Sample Survey | J27: Annual | K27: 25 | L27: Reference year 2016 | M27: 5 | N27: 2 | O27: 0.4 | P27: 100 | Q27: 1.782531194 | R27: Trawlers 0-10 meters and 10-12 metres are combined into one sample for the simulation of individual accounts for the rest of the segment. The sample is selected based on the value of landings for the individual vessels. The sample include 10 of the 17 trawlers in the frame population. The achieved sample rate is 58.82% . Five vessels are not in the frame population due to low revenue and short period of operation.
A28: DNK | B28: Baltic Sea, North Sea and Eastern Arctic, and North Atlantic | C28: Demersal trawlers and/or demersal seiners | D28: 0m-<10m | F28: E | G28: Number of vessels | H28: Danish Fishing Fleet Register | I28: A - Census | J28: Annual | K28: 100 | L28: Reference year 2016 | M28: 10 | N28: 10 | O28: 1 | P28: 100 | Q28: 1
A29: DNK | B29: Baltic Sea, North Sea and Eastern Arctic, and North Atlantic | C29: Demersal trawlers and/or demersal seiners | D29: 0m-<10m | F29: E | G29: Mean LOA of vessels | H29: Danish Fishing Fleet Register | I29: A - Census | J29: Annual | K29: 100 | L29: Reference year 2016 | M29: 10 | N29: 10 | O29: 1 | P29: 100 | Q29: 1
A30: DNK | B30: Baltic Sea, North Sea and Eastern Arctic, and North Atlantic | C30: Demersal trawlers and/or demersal seiners | D30: 0m-<10m | F30: E | G30: Total vessel's tonnage | H30: Danish Fishing Fleet Register | I30: A - Census | J30: Annual | K30: 100 | L30: Reference year 2016 | M30: 10 | N30: 10 | O30: 1 | P30: 100 | Q30: 1
A31: DNK | B31: Baltic Sea, North Sea and Eastern Arctic, and North Atlantic | C31: Demersal trawlers and/or demersal seiners | D31: 0m-<10m | F31: E | G31: Total vessel's power | H31: Danish Fishing Fleet Register | I31: A - Census | J31: Annual | K31: 100 | L31: Reference year 2016 | M31: 10 | N31: 10 | O31: 1 | P31: 100 | Q31: 1
A32: DNK | B32: Baltic Sea, North Sea and Eastern Arctic, and North Atlantic | C32: Demersal trawlers and/or demersal seiners | D32: 0m-<10m | F32: E | G32: Mean age of vessels | H32: Danish Fishing Fleet Register | I32: A - Census | J32: Annual | K32: 100 | L32: Reference year 2016 | M32: 10 | N32: 10 | O32: 1 | P32: 100 | Q32: 1
A33: DNK | B33: Baltic Sea, North Sea and Eastern Arctic, and North Atlantic | C33: Demersal trawlers and/or demersal seiners | D33: 0m-<10m | F33: E | G33: Days at sea | H33: Logbook Register | I33: A - Census | J33: Annual | K33: 100 | L33: Reference year 2016 | M33: 10 | N33: 10 | O33: 1 | P33: 100 | Q33: 1
A34: DNK | B34: Baltic Sea, North Sea and Eastern Arctic, and North Atlantic | C34: Demersal trawlers and/or demersal seiners | D34: 0m-<10m | F34: E | G34: Energy consumption | H34: Harmonized accounts for fishery | I34: C - Non-Probability Sample Survey | J34: Annual | K34: 25 | L34: Reference year 2016 | M34: 5 | N34: 2 | O34: 0.4 | P34: 100 | Q34: 1.782531194 | R34: Trawlers 0-10 meters and 10-12 metres are combined into one sample for the simulation of individual accounts for the rest of the segment. The sample is selected based on the value of landings for the individual vessels. The sample include 10 of the 17 trawlers in the frame population. The achieved sample rate is 58.82% . Five vessels are not in the frame population due to low revenue and short period of operation.
A35: DNK | B35: Baltic Sea, North Sea and Eastern Arctic, and North Atlantic | C35: Demersal trawlers and/or demersal seiners | D35: 0m-<10m | F35: E | G35: Number of fishing enterprises/units | H35: Danish Fishing Fleet Register | I35: A - Census | J35: Annual | K35: 100 | L35: Reference year 2016 | M35: 10 | N35: 10 | O35: 1 | P35: 100 | Q35: 1
A36: DNK | B36: Baltic Sea, North Sea and Eastern Arctic, and North Atlantic | C36: Demersal trawlers and/or demersal seiners | D36: 0m-<10m | F36: E | G36: Value of landings per species | H36: Salesnote Register | I36: A - Census | J36: Annual | K36: 100 | L36: Reference year 2016 | M36: 10 | N36: 10 | O36: 1 | P36: 100 | Q36: 1
A37: DNK | B37: Baltic Sea, North Sea and Eastern Arctic, and North Atlantic | C37: Demersal trawlers and/or demersal seiners | D37: 0m-<10m | F37: E | G37: Average price per species | H37: Salesnote Register | I37: A - Census | J37: Annual | K37: 100 | L37: Reference year 2016 | M37: 10 | N37: 10 | O37: 1 | P37: 100 | Q37: 1
A38: DNK | B38: Baltic Sea, North Sea and Eastern Arctic, and North Atlantic | C38: Demersal trawlers and/or demersal seiners * | D38: 10m-<12m | E38: AREA27DTSVL1012 | F38: E | G38: Gross value of landings | H38: Harmonized accounts for fishery | I38: C - Non-Probability Sample Survey | J38: Annual | K38: 33 | L38: Reference year 2016 | M38: 12 | N38: 8 | O38: 0.6666666667 | P38: 100 | Q38: 1.782531194 | R38: This segment includes 2 vessels that had more than 50% fishing days with pelagic gear. Trawlers 0-10 metres and 10-12 metres are combined into one sample for the simulation of individual accounts for the rest of the segment. The sample is selected based on the value of landings for the individual vessels. The sample include 10 of the 17 trawlers in the frame population. The achieved sample rate is 58.82% . Two vessels are not in the frame population due to low revenue and short period of operation.
A39: DNK | B39: Baltic Sea, North Sea and Eastern Arctic, and North Atlantic | C39: Demersal trawlers and/or demersal seiners * | D39: 10m-<12m | E39: AREA27DTSVL1012 | F39: E | G39: Income from leasing out quota or other fishing rights | H39: Harmonized accounts for fishery | I39: C - Non-Probability Sample Survey | J39: Annual | K39: 33 | L39: Reference year 2016 | M39: 12 | N39: 8 | O39: 0.6666666667 | P39: 100 | Q39: 1.782531194 | R39: This segment includes 2 vessels that had more than 50% fishing days with pelagic gear. Trawlers 0-10 metres and 10-12 metres are combined into one sample for the simulation of individual accounts for the rest of the segment. The sample is selected based on the value of landings for the individual vessels. The sample include 10 of the 17 trawlers in the frame population. The achieved sample rate is 58.82% . Two vessels are not in the frame population due to low revenue and short period of operation.
A40: DNK | B40: Baltic Sea, North Sea and Eastern Arctic, and North Atlantic | C40: Demersal trawlers and/or demersal seiners * | D40: 10m-<12m | E40: AREA27DTSVL1012 | F40: E | G40: Other income | H40: Harmonized accounts for fishery | I40: C - Non-Probability Sample Survey | J40: Annual | K40: 33 | L40: Reference year 2016 | M40: 12 | N40: 8 | O40: 0.6666666667 | P40: 100 | Q40: 1.782531194 | R40: This segment includes 2 vessels that had more than 50% fishing days with pelagic gear. Trawlers 0-10 metres and 10-12 metres are combined into one sample for the simulation of individual accounts for the rest of the segment. The sample is selected based on the value of landings for the individual vessels. The sample include 10 of the 17 trawlers in the frame population. The achieved sample rate is 58.82% . Two vessels are not in the frame population due to low revenue and short period of operation.
A41: DNK | B41: Baltic Sea, North Sea and Eastern Arctic, and North Atlantic | C41: Demersal trawlers and/or demersal seiners * | D41: 10m-<12m | E41: AREA27DTSVL1012 | F41: E | G41: Personnel costs (former name: Wages and salaries of crew) | H41: Harmonized accounts for fishery | I41: C - Non-Probability Sample Survey | J41: Annual | K41: 33 | L41: Reference year 2016 | M41: 12 | N41: 8 | O41: 0.6666666667 | P41: 100 | Q41: 1.782531194 | R41: This segment includes 2 vessels that had more than 50% fishing days with pelagic gear. Trawlers 0-10 metres and 10-12 metres are combined into one sample for the simulation of individual accounts for the rest of the segment. The sample is selected based on the value of landings for the individual vessels. The sample include 10 of the 17 trawlers in the frame population. The achieved sample rate is 58.82% . Two vessels are not in the frame population due to low revenue and short period of operation.
A42: DNK | B42: Baltic Sea, North Sea and Eastern Arctic, and North Atlantic | C42: Demersal trawlers and/or demersal seiners * | D42: 10m-<12m | E42: AREA27DTSVL1012 | F42: E | G42: (Imputed) Value of unpaid labour | H42: Harmonized accounts for fishery | I42: C - Non-Probability Sample Survey | J42: Annual | K42: 33 | L42: Reference year 2016 | M42: 12 | N42: 8 | O42: 0.6666666667 | P42: 100 | Q42: 1.782531194 | R42: This segment includes 2 vessels that had more than 50% fishing days with pelagic gear. Trawlers 0-10 metres and 10-12 metres are combined into one sample for the simulation of individual accounts for the rest of the segment. The sample is selected based on the value of landings for the individual vessels. The sample include 10 of the 17 trawlers in the frame population. The achieved sample rate is 58.82% . Two vessels are not in the frame population due to low revenue and short period of operation.
A43: DNK | B43: Baltic Sea, North Sea and Eastern Arctic, and North Atlantic | C43: Demersal trawlers and/or demersal seiners * | D43: 10m-<12m | E43: AREA27DTSVL1012 | F43: E | G43: Energy costs | H43: Harmonized accounts for fishery | I43: C - Non-Probability Sample Survey | J43: Annual | K43: 33 | L43: Reference year 2016 | M43: 12 | N43: 8 | O43: 0.6666666667 | P43: 100 | Q43: 1.782531194 | R43: This segment includes 2 vessels that had more than 50% fishing days with pelagic gear. Trawlers 0-10 metres and 10-12 metres are combined into one sample for the simulation of individual accounts for the rest of the segment. The sample is selected based on the value of landings for the individual vessels. The sample include 10 of the 17 trawlers in the frame population. The achieved sample rate is 58.82% . Two vessels are not in the frame population due to low revenue and short period of operation.
A44: DNK | B44: Baltic Sea, North Sea and Eastern Arctic, and North Atlantic | C44: Demersal trawlers and/or demersal seiners * | D44: 10m-<12m | E44: AREA27DTSVL1012 | F44: E | G44: Repair and maintenance costs | H44: Harmonized accounts for fishery | I44: C - Non-Probability Sample Survey | J44: Annual | K44: 33 | L44: Reference year 2016 | M44: 12 | N44: 8 | O44: 0.6666666667 | P44: 100 | Q44: 1.782531194 | R44: This segment includes 2 vessels that had more than 50% fishing days with pelagic gear. Trawlers 0-10 metres and 10-12 metres are combined into one sample for the simulation of individual accounts for the rest of the segment. The sample is selected based on the value of landings for the individual vessels. The sample include 10 of the 17 trawlers in the frame population. The achieved sample rate is 58.82% . Two vessels are not in the frame population due to low revenue and short period of operation.
A45: DNK | B45: Baltic Sea, North Sea and Eastern Arctic, and North Atlantic | C45: Demersal trawlers and/or demersal seiners * | D45: 10m-<12m | E45: AREA27DTSVL1012 | F45: E | G45: Variable costs | H45: Harmonized accounts for fishery | I45: C - Non-Probability Sample Survey | J45: Annual | K45: 33 | L45: Reference year 2016 | M45: 12 | N45: 8 | O45: 0.6666666667 | P45: 100 | Q45: 1.782531194 | R45: This segment includes 2 vessels that had more than 50% fishing days with pelagic gear. Trawlers 0-10 metres and 10-12 metres are combined into one sample for the simulation of individual accounts for the rest of the segment. The sample is selected based on the value of landings for the individual vessels. The sample include 10 of the 17 trawlers in the frame population. The achieved sample rate is 58.82% . Two vessels are not in the frame population due to low revenue and short period of operation.
A46: DNK | B46: Baltic Sea, North Sea and Eastern Arctic, and North Atlantic | C46: Demersal trawlers and/or demersal seiners * | D46: 10m-<12m | E46: AREA27DTSVL1012 | F46: E | G46: Non-variable costs | H46: Harmonized accounts for fishery | I46: C - Non-Probability Sample Survey | J46: Annual | K46: 33 | L46: Reference year 2016 | M46: 12 | N46: 8 | O46: 0.6666666667 | P46: 100 | Q46: 1.782531194 | R46: This segment includes 2 vessels that had more than 50% fishing days with pelagic gear. Trawlers 0-10 metres and 10-12 metres are combined into one sample for the simulation of individual accounts for the rest of the segment. The sample is selected based on the value of landings for the individual vessels. The sample include 10 of the 17 trawlers in the frame population. The achieved sample rate is 58.82% . Two vessels are not in the frame population due to low revenue and short period of operation.
A47: DNK | B47: Baltic Sea, North Sea and Eastern Arctic, and North Atlantic | C47: Demersal trawlers and/or demersal seiners * | D47: 10m-<12m | E47: AREA27DTSVL1012 | F47: E | G47: Lease/rental payments for quota or other fishing rights | H47: Harmonized accounts for fishery | I47: C - Non-Probability Sample Survey | J47: Annual | K47: 33 | L47: Reference year 2016 | M47: 12 | N47: 8 | O47: 0.6666666667 | P47: 100 | Q47: 1.782531194 | R47: This segment includes 2 vessels that had more than 50% fishing days with pelagic gear. Trawlers 0-10 metres and 10-12 metres are combined into one sample for the simulation of individual accounts for the rest of the segment. The sample is selected based on the value of landings for the individual vessels. The sample include 10 of the 17 trawlers in the frame population. The achieved sample rate is 58.82% . Two vessels are not in the frame population due to low revenue and short period of operation.
A48: DNK | B48: Baltic Sea, North Sea and Eastern Arctic, and North Atlantic | C48: Demersal trawlers and/or demersal seiners * | D48: 10m-<12m | E48: AREA27DTSVL1012 | F48: E | G48: Operating subsidies (new variable) | H48: Harmonized accounts for fishery | I48: C - Non-Probability Sample Survey | J48: Annual | K48: N/A | L48: Reference year 2017 | M48: N/A | N48: N/A | P48: N/A | R48: New variable. The variable has been in the accounts for many years, but no operating subsidies has been in effect. In 2017 however some fishermen has been subsidied by kompensaton for loss in fishing.
A49: DNK | B49: Baltic Sea, North Sea and Eastern Arctic, and North Atlantic | C49: Demersal trawlers and/or demersal seiners * | D49: 10m-<12m | E49: AREA27DTSVL1012 | F49: E | G49: Subsidies on investments (former name: Direct subsidies) | H49: Harmonized accounts for fishery | I49: C - Non-Probability Sample Survey | J49: Annual | K49: 33 | L49: Reference year 2016 | M49: 12 | N49: 8 | O49: 0.6666666667 | P49: 100 | Q49: 1.782531194 | R49: This segment includes 2 vessels that had more than 50% fishing days with pelagic gear. Trawlers 0-10 metres and 10-12 metres are combined into one sample for the simulation of individual accounts for the rest of the segment. The sample is selected based on the value of landings for the individual vessels. The sample include 10 of the 17 trawlers in the frame population. The achieved sample rate is 58.82% . Two vessels are not in the frame population due to low revenue and short period of operation.
A50: DNK | B50: Baltic Sea, North Sea and Eastern Arctic, and North Atlantic | C50: Demersal trawlers and/or demersal seiners * | D50: 10m-<12m | E50: AREA27DTSVL1012 | F50: E | G50: Consumption of fixed capital (former name Annual depreciation) | H50: Harmonized accounts for fishery | I50: C - Non-Probability Sample Survey | J50: Annual | K50: 33 | L50: Reference year 2016 | M50: 12 | N50: 8 | O50: 0.6666666667 | P50: 100 | Q50: 1.782531194 | R50: This segment includes 2 vessels that had more than 50% fishing days with pelagic gear. Trawlers 0-10 metres and 10-12 metres are combined into one sample for the simulation of individual accounts for the rest of the segment. The sample is selected based on the value of landings for the individual vessels. The sample include 10 of the 17 trawlers in the frame population. The achieved sample rate is 58.82% . Two vessels are not in the frame population due to low revenue and short period of operation.
A51: DNK | B51: Baltic Sea, North Sea and Eastern Arctic, and North Atlantic | C51: Demersal trawlers and/or demersal seiners * | D51: 10m-<12m | E51: AREA27DTSVL1012 | F51: E | G51: Value of physical capital (former name: Depreciated replacement value | H51: Harmonized accounts for fishery | I51: C - Non-Probability Sample Survey | J51: Annual | K51: 33 | L51: Reference year 2016 | M51: 12 | N51: 8 | O51: 0.6666666667 | P51: 100 | Q51: 1.782531194 | R51: This segment includes 2 vessels that had more than 50% fishing days with pelagic gear. Trawlers 0-10 metres and 10-12 metres are combined into one sample for the simulation of individual accounts for the rest of the segment. The sample is selected based on the value of landings for the individual vessels. The sample include 10 of the 17 trawlers in the frame population. The achieved sample rate is 58.82% . Two vessels are not in the frame population due to low revenue and short period of operation.
A52: DNK | B52: Baltic Sea, North Sea and Eastern Arctic, and North Atlantic | C52: Demersal trawlers and/or demersal seiners * | D52: 10m-<12m | E52: AREA27DTSVL1012 | F52: E | G52: Value of quota and other fishing rights | H52: Harmonized accounts for fishery | I52: C - Non-Probability Sample Survey | J52: Annual | K52: 33 | L52: Reference year 2016 | M52: 12 | N52: 8 | O52: 0.6666666667 | P52: 100 | Q52: 1.782531194 | R52: This segment includes 2 vessels that had more than 50% fishing days with pelagic gear. Trawlers 0-10 metres and 10-12 metres are combined into one sample for the simulation of individual accounts for the rest of the segment. The sample is selected based on the value of landings for the individual vessels. The sample include 10 of the 17 trawlers in the frame population. The achieved sample rate is 58.82% . Two vessels are not in the frame population due to low revenue and short period of operation.
